Body Name,Transaction Date,Transaction Amount,Merchant Name,Merchant Description,Expense Area,Cost Centre Description,Expense Type
Cambridgeshire County Council,03/04/2023,-153.99,AMZNMKTPLACE AMAZON.CO,MISCELLANEOUS AND SPECIALTY RETAIL STORES,Children's Disability Service,Head of RSS,"FIXTURES, FITTINGS AND FURNISHINGS"
Cambridgeshire County Council,03/04/2023,-88.00,HOLIDAY INN,"LODGING-HOTELS,MOTELS,RESORTS-NOT CLASSIFIED","Children, Education and Families Directorate","Children, Education and Families Directorate",
Cambridgeshire County Council,03/04/2023,-4.30,ASDA GROCERIES ONLINE,"GROCERY STORES, SUPERMARKETS",LD - In House Provider Services,Horizon,CATERING PROVISIONS
Cambridgeshire County Council,03/04/2023,0.94,AWS EMEA,BUSINESS SERVICES-NOT ELSEWHERE CLASSIFIED,IT & Digital Service,Hardware & Infrastructure,COMP SOFTWARE-ANNUAL LICENCE AGREEMENT
Cambridgeshire County Council,03/04/2023,1.45,POST OFFICE COUNTER,POSTAL SERVICES-GOVERNMENT ONLY,Coroners,Coroners General,POSTAGE & CARRIAGE
Cambridgeshire County Council,03/04/2023,2.50,SAINSBURYS S/MKTS,"GROCERY STORES, SUPERMARKETS",LD - In House Provider Services,6 St Lukes Close (Respite),
Cambridgeshire County Council,03/04/2023,2.55,TESCO STORES 3108,"GROCERY STORES, SUPERMARKETS",Children's Disability Service,RSS - London Road,FURNITURE
Cambridgeshire County Council,03/04/2023,3.45,POST OFFICE COUNTER,POSTAL SERVICES-GOVERNMENT ONLY,Corporate Parenting,North Care Leaving Team 2,POSTAGE & CARRIAGE
Cambridgeshire County Council,03/04/2023,3.65,TESCO STORES 2694,"GROCERY STORES, SUPERMARKETS",LD - In House Provider Services,6 St Lukes Close (Respite),
Cambridgeshire County Council,03/04/2023,4.29,M&S SIMPLY FOOD  - S,FAST FOOD RESTAURANTS,Changing Futures & Projects,Housing First,OTHER SERVICE USER SUPPORT
Cambridgeshire County Council,03/04/2023,4.50,STGCOACH/CTYLINK,BUS LINES,Changing Futures & Projects,Housing First,
Cambridgeshire County Council,03/04/2023,4.90,GRAND ARCADE CAR PARK,GOVERNMENT SERVICES-NOT ELSEWHERE CLASSIFIED,Changing Futures & Projects,Housing First,PUBLIC TRANSPORT FARES
Cambridgeshire County Council,03/04/2023,5.60,TFL TRAVEL CH,"TRANSPRTN-SUBRBN & LOCAL COMTR PSNGR, INCL FERRIES",Internal Audit,Audit Division,PUBLIC TRANSPORT FARES
Cambridgeshire County Council,03/04/2023,5.80,PERRY STORES,"CANDY, NUT, CONFECTIONERY STORES",Outdoor Education (includes Grafham Water),Grafham Water Centre,
Cambridgeshire County Council,03/04/2023,5.80,BHI STATION TVM,PASSENGER RAILWAYS,Natural and Historic Environment,Historic Environment Team,PUBLIC TRANSPORT FARES
Cambridgeshire County Council,03/04/2023,7.75,BURNWELL NISA STORE,"GROCERY STORES, SUPERMARKETS",Outdoor Education (includes Grafham Water),Burwell House Residential Centre,CATERING PROVISIONS
Cambridgeshire County Council,03/04/2023,7.99,DISNEY PLUS,"CABLE, SATELLITE, OTHER PAY TELEVISION, RADIO SVCS",Children's Disability Service,RSS - Woodland Lodge,SUBSCRIPTIONS
Cambridgeshire County Council,03/04/2023,8.99,AMAZON PRIME Z87FK9HX5,DIRECT MARKETING-CONTINUITY/SUBSCRIPTION MERCHANTS,Virtual School,Virtual School for Care Experienced Children,
Cambridgeshire County Council,03/04/2023,9.35,CO-OP GROUP 171471,"GROCERY STORES, SUPERMARKETS",Outdoor Education (includes Grafham Water),Burwell House Residential Centre,CATERING PROVISIONS
Cambridgeshire County Council,03/04/2023,9.80,HABIS,"EATING PLACES, RESTAURANTS",Changing Futures & Projects,Housing First,STAFF SUBSISTENCE
Cambridgeshire County Council,03/04/2023,10.99,NETFLIX.COM,"CABLE, SATELLITE, OTHER PAY TELEVISION, RADIO SVCS",Children's Disability Service,RSS - Woodland Lodge,OTHER SERVICE USER SUPPORT
Cambridgeshire County Council,03/04/2023,10.99,AMZNMKTPLACE,MISCELLANEOUS AND SPECIALTY RETAIL STORES,Outdoor Education (includes Grafham Water),Grafham Water Centre,EDUCATIONAL MATERIALS
Cambridgeshire County Council,03/04/2023,11.85,TESCO STORES 3108,"GROCERY STORES, SUPERMARKETS",Children's Disability Service,RSS - London Road,CLEANING AND DOMESTIC SUPPLIES
Cambridgeshire County Council,03/04/2023,12.00,BIRMINGHAM INT CAR PAR,AUTOMOBILE PARKING LOTS AND GARAGES,Natural and Historic Environment,Historic Environment Team,OTHER TRAVEL EXPENSES
Cambridgeshire County Council,03/04/2023,12.15,AWS EMEA,BUSINESS SERVICES-NOT ELSEWHERE CLASSIFIED,ICT Service (Education),ICT Service Systems Development,
Cambridgeshire County Council,03/04/2023,12.59,PERRY STORES,"CANDY, NUT, CONFECTIONERY STORES",Outdoor Education (includes Grafham Water),Grafham Water Centre,
Cambridgeshire County Council,03/04/2023,12.98,AMZNMKTPLACE AMAZON.CO,MISCELLANEOUS AND SPECIALTY RETAIL STORES,Targeted Support Service - North,EH Child and Family Centre - Wisbech,
Cambridgeshire County Council,03/04/2023,14.70,CENTRAL CO-OP RETA,"GROCERY STORES, SUPERMARKETS",Targeted Support Service - North,EH Child and Family Centre - Hunts,CATERING PROVISIONS
Cambridgeshire County Council,03/04/2023,15.00,WEST NORTHAMPTONSHIRE,GOVERNMENT SERVICES-NOT ELSEWHERE CLASSIFIED,0-19 Organisation & Planning,Attendance and Behaviour,PROFESSIONAL FEES AND HIRED SERVICES
Cambridgeshire County Council,03/04/2023,15.00,WEST NORTHAMPTONSHIRE,GOVERNMENT SERVICES-NOT ELSEWHERE CLASSIFIED,0-19 Organisation & Planning,Attendance and Behaviour,PROFESSIONAL FEES AND HIRED SERVICES
Cambridgeshire County Council,03/04/2023,15.00,WEST NORTHAMPTONSHIRE,GOVERNMENT SERVICES-NOT ELSEWHERE CLASSIFIED,0-19 Organisation & Planning,Attendance and Behaviour,PROFESSIONAL FEES AND HIRED SERVICES
Cambridgeshire County Council,03/04/2023,15.00,WEST NORTHAMPTONSHIRE,GOVERNMENT SERVICES-NOT ELSEWHERE CLASSIFIED,0-19 Organisation & Planning,Attendance and Behaviour,PROFESSIONAL FEES AND HIRED SERVICES
Cambridgeshire County Council,03/04/2023,17.00,POST OFFICE COUNTER,POSTAL SERVICES-GOVERNMENT ONLY,Coroners,Coroners General,POSTAGE & CARRIAGE
Cambridgeshire County Council,03/04/2023,19.89,AMAZON.CO.UK WD13N61G5,DIRECT MARKETING-OTHER DIRECT MARKETERS/NOT ELSEW.,Cambridgeshire Skills,Cambridgeshire Skills Direct Delivery,
Cambridgeshire County Council,03/04/2023,21.55,TESCO STORES 3108,"GROCERY STORES, SUPERMARKETS",Children's Disability Service,RSS - London Road,BUILDING CLEANING
Cambridgeshire County Council,03/04/2023,22.01,AMZNMKTPLACE AMAZON.CO,MISCELLANEOUS AND SPECIALTY RETAIL STORES,0-19 Organisation & Planning,Education Safeguarding,GENERAL OFFICE EXPENSES & STATIONERY
Cambridgeshire County Council,03/04/2023,22.31,TESCO STORES 5292,"GROCERY STORES, SUPERMARKETS",Targeted Support Service - North,EH Child and Family Centre - Hunts,CATERING PROVISIONS
Cambridgeshire County Council,03/04/2023,22.68,AMZNMKTPLACE,MISCELLANEOUS AND SPECIALTY RETAIL STORES,Adoption,Regional Adoption Agency,GENERAL OFFICE EXPENSES & STATIONERY
Cambridgeshire County Council,03/04/2023,25.00,BRITISH HEART FOUNDATI,"ORGANIZATIONS, CHARITABLE AND SOCIAL SERVICES",Changing Futures & Projects,Housing First,OTHER SERVICE USER SUPPORT
Cambridgeshire County Council,03/04/2023,35.99,AMZNMKTPLACE AMAZON.CO,MISCELLANEOUS AND SPECIALTY RETAIL STORES,Domestic Abuse and Sexual Violence Service,DLUHC Grant,
Cambridgeshire County Council,03/04/2023,36.01,WWW.PARENTA.COM,PROFESSIONAL SERVICES-NOT ELSEWHERE CLASSIFIED,Early Years Service,Oasis Nursery,SPECIALIST SUPPLIES AND MATERIALS
Cambridgeshire County Council,03/04/2023,37.00,PANTHER TAXIS LTD,LIMOUSINES AND TAXICABS,Family Safeguarding East,Family Safeguarding East & South Cambs and Cambridge,
Cambridgeshire County Council,03/04/2023,37.89,AMZNMKTPLACE AMAZON.CO,MISCELLANEOUS AND SPECIALTY RETAIL STORES,Youth Offending Service,Safer Relationships Team,
Cambridgeshire County Council,03/04/2023,40.72,TESCO STORES 2470,"GROCERY STORES, SUPERMARKETS",Family Safeguarding East,Adolescent Team South,LEAVING CARE GRANTS
Cambridgeshire County Council,03/04/2023,41.22,AMZNMKTPLACE,MISCELLANEOUS AND SPECIALTY RETAIL STORES,Outdoor Education (includes Grafham Water),Grafham Water Centre,EDUCATIONAL MATERIALS
Cambridgeshire County Council,03/04/2023,46.50,PANTHER TAXIS LTD,LIMOUSINES AND TAXICABS,Children's Disability Service,RSS - Woodland Lodge,PUBLIC TRANSPORT FARES
Cambridgeshire County Council,03/04/2023,46.50,PANTHER TAXIS LTD,LIMOUSINES AND TAXICABS,Children's Disability Service,RSS - Woodland Lodge,PUBLIC TRANSPORT FARES
Cambridgeshire County Council,03/04/2023,47.10,PANTHER TAXIS LTD,LIMOUSINES AND TAXICABS,Children's Disability Service,RSS - Woodland Lodge,PUBLIC TRANSPORT FARES
Cambridgeshire County Council,03/04/2023,47.10,PANTHER TAXIS LTD,LIMOUSINES AND TAXICABS,Children's Disability Service,RSS - Woodland Lodge,PUBLIC TRANSPORT FARES
Cambridgeshire County Council,03/04/2023,47.60,GREEN MAN,"EATING PLACES, RESTAURANTS",Changing Futures & Projects,Housing First,OTHER SERVICE USER SUPPORT
Cambridgeshire County Council,03/04/2023,48.00,PANTHER TAXIS LTD,LIMOUSINES AND TAXICABS,Children's Disability Service,RSS - Woodland Lodge,PUBLIC TRANSPORT FARES
Cambridgeshire County Council,03/04/2023,48.10,PANTHER TAXIS LTD,LIMOUSINES AND TAXICABS,Children's Disability Service,RSS - Woodland Lodge,PUBLIC TRANSPORT FARES
Cambridgeshire County Council,03/04/2023,53.00,WEST NORTHAMPTONSHIRE,GOVERNMENT SERVICES-NOT ELSEWHERE CLASSIFIED,Schools,Pilgrim Pathways School,RECRUITMENT COSTS
Cambridgeshire County Council,03/04/2023,53.30,OCADO,"GROCERY STORES, SUPERMARKETS",Outdoor Education (includes Grafham Water),Grafham Water Centre,
Cambridgeshire County Council,03/04/2023,55.16,TESCO STORES 3108,"GROCERY STORES, SUPERMARKETS",Children's Disability Service,RSS - London Road,CATERING PROVISIONS
Cambridgeshire County Council,03/04/2023,56.21,AWS EMEA,BUSINESS SERVICES-NOT ELSEWHERE CLASSIFIED,IT & Digital Service,Hardware & Infrastructure,COMP SOFTWARE-ANNUAL LICENCE AGREEMENT
Cambridgeshire County Council,03/04/2023,63.70,ONLINE JOB ADS INDEED,"EMPLOYMENT AGENCIES, TEMPORARY HELP SERVICES",Children's Disability Service,Head of RSS,RECRUITMENT ADVERTISING
Cambridgeshire County Council,03/04/2023,70.42,AMZNMKTPLACE,MISCELLANEOUS AND SPECIALTY RETAIL STORES,Cambridgeshire Music,Cambs Music Business Development,GENERAL OFFICE EXPENSES & STATIONERY
Cambridgeshire County Council,03/04/2023,77.90,AWS EMEA,BUSINESS SERVICES-NOT ELSEWHERE CLASSIFIED,IT & Digital Service,Hardware & Infrastructure,COMP SOFTWARE-ANNUAL LICENCE AGREEMENT
Cambridgeshire County Council,03/04/2023,79.95,HOLIDAY PAYMENT AVR,TRAVEL AGENCIES AND TOUR OPERATORS,Family Safeguarding East,Adolescent Team South,PARENTS VISITING EXPENSES
Cambridgeshire County Council,03/04/2023,81.01,TESCO STORES 2694,"GROCERY STORES, SUPERMARKETS",Children's Disability Service,RSS - Woodland Lodge,CATERING PROVISIONS
Cambridgeshire County Council,03/04/2023,84.00,PREMIER INN,PREMIER INN,"Children, Education and Families Directorate","Children, Education and Families Directorate",PARENTS VISITING EXPENSES
Cambridgeshire County Council,03/04/2023,88.00,HOLIDAY INN,"LODGING-HOTELS,MOTELS,RESORTS-NOT CLASSIFIED","Children, Education and Families Directorate","Children, Education and Families Directorate",
Cambridgeshire County Council,03/04/2023,88.80,TESCO STORES,"GROCERY STORES, SUPERMARKETS",Children's Disability Service,RSS - Haviland Way,BUILDING CLEANING
Cambridgeshire County Council,03/04/2023,102.09,AMZNMKTPLACE,MISCELLANEOUS AND SPECIALTY RETAIL STORES,Cambridgeshire Skills,Cambridgeshire Skills Direct Delivery,
Cambridgeshire County Council,03/04/2023,108.27,TESCO STORES 5657,"GROCERY STORES, SUPERMARKETS",LD - In House Provider Services,No. 20 Alder Close Respite,CATERING PROVISIONS
Cambridgeshire County Council,03/04/2023,110.85,ASDA GROCERIES ONLINE,"GROCERY STORES, SUPERMARKETS",LD - In House Provider Services,Horizon,
Cambridgeshire County Council,03/04/2023,120.00,IRCAS,FINES,Family Safeguarding East,Cambs City Children's Team 1,GRANTS&SUPPORT FOR OTHER SERVICE USERS
Cambridgeshire County Council,03/04/2023,132.28,SP ALPKIT,SPORTING GOODS STORES,Outdoor Education (includes Grafham Water),Grafham Water Centre,
Cambridgeshire County Council,03/04/2023,144.69,TRAINLINE.COM,PASSENGER RAILWAYS,Corporate Parenting,North Care Leaving Team 2,CAR MILEAGE AND ALLOWANCES - OTHER
Cambridgeshire County Council,03/04/2023,176.02,TESCO STORES 2555,"GROCERY STORES, SUPERMARKETS",LD - In House Provider Services,40 & 44 Russell Street,CATERING PROVISIONS
Cambridgeshire County Council,03/04/2023,210.00,WWW.ARGOS.CO.UK,DEPARTMENT STORES,Targeted Support Service - North,"EH St Neots, RS&Y District Team � Youth Offer",SPECIALIST EQUIPMENT FOR SERVICE DELIV
Cambridgeshire County Council,03/04/2023,221.08,CHARTERED INSURANCE IN,SCHOOLS & EDUCATIONAL SVC-NOT ELSEWHERE CLASSIFIED,Shared Services,Insurance Section,
Cambridgeshire County Council,03/04/2023,230.00,THE PORTERHOUSE,"BAR,LOUNGE,DISCO,NIGHTCLUB,TAVERN-ALCOHOLIC DRINKS",Corporate Parenting,North Care Leaving Team 2,GRANTS&SUPPORT FOR OTHER SERVICE USERS
Cambridgeshire County Council,03/04/2023,275.60,PANTHER TAXIS_CAMBRIDG,LIMOUSINES AND TAXICABS,Children's Disability Service,RSS - Woodland Lodge,PUBLIC TRANSPORT FARES
Cambridgeshire County Council,03/04/2023,356.00,AMAZON.CO.UK I53XW3VC5,DIRECT MARKETING-OTHER DIRECT MARKETERS/NOT ELSEW.,Integrated Front Door,IFD - Multi-Agency Safeguarding Hub (MASH),
Cambridgeshire County Council,04/04/2023,-14.99,AMZ AMAZON.CO.UK,DIRECT MARKETING-OTHER DIRECT MARKETERS/NOT ELSEW.,"Property, Facilities Management and Building Compliance",Shire Hall Area,
Cambridgeshire County Council,04/04/2023,-7.50,GEN REGISTER OFFICE,GOVERNMENT SERVICES-NOT ELSEWHERE CLASSIFIED,Corporate Parenting,South Child Looked After Team 2,BOOKS AND MULTIMEDIA SUPPLIES
Cambridgeshire County Council,04/04/2023,1.67,SAINSBURYS S/MKTS,"GROCERY STORES, SUPERMARKETS",LD - In House Provider Services,6 St Lukes Close (Respite),SPECIALIST SUPPLIES AND MATERIALS
Cambridgeshire County Council,04/04/2023,4.50,CO-OP GROUP 017061,"GROCERY STORES, SUPERMARKETS",Targeted Support Service - South,EH Child and Family Centre - South Cambs,
Cambridgeshire County Council,04/04/2023,4.95,TESCO STORES 5657,"GROCERY STORES, SUPERMARKETS",LD - In House Provider Services,No. 20 Alder Close Respite,CATERING PROVISIONS
Cambridgeshire County Council,04/04/2023,5.50,POUNDLAND LTD 1364,DISCOUNT STORES,Targeted Support Service - North,EH Child and Family Centre - Hunts,EDUCATIONAL MATERIALS
Cambridgeshire County Council,04/04/2023,7.35,WAITROSE 108,"GROCERY STORES, SUPERMARKETS",Targeted Support Service - North,EH Child and Family Centre - Hunts,EDUCATIONAL MATERIALS
Cambridgeshire County Council,04/04/2023,8.18,ASDA STORES,"GROCERY STORES, SUPERMARKETS",Early Years Service,Oasis Nursery,EDUCATIONAL MATERIALS
Cambridgeshire County Council,04/04/2023,8.59,AMAZON.CO.UK 7J8NC2QM5,DIRECT MARKETING-OTHER DIRECT MARKETERS/NOT ELSEW.,Safeguarding and Quality Assurance,Childrens Participation,SPECIALIST EQUIPMENT FOR SERVICE DELIV
Cambridgeshire County Council,04/04/2023,10.14,HISTON POST OFFICE AND,POSTAL SERVICES-GOVERNMENT ONLY,Cambridgeshire Music,Cambs Music Business Development,GENERAL OFFICE EXPENSES & STATIONERY
Cambridgeshire County Council,04/04/2023,13.00,COMPANIESHOUSE WEB FIL,GOVERNMENT SERVICES-NOT ELSEWHERE CLASSIFIED,Professional Finance,CCC Finance,PAYMENTS TO GOVERNMENT DEPARTMENTS
Cambridgeshire County Council,04/04/2023,15.00,WEST NORTHAMPTONSHIRE,GOVERNMENT SERVICES-NOT ELSEWHERE CLASSIFIED,0-19 Organisation & Planning,Attendance and Behaviour,PROFESSIONAL FEES AND HIRED SERVICES
Cambridgeshire County Council,04/04/2023,15.00,WEST NORTHAMPTONSHIRE,GOVERNMENT SERVICES-NOT ELSEWHERE CLASSIFIED,0-19 Organisation & Planning,Attendance and Behaviour,PROFESSIONAL FEES AND HIRED SERVICES
Cambridgeshire County Council,04/04/2023,15.00,WEST NORTHAMPTONSHIRE,GOVERNMENT SERVICES-NOT ELSEWHERE CLASSIFIED,0-19 Organisation & Planning,Attendance and Behaviour,PROFESSIONAL FEES AND HIRED SERVICES
Cambridgeshire County Council,04/04/2023,15.00,WEST NORTHAMPTONSHIRE,GOVERNMENT SERVICES-NOT ELSEWHERE CLASSIFIED,0-19 Organisation & Planning,Attendance and Behaviour,PROFESSIONAL FEES AND HIRED SERVICES
Cambridgeshire County Council,04/04/2023,17.44,AMAZON.CO.UK 118RN1U74,DIRECT MARKETING-OTHER DIRECT MARKETERS/NOT ELSEW.,Targeted Support Service - South,EH East Cambridgeshire District,SPECIALIST SUPPLIES AND MATERIALS
Cambridgeshire County Council,04/04/2023,20.95,TESCO STORES 3108,"GROCERY STORES, SUPERMARKETS",Targeted Support Service - South,EH Child and Family Centre - South Cambs,
Cambridgeshire County Council,04/04/2023,29.24,TRAINLINE,PASSENGER RAILWAYS,Professional Finance,Cipfa Trainees,PUBLIC TRANSPORT FARES
Cambridgeshire County Council,04/04/2023,31.16,EBAY O 19-09896-60604,DEPARTMENT STORES,Cambridgeshire Music,Cambs Music Business Development,
Cambridgeshire County Council,04/04/2023,36.40,CENTRAL ENGLAND CO OP,"GROCERY STORES, SUPERMARKETS",Changing Futures & Projects,Housing First,STAFF TRAINING & DEVELOPMENT
Cambridgeshire County Council,04/04/2023,40.49,EURO CAR PARTS,"AUTOMOTIVE PARTS, ACCESSORIES STORES",Park & Ride,Park and Ride Admin,VEHICLE REPAIRS AND MAINTENANCE
Cambridgeshire County Council,04/04/2023,57.59,OCADO,"GROCERY STORES, SUPERMARKETS",Outdoor Education (includes Grafham Water),Grafham Water Centre,CATERING PROVISIONS
Cambridgeshire County Council,04/04/2023,59.98,WWW.WOBURNSAFARI.CO.UK,"AQUARIUMS, DOLPHINARIUMS, AND SEAQUARIUMS",Children's Disability Service,RSS - London Road,OTHER SERVICE USER SUPPORT
Cambridgeshire County Council,04/04/2023,60.00,VOUCHER EXPRESS,BUSINESS SERVICES-NOT ELSEWHERE CLASSIFIED,Family Safeguarding West,Family Safeguarding Hunts and Fenland,ASYLUM SEEKERS
Cambridgeshire County Council,04/04/2023,75.80,TRAINLINE,PASSENGER RAILWAYS,IT & Digital Service,Hardware & Infrastructure,
Cambridgeshire County Council,04/04/2023,75.80,TRAINLINE.COM,PASSENGER RAILWAYS,IT & Digital Service,Hardware & Infrastructure,
Cambridgeshire County Council,04/04/2023,89.98,AMAZON.CO.UK TN0G477Z5,DIRECT MARKETING-OTHER DIRECT MARKETERS/NOT ELSEW.,Fostering & Supervised Contact Services,Fostering Support and Supervision,SUPPORT AND GRANTS TO FOSTER CARERS
Cambridgeshire County Council,04/04/2023,102.00,JUST GLOVES,DENTAL/LAB/MED/OPHTHALMIC HOSP EQUIP & SUPPLIES,Park & Ride,Park and Ride Admin,PROTECTIVE CLOTHING
Cambridgeshire County Council,04/04/2023,117.25,TESCO STORES,"GROCERY STORES, SUPERMARKETS",Children's Disability Service,RSS - Haviland Way,CATERING PROVISIONS
Cambridgeshire County Council,04/04/2023,142.47,WAITROSE 651,"GROCERY STORES, SUPERMARKETS",Changing Futures & Projects,Housing First,STAFF SUBSISTENCE
Cambridgeshire County Council,04/04/2023,225.00,IOSH SERVICES LTD,SCHOOLS & EDUCATIONAL SVC-NOT ELSEWHERE CLASSIFIED,"Health, Safety & Wellbeing",HR HSW,
Cambridgeshire County Council,04/04/2023,338.00,CURRYS ONLINE,ELECTRONIC SALES,Park & Ride,Park and Ride Admin,COMPUTER HARDWARE - PURCHASE
Cambridgeshire County Council,05/04/2023,-48.25,AMZNMKTPLACE AMAZON.CO,MISCELLANEOUS AND SPECIALTY RETAIL STORES,Corporate Parenting,South Child Looked After Team 2,LEAVING CARE GRANTS
Cambridgeshire County Council,05/04/2023,-7.99,AMZ BELLESTYLE EU,MISCELLANEOUS AND SPECIALTY RETAIL STORES,Children's Disability Service,Head of RSS,"FIXTURES, FITTINGS AND FURNISHINGS"
Cambridgeshire County Council,05/04/2023,-7.99,AMZ BELLESTYLE EU,MISCELLANEOUS AND SPECIALTY RETAIL STORES,Children's Disability Service,Head of RSS,"FIXTURES, FITTINGS AND FURNISHINGS"
Cambridgeshire County Council,05/04/2023,-7.50,GEN REGISTER OFFICE,GOVERNMENT SERVICES-NOT ELSEWHERE CLASSIFIED,Family Safeguarding East,East Cambs Children's Team 1,GENERAL OFFICE EXPENSES & STATIONERY
Cambridgeshire County Council,05/04/2023,1.20,CO OP GROUP FOOD,"GROCERY STORES, SUPERMARKETS",Outdoor Education (includes Grafham Water),Burwell House Residential Centre,
Cambridgeshire County Council,05/04/2023,3.30,ASDA STORES 4857,"GROCERY STORES, SUPERMARKETS",Outdoor Education (includes Grafham Water),Burwell House Residential Centre,
Cambridgeshire County Council,05/04/2023,5.59,AMZNMKTPLACE,MISCELLANEOUS AND SPECIALTY RETAIL STORES,Children's Disability Service,RSS - London Road,CLEANING AND DOMESTIC SUPPLIES
Cambridgeshire County Council,05/04/2023,6.23,AMZNMKTPLACE,MISCELLANEOUS AND SPECIALTY RETAIL STORES,Children's Disability Service,RSS - London Road,CLEANING AND DOMESTIC SUPPLIES
Cambridgeshire County Council,05/04/2023,6.50,TFL TRAVEL CH,"TRANSPRTN-SUBRBN & LOCAL COMTR PSNGR, INCL FERRIES",Professional Finance,Cipfa Trainees,PUBLIC TRANSPORT FARES
Cambridgeshire County Council,05/04/2023,8.25,WM MORRISONS STORE,"GROCERY STORES, SUPERMARKETS",LD - In House Provider Services,6 St Lukes Close (Respite),
Cambridgeshire County Council,05/04/2023,14.99,AMAZON.CO.UK UD11F3NP5,DIRECT MARKETING-OTHER DIRECT MARKETERS/NOT ELSEW.,LD - In House Provider Services,No. 20 Alder Close Respite,CATERING PROVISIONS
Cambridgeshire County Council,05/04/2023,15.00,WEST NORTHAMPTONSHIRE,GOVERNMENT SERVICES-NOT ELSEWHERE CLASSIFIED,0-19 Organisation & Planning,Attendance and Behaviour,PROFESSIONAL FEES AND HIRED SERVICES
Cambridgeshire County Council,05/04/2023,16.59,AMZNMKTPLACE,MISCELLANEOUS AND SPECIALTY RETAIL STORES,Children's Disability Service,RSS - Haviland Way,GENERAL OFFICE EXPENSES & STATIONERY
Cambridgeshire County Council,05/04/2023,17.99,AMZNMKTPLACE AMAZON.CO,MISCELLANEOUS AND SPECIALTY RETAIL STORES,LD - In House Provider Services,No. 20 Alder Close Respite,CATERING PROVISIONS
Cambridgeshire County Council,05/04/2023,22.75,MACKAYS OF CAMBS,"BUILDING MATERIALS, LUMBER STORES",Youth Offending Service,YOT - High Risk and Deter,OFFENDERS SUPPORT
Cambridgeshire County Council,05/04/2023,22.99,AMZNMKTPLACE,MISCELLANEOUS AND SPECIALTY RETAIL STORES,Children's Disability Service,RSS - London Road,BUILDING CLEANING
Cambridgeshire County Council,05/04/2023,23.00,AMZNMKTPLACE,MISCELLANEOUS AND SPECIALTY RETAIL STORES,Children's Disability Service,RSS - London Road,BUILDING CLEANING
Cambridgeshire County Council,05/04/2023,23.95,WWW.ARGOS.CO.UK,DEPARTMENT STORES,Targeted Support Service - South,EH Child and Family Centre - South Cambs,CLEANING AND DOMESTIC SUPPLIES
Cambridgeshire County Council,05/04/2023,25.61,WM MORRISONS STORE,"GROCERY STORES, SUPERMARKETS",Targeted Support Service - North,EH Child and Family Centre - Wisbech,EDUCATIONAL MATERIALS
Cambridgeshire County Council,05/04/2023,25.68,TRAINLINE,PASSENGER RAILWAYS,Professional Finance,Cipfa Trainees,PUBLIC TRANSPORT FARES
Cambridgeshire County Council,05/04/2023,26.88,TESCO STORES 3108,"GROCERY STORES, SUPERMARKETS",Children's Disability Service,RSS - London Road,CATERING PROVISIONS
Cambridgeshire County Council,05/04/2023,27.75,TESCO STORES 2065,"GROCERY STORES, SUPERMARKETS",Outdoor Education (includes Grafham Water),Grafham Water Centre,
Cambridgeshire County Council,05/04/2023,28.40,PANTHER TAXIS LTD,LIMOUSINES AND TAXICABS,Performance & Strategic Development,Adults Central Business Support,
Cambridgeshire County Council,05/04/2023,28.40,PANTHER TAXIS LTD,LIMOUSINES AND TAXICABS,Performance & Strategic Development,Adults Central Business Support,
Cambridgeshire County Council,05/04/2023,28.40,PANTHER TAXIS LTD,LIMOUSINES AND TAXICABS,Performance & Strategic Development,Adults Central Business Support,
Cambridgeshire County Council,05/04/2023,28.40,PANTHER TAXIS LTD,LIMOUSINES AND TAXICABS,Performance & Strategic Development,Adults Central Business Support,
Cambridgeshire County Council,05/04/2023,31.92,BROOKSIDE NURSERY,LAWN AND GARDEN SUPPLY STORES,LD - In House Provider Services,Hunts Community Centre,
Cambridgeshire County Council,05/04/2023,33.75,POST OFFICE COUNTER,POSTAL SERVICES-GOVERNMENT ONLY,Coroners,Coroners General,POSTAGE & CARRIAGE
Cambridgeshire County Council,05/04/2023,33.99,AMZNMKTPLACE,MISCELLANEOUS AND SPECIALTY RETAIL STORES,Children's Disability Service,RSS - Haviland Way,GENERAL OFFICE EXPENSES & STATIONERY
Cambridgeshire County Council,05/04/2023,34.40,RIDGEONS NORMAN WAY,"BUILDING MATERIALS, LUMBER STORES",Youth Offending Service,YOT - High Risk and Deter,OFFENDERS SUPPORT
Cambridgeshire County Council,05/04/2023,36.45,CROSS COUNTRY TRAINS,PASSENGER RAILWAYS,Professional Finance,Cipfa Trainees,PUBLIC TRANSPORT FARES
Cambridgeshire County Council,05/04/2023,39.95,TSGN,PASSENGER RAILWAYS,Internal Audit,Audit Division,PUBLIC TRANSPORT FARES
Cambridgeshire County Council,05/04/2023,45.00,TESCO STORES 2065,"GROCERY STORES, SUPERMARKETS",Outdoor Education (includes Grafham Water),Grafham Water Centre,
Cambridgeshire County Council,05/04/2023,46.70,PANTHER TAXIS LTD,LIMOUSINES AND TAXICABS,Children's Disability Service,RSS - Woodland Lodge,PUBLIC TRANSPORT FARES
Cambridgeshire County Council,05/04/2023,60.65,WAITROSE 651,"GROCERY STORES, SUPERMARKETS",Changing Futures & Projects,Housing First,STAFF SUBSISTENCE
Cambridgeshire County Council,05/04/2023,119.99,AMZNMKTPLACE,MISCELLANEOUS AND SPECIALTY RETAIL STORES,Changing Futures & Projects,Housing First,OTHER SERVICE USER SUPPORT
Cambridgeshire County Council,05/04/2023,135.34,EB  MODESHIFT TRAVELWI,BUSINESS SERVICES-NOT ELSEWHERE CLASSIFIED,Planning and Sustainable Growth,Smart Journeys,STAFF TRAINING & DEVELOPMENT
Cambridgeshire County Council,05/04/2023,166.81,LINKEDIN     914835824,ADVERTISING SERVICES,SEND Specialist Services,Sensory Support Team (0-25),EDUCATIONAL EQUIPMENT
Cambridgeshire County Council,05/04/2023,213.30,PEARSON EDUCATION LTD.,SCHOOLS & EDUCATIONAL SVC-NOT ELSEWHERE CLASSIFIED,SEND Specialist Services,SEND Specialist Services - Education Psychology,EDUCATIONAL MATERIALS
Cambridgeshire County Council,05/04/2023,271.56,EB  MODESHIFT TRAINING,BUSINESS SERVICES-NOT ELSEWHERE CLASSIFIED,Planning and Sustainable Growth,Smart Journeys,STAFF TRAINING & DEVELOPMENT
Cambridgeshire County Council,06/04/2023,2.25,ROYAL MAIL GROUP LTD,POSTAL SERVICES-GOVERNMENT ONLY,Corporate Parenting,South Child Looked After Team 2,POSTAGE & CARRIAGE
Cambridgeshire County Council,06/04/2023,2.60,ROYAL MAIL GROUP LTD,POSTAL SERVICES-GOVERNMENT ONLY,Corporate Parenting,South Child Looked After Team 2,POSTAGE & CARRIAGE
Cambridgeshire County Council,06/04/2023,3.35,AMZNMKTPLACE,MISCELLANEOUS AND SPECIALTY RETAIL STORES,Adoption,Regional Adoption Agency,GENERAL OFFICE EXPENSES & STATIONERY
Cambridgeshire County Council,06/04/2023,4.40,THE ALE HOUSE,"BAR,LOUNGE,DISCO,NIGHTCLUB,TAVERN-ALCOHOLIC DRINKS",Changing Futures & Projects,Housing First,OTHER SERVICE USER SUPPORT
Cambridgeshire County Council,06/04/2023,4.50,GREGGS PLC,"EATING PLACES, RESTAURANTS",Changing Futures & Projects,Housing First,OTHER SERVICE USER SUPPORT
Cambridgeshire County Council,06/04/2023,6.50,ME GROUP INTERNATIONAL,"PHOTO DEVELOPING, PHOTOFINISHING LABORATORIES",Changing Futures & Projects,Housing First,OTHER SERVICE USER SUPPORT
Cambridgeshire County Council,06/04/2023,7.10,GTR PARKING CONNECT EC,AUTOMOBILE PARKING LOTS AND GARAGES,Professional Finance,Cipfa Trainees,PUBLIC TRANSPORT FARES
Cambridgeshire County Council,06/04/2023,7.50,XTREME360,RECREATION SERVICES (NOT ELSEWHERE CLASSIFIED),Children's Disability Service,RSS - Woodland Lodge,OTHER SERVICE USER SUPPORT
Cambridgeshire County Council,06/04/2023,10.00,1PMOBILE,TELECOMMUNICATION EQUIPMENT INCL TELEPHONE SALES,Family Safeguarding East,Family Safeguarding East & South Cambs and Cambridge,GRANTS&SUPPORT FOR OTHER SERVICE USERS
Cambridgeshire County Council,06/04/2023,10.45,TESCO STORES 6111,"GROCERY STORES, SUPERMARKETS",Changing Futures & Projects,Housing First,OTHER SERVICE USER SUPPORT
Cambridgeshire County Council,06/04/2023,10.99,AMZNMKTPLACE,MISCELLANEOUS AND SPECIALTY RETAIL STORES,LD - In House Provider Services,No. 20 Alder Close Respite,CATERING PROVISIONS
Cambridgeshire County Council,06/04/2023,13.00,ME GROUP INTERNATIONAL,"PHOTO DEVELOPING, PHOTOFINISHING LABORATORIES",Changing Futures & Projects,Housing First,OTHER SERVICE USER SUPPORT
Cambridgeshire County Council,06/04/2023,15.00,WEST NORTHAMPTONSHIRE,GOVERNMENT SERVICES-NOT ELSEWHERE CLASSIFIED,0-19 Organisation & Planning,Attendance and Behaviour,PROFESSIONAL FEES AND HIRED SERVICES
Cambridgeshire County Council,06/04/2023,15.50,WWW.BETTER.ORG.UK,"ATHLTIC FIELDS,COMMRCL SPRT,SPRT CLBS,SPRT PROMOTR",Children's Disability Service,RSS - London Road,OTHER SERVICE USER SUPPORT
Cambridgeshire County Council,06/04/2023,24.80,TESCO STORES 5292,"GROCERY STORES, SUPERMARKETS",Changing Futures & Projects,Housing First,OTHER SERVICE USER SUPPORT
Cambridgeshire County Council,06/04/2023,30.00,TESCO GIFT CARD,"GROCERY STORES, SUPERMARKETS",Corporate Parenting,North Care Leaving Team 2,SPECIALIST EQUIPMENT FOR SERVICE DELIV
Cambridgeshire County Council,06/04/2023,34.76,LIDL GB MARCH,"GROCERY STORES, SUPERMARKETS",LD - In House Provider Services,No. 20 Alder Close Respite,CATERING PROVISIONS
Cambridgeshire County Council,06/04/2023,34.82,CINEWORLD,MOTION PICTURE THEATERS,Children's Disability Service,RSS - Woodland Lodge,OTHER SERVICE USER SUPPORT
Cambridgeshire County Council,06/04/2023,35.00,GEN REGISTER OFFICE,GOVERNMENT SERVICES-NOT ELSEWHERE CLASSIFIED,Corporate Parenting,North Care Leaving Team 2,GRANTS&SUPPORT FOR OTHER SERVICE USERS
Cambridgeshire County Council,06/04/2023,39.99,AMZNMKTPLACE,MISCELLANEOUS AND SPECIALTY RETAIL STORES,Outdoor Education (includes Grafham Water),Grafham Water Centre,EDUCATIONAL MATERIALS
Cambridgeshire County Council,06/04/2023,40.50,TSGN,PASSENGER RAILWAYS,Professional Finance,Cipfa Trainees,PUBLIC TRANSPORT FARES
Cambridgeshire County Council,06/04/2023,43.74,VISTAPRINT,BUSINESS SERVICES-NOT ELSEWHERE CLASSIFIED,Shorter Term Support and Maximising Independence,Reablement - Management,
Cambridgeshire County Council,06/04/2023,45.95,TRAINLINE,PASSENGER RAILWAYS,Professional Finance,Cipfa Trainees,PUBLIC TRANSPORT FARES
Cambridgeshire County Council,06/04/2023,46.60,PANTHER TAXIS_CAMBRIDG,LIMOUSINES AND TAXICABS,Children's Disability Service,RSS - Woodland Lodge,PUBLIC TRANSPORT FARES
Cambridgeshire County Council,06/04/2023,46.70,PANTHER TAXIS_CAMBRIDG,LIMOUSINES AND TAXICABS,Children's Disability Service,RSS - Woodland Lodge,PUBLIC TRANSPORT FARES
Cambridgeshire County Council,06/04/2023,53.00,WEST NORTHAMPTONSHIRE,GOVERNMENT SERVICES-NOT ELSEWHERE CLASSIFIED,0-19 Organisation & Planning,Attendance and Behaviour,PROFESSIONAL FEES AND HIRED SERVICES
Cambridgeshire County Council,06/04/2023,58.75,CAPT CHARITY,"ASSOCIATIONS-CIVIC, SOCIAL, AND FRATERNAL",Targeted Support Service - North,EH Child and Family Centre - Wisbech,EDUCATIONAL MATERIALS
Cambridgeshire County Council,06/04/2023,69.00,B&M 292 - MARCH,MISCELLANEOUS GENERAL MERCHANDISE,LD - In House Provider Services,No. 20 Alder Close Respite,CATERING PROVISIONS
Cambridgeshire County Council,06/04/2023,70.00,GRUMBOLDS LTD,SCHOOLS & EDUCATIONAL SVC-NOT ELSEWHERE CLASSIFIED,Learning & Development,Corporate Development,STAFF TRAINING & DEVELOPMENT
Cambridgeshire County Council,06/04/2023,80.40,TESCO STORES 2694,"GROCERY STORES, SUPERMARKETS",Children's Disability Service,RSS - Woodland Lodge,CATERING PROVISIONS
Cambridgeshire County Council,06/04/2023,113.64,TESCO STORES 3108,"GROCERY STORES, SUPERMARKETS",Children's Disability Service,RSS - London Road,CATERING PROVISIONS
Cambridgeshire County Council,06/04/2023,136.32,TESCO STORES 2694,"GROCERY STORES, SUPERMARKETS",LD - In House Provider Services,6 St Lukes Close (Respite),
Cambridgeshire County Council,06/04/2023,224.40,PANTHER TAXIS_CAMBRIDG,LIMOUSINES AND TAXICABS,Children's Disability Service,RSS - Woodland Lodge,PUBLIC TRANSPORT FARES
Cambridgeshire County Council,07/04/2023,-129.90,AMZ SENSORY DIRECT,MISCELLANEOUS AND SPECIALTY RETAIL STORES,Children's Disability Service,Head of RSS,"FIXTURES, FITTINGS AND FURNISHINGS"
Cambridgeshire County Council,07/04/2023,-29.99,AMZ MARBLE GENIUS,MISCELLANEOUS AND SPECIALTY RETAIL STORES,Children's Disability Service,Head of RSS,"FIXTURES, FITTINGS AND FURNISHINGS"
Cambridgeshire County Council,07/04/2023,2.20,TESCO STORES 4793,"GROCERY STORES, SUPERMARKETS",Changing Futures & Projects,Housing First,OTHER SERVICE USER SUPPORT
Cambridgeshire County Council,07/04/2023,2.60,ROYAL MAIL GROUP LTD,POSTAL SERVICES-GOVERNMENT ONLY,Corporate Parenting,South Child Looked After Team 2,POSTAGE & CARRIAGE
Cambridgeshire County Council,07/04/2023,3.47,AMZNMKTPLACE,MISCELLANEOUS AND SPECIALTY RETAIL STORES,Adoption,Regional Adoption Agency,GENERAL OFFICE EXPENSES & STATIONERY
Cambridgeshire County Council,07/04/2023,3.47,AMZNMKTPLACE,MISCELLANEOUS AND SPECIALTY RETAIL STORES,Adoption,Regional Adoption Agency,GENERAL OFFICE EXPENSES & STATIONERY
Cambridgeshire County Council,07/04/2023,3.48,AMZNMKTPLACE,MISCELLANEOUS AND SPECIALTY RETAIL STORES,Adoption,Regional Adoption Agency,GENERAL OFFICE EXPENSES & STATIONERY
Cambridgeshire County Council,07/04/2023,3.80,CO-OP GROUP 171471,"GROCERY STORES, SUPERMARKETS",Outdoor Education (includes Grafham Water),Burwell House Residential Centre,CATERING PROVISIONS
Cambridgeshire County Council,07/04/2023,3.98,AMZNMKTPLACE AMAZON.CO,MISCELLANEOUS AND SPECIALTY RETAIL STORES,Outdoor Education (includes Grafham Water),Grafham Water Centre,
Cambridgeshire County Council,07/04/2023,4.98,WWW.SCREWFIX.COM,"BUILDING MATERIALS, LUMBER STORES","Property, Facilities Management and Building Compliance",Shire Hall Area,BUILDING REPAIR AND MAINTENANCE
Cambridgeshire County Council,07/04/2023,5.50,TFL TRAVEL CH,"TRANSPRTN-SUBRBN & LOCAL COMTR PSNGR, INCL FERRIES",Internal Audit,Audit Division,PUBLIC TRANSPORT FARES
Cambridgeshire County Council,07/04/2023,5.60,TFL TRAVEL CH,"TRANSPRTN-SUBRBN & LOCAL COMTR PSNGR, INCL FERRIES",Internal Audit,Audit Division,PUBLIC TRANSPORT FARES
Cambridgeshire County Council,07/04/2023,6.19,MCDONALDS,FAST FOOD RESTAURANTS,Changing Futures & Projects,Housing First,OTHER SERVICE USER SUPPORT
Cambridgeshire County Council,07/04/2023,6.69,AMZNMKTPLACE,MISCELLANEOUS AND SPECIALTY RETAIL STORES,Adoption,Regional Adoption Agency,GENERAL OFFICE EXPENSES & STATIONERY
Cambridgeshire County Council,07/04/2023,6.79,AMZNMKTPLACE,MISCELLANEOUS AND SPECIALTY RETAIL STORES,Children's Disability Service,RSS - London Road,FURNITURE
Cambridgeshire County Council,07/04/2023,6.99,AMZNMKTPLACE AMAZON.CO,MISCELLANEOUS AND SPECIALTY RETAIL STORES,Children's Disability Service,RSS - Woodland Lodge,FURNITURE
Cambridgeshire County Council,07/04/2023,7.10,GTR PARKING CONNECT EC,AUTOMOBILE PARKING LOTS AND GARAGES,Professional Finance,Cipfa Trainees,PUBLIC TRANSPORT FARES
Cambridgeshire County Council,07/04/2023,8.58,WH SMITH HUNTINGDON,NEWS DEALERS AND NEWSSTANDS,Changing Futures & Projects,Housing First,
Cambridgeshire County Council,07/04/2023,8.99,AMAZON PRIME 3K0TH4NQ5,DIRECT MARKETING-CONTINUITY/SUBSCRIPTION MERCHANTS,Children's Disability Service,RSS - Woodland Lodge,SUBSCRIPTIONS
Cambridgeshire County Council,07/04/2023,9.40,AMZNMKTPLACE AMAZON.CO,MISCELLANEOUS AND SPECIALTY RETAIL STORES,Children's Disability Service,RSS - Woodland Lodge,CLEANING AND DOMESTIC SUPPLIES
Cambridgeshire County Council,07/04/2023,9.99,AMZNMKTPLACE,MISCELLANEOUS AND SPECIALTY RETAIL STORES,Children's Disability Service,RSS - London Road,FURNITURE
Cambridgeshire County Council,07/04/2023,10.70,SAINSBURYS,"GROCERY STORES, SUPERMARKETS",Changing Futures & Projects,Housing First,
Cambridgeshire County Council,07/04/2023,11.57,COSTA COFFEE 43011811,FAST FOOD RESTAURANTS,Changing Futures & Projects,Housing First,OTHER SERVICE USER SUPPORT
Cambridgeshire County Council,07/04/2023,11.99,AMZNMKTPLACE AMAZON.CO,MISCELLANEOUS AND SPECIALTY RETAIL STORES,Children's Disability Service,RSS - Woodland Lodge,OTHER SERVICE USER SUPPORT
Cambridgeshire County Council,07/04/2023,12.69,AMZNMKTPLACE,MISCELLANEOUS AND SPECIALTY RETAIL STORES,Children's Disability Service,RSS - London Road,FURNITURE
Cambridgeshire County Council,07/04/2023,13.55,POST OFFICE COUNTER,POSTAL SERVICES-GOVERNMENT ONLY,Coroners,Coroners General,POSTAGE & CARRIAGE
Cambridgeshire County Council,07/04/2023,13.99,AMZNMKTPLACE,MISCELLANEOUS AND SPECIALTY RETAIL STORES,Children's Disability Service,RSS - London Road,GRANTS&SUPPORT FOR OTHER SERVICE USERS
Cambridgeshire County Council,07/04/2023,14.99,AMZNMKTPLACE,MISCELLANEOUS AND SPECIALTY RETAIL STORES,ICT Service (Education),ICT Service Systems Development,
Cambridgeshire County Council,07/04/2023,15.00,WEST NORTHAMPTONSHIRE,GOVERNMENT SERVICES-NOT ELSEWHERE CLASSIFIED,0-19 Organisation & Planning,Attendance and Behaviour,PROFESSIONAL FEES AND HIRED SERVICES
Cambridgeshire County Council,07/04/2023,15.00,WEST NORTHAMPTONSHIRE,GOVERNMENT SERVICES-NOT ELSEWHERE CLASSIFIED,0-19 Organisation & Planning,Attendance and Behaviour,PROFESSIONAL FEES AND HIRED SERVICES
Cambridgeshire County Council,07/04/2023,16.99,AMZNMKTPLACE,MISCELLANEOUS AND SPECIALTY RETAIL STORES,Children's Disability Service,RSS - London Road,GRANTS&SUPPORT FOR OTHER SERVICE USERS
Cambridgeshire County Council,07/04/2023,17.03,AMZNMKTPLACE AMAZON.CO,MISCELLANEOUS AND SPECIALTY RETAIL STORES,Outdoor Education (includes Grafham Water),Grafham Water Centre,EDUCATIONAL MATERIALS
Cambridgeshire County Council,07/04/2023,18.00,TIMPSON LTD,MISCELLANEOUS AND SPECIALTY RETAIL STORES,Outdoor Education (includes Grafham Water),Grafham Water Centre,EDUCATIONAL MATERIALS
Cambridgeshire County Council,07/04/2023,18.00,WWW.BETTER.ORG.UK,"ATHLTIC FIELDS,COMMRCL SPRT,SPRT CLBS,SPRT PROMOTR",Children's Disability Service,RSS - London Road,OTHER SERVICE USER SUPPORT
Cambridgeshire County Council,07/04/2023,18.00,WWW.BETTER.ORG.UK,"ATHLTIC FIELDS,COMMRCL SPRT,SPRT CLBS,SPRT PROMOTR",Children's Disability Service,RSS - London Road,OTHER SERVICE USER SUPPORT
Cambridgeshire County Council,07/04/2023,18.65,TESCO STORES 2470,"GROCERY STORES, SUPERMARKETS",Targeted Support Service - South,EH East Cambridgeshire District,SPECIALIST SUPPLIES AND MATERIALS
Cambridgeshire County Council,07/04/2023,20.00,ARGOS LTD,DISCOUNT STORES,Changing Futures & Projects,Housing First,OTHER SERVICE USER SUPPORT
Cambridgeshire County Council,07/04/2023,22.10,GREATER ANGLIA RAIL,PASSENGER RAILWAYS,Corporate Parenting,South Child Looked After Team 2,CAR MILEAGE AND ALLOWANCES - OTHER
Cambridgeshire County Council,07/04/2023,22.99,AMZNMKTPLACE,MISCELLANEOUS AND SPECIALTY RETAIL STORES,Cambridgeshire Skills,Cambridgeshire Skills Direct Delivery,
Cambridgeshire County Council,07/04/2023,24.99,TESCO STORES 2228,"GROCERY STORES, SUPERMARKETS",Changing Futures & Projects,Housing First,OTHER SERVICE USER SUPPORT
Cambridgeshire County Council,07/04/2023,24.99,WWW.ARGOS.CO.UK,DEPARTMENT STORES,Corporate Parenting,South Child Looked After Team 2,GRANTS&SUPPORT FOR OTHER SERVICE USERS
Cambridgeshire County Council,07/04/2023,29.98,ORTOREX.UK,MISCELLANEOUS GENERAL MERCHANDISE,Fostering & Supervised Contact Services,Fostering Recruitment & Assessment Team,EQUIPMENT AND TOOLS
Cambridgeshire County Council,07/04/2023,30.00,TESCO GIFT CARD,"GROCERY STORES, SUPERMARKETS",Corporate Parenting,South Child Looked After Team 2,SPECIALIST EQUIPMENT FOR SERVICE DELIV
Cambridgeshire County Council,07/04/2023,30.00,TESCO GIFT CARD,"GROCERY STORES, SUPERMARKETS",Corporate Parenting,South Child Looked After Team 2,
Cambridgeshire County Council,07/04/2023,33.73,TRAINLINE,PASSENGER RAILWAYS,Internal Audit,Audit Division,PUBLIC TRANSPORT FARES
Cambridgeshire County Council,07/04/2023,33.90,AMZNMKTPLACE AMAZON.CO,MISCELLANEOUS AND SPECIALTY RETAIL STORES,Outdoor Education (includes Grafham Water),Grafham Water Centre,EDUCATIONAL MATERIALS
Cambridgeshire County Council,07/04/2023,34.99,CURRYS ONLINE,ELECTRONIC SALES,Corporate Parenting,South Child Looked After Team 2,LIVING SPPORT GRANTS-FIN ASSIS 18+
Cambridgeshire County Council,07/04/2023,35.05,TRAINLINE,PASSENGER RAILWAYS,Internal Audit,Audit Division,PUBLIC TRANSPORT FARES
Cambridgeshire County Council,07/04/2023,35.99,WM MORRISONS STORE,"GROCERY STORES, SUPERMARKETS",ICT Service (Education),ICT Service Systems Development,
Cambridgeshire County Council,07/04/2023,40.49,AMZNMKTPLACE,MISCELLANEOUS AND SPECIALTY RETAIL STORES,ICT Service (Education),ICT Service Systems Development,
Cambridgeshire County Council,07/04/2023,40.50,TSGN,PASSENGER RAILWAYS,Professional Finance,Cipfa Trainees,PUBLIC TRANSPORT FARES
Cambridgeshire County Council,07/04/2023,43.45,WILKO.COM,MISCELLANEOUS GENERAL MERCHANDISE,Corporate Parenting,South Child Looked After Team 2,
Cambridgeshire County Council,07/04/2023,47.25,XTREME360,RECREATION SERVICES (NOT ELSEWHERE CLASSIFIED),Children's Disability Service,RSS - London Road,OTHER SERVICE USER SUPPORT
Cambridgeshire County Council,07/04/2023,49.99,AMZNMKTPLACE,MISCELLANEOUS AND SPECIALTY RETAIL STORES,ICT Service (Education),ICT Service Systems Development,
Cambridgeshire County Council,07/04/2023,75.95,WWW.ARGOS.CO.UK,DEPARTMENT STORES,Corporate Parenting,South Child Looked After Team 2,LEAVING CARE GRANTS
Cambridgeshire County Council,07/04/2023,80.99,SP VYTRONIX LTD,HOUSEHOLD APPLIANCE STORES,Corporate Parenting,South Child Looked After Team 2,
Cambridgeshire County Council,07/04/2023,84.99,AMZNMKTPLACE,MISCELLANEOUS AND SPECIALTY RETAIL STORES,Corporate Parenting,South Child Looked After Team 2,
Cambridgeshire County Council,07/04/2023,105.38,RENTALCARS.COM,LIMOUSINES AND TAXICABS,Family Safeguarding East,Cambs City Children's Team 1,GRANTS&SUPPORT FOR OTHER SERVICE USERS
Cambridgeshire County Council,07/04/2023,109.15,MAILCHIMP,DIGITAL GOODS MULTI CATEGORY,Cambridgeshire Music,Cambs Music Business Development,COMP SOFTWARE-ANNUAL LICENCE AGREEMENT
Cambridgeshire County Council,07/04/2023,121.43,TESCO STORES 2694,"GROCERY STORES, SUPERMARKETS",Targeted Support Service - North,"EH St Neots, RS&Y District Team � Youth Offer",SPECIALIST EQUIPMENT FOR SERVICE DELIV
Cambridgeshire County Council,07/04/2023,161.50,FACEBK  V3TT2NBVC2,ADVERTISING SERVICES,Fostering & Supervised Contact Services,Fostering Recruitment & Assessment Team,RECRUITMENT ADVERTISING
Cambridgeshire County Council,07/04/2023,204.00,IKEA LTD SHOP ONLINE,"EQUIP, FURNITURE, HOME FURNSHNGS STRS (EXCPT APPL)",Corporate Parenting,South Child Looked After Team 2,LEAVING CARE GRANTS
Cambridgeshire County Council,07/04/2023,230.46,TRAVELODGE,TRAVELODGE,"Children, Education and Families Directorate","Children, Education and Families Directorate",OTHER SERVICE USER SUPPORT
Cambridgeshire County Council,07/04/2023,271.70,PANTHER TAXIS_CAMBRIDG,LIMOUSINES AND TAXICABS,Children's Disability Service,RSS - Woodland Lodge,PUBLIC TRANSPORT FARES
Cambridgeshire County Council,07/04/2023,278.20,PANTHER TAXIS_CAMBRIDG,LIMOUSINES AND TAXICABS,Children's Disability Service,RSS - Woodland Lodge,PUBLIC TRANSPORT FARES
Cambridgeshire County Council,07/04/2023,280.50,PANTHER TAXIS_CAMBRIDG,LIMOUSINES AND TAXICABS,Children's Disability Service,RSS - Woodland Lodge,PUBLIC TRANSPORT FARES
Cambridgeshire County Council,07/04/2023,281.15,LNER WEB SALES,PASSENGER RAILWAYS,Corporate Parenting,South Child Looked After Team 2,CAR MILEAGE AND ALLOWANCES - OTHER
Cambridgeshire County Council,07/04/2023,290.64,COBWEB SOLUTIONS LIMIT,COMPUTER SOFTWARE STORES,ICT Service (Education),ICT Service Systems Development,
Cambridgeshire County Council,07/04/2023,290.95,WWW.ARGOS.CO.UK,DEPARTMENT STORES,Corporate Parenting,South Child Looked After Team 2,
Cambridgeshire County Council,07/04/2023,297.45,TESCO STORES 2555,"GROCERY STORES, SUPERMARKETS",LD - In House Provider Services,40 & 44 Russell Street,CATERING PROVISIONS
Cambridgeshire County Council,07/04/2023,299.00,PYN BEDS CO UK,"EQUIP, FURNITURE, HOME FURNSHNGS STRS (EXCPT APPL)",Corporate Parenting,South Child Looked After Team 2,LEAVING CARE GRANTS
Cambridgeshire County Council,07/04/2023,299.00,PYN BEDS CO UK,"EQUIP, FURNITURE, HOME FURNSHNGS STRS (EXCPT APPL)",Corporate Parenting,South Child Looked After Team 2,LEAVING CARE GRANTS
Cambridgeshire County Council,07/04/2023,483.94,AMZNMKTPLACE,MISCELLANEOUS AND SPECIALTY RETAIL STORES,Family Safeguarding West,Family Safeguarding Hunts and Fenland,LIVING SUPPORT GRANTS
Cambridgeshire County Council,07/04/2023,629.04,HOTEL AT BOOKING.COM,"LODGING-HOTELS,MOTELS,RESORTS-NOT CLASSIFIED","Children, Education and Families Directorate","Children, Education and Families Directorate",GRANTS&SUPPORT FOR OTHER SERVICE USERS
Cambridgeshire County Council,07/04/2023,884.08,AIRBNB   HMMTYTKTT9,TRAVEL AGENCIES AND TOUR OPERATORS,Corporate Parenting,South Child Looked After Team 2,GRANTS&SUPPORT FOR OTHER SERVICE USERS
Cambridgeshire County Council,10/04/2023,-228.70,PANTHER TAXIS_CAMBRIDG,LIMOUSINES AND TAXICABS,Children's Disability Service,RSS - Woodland Lodge,PUBLIC TRANSPORT FARES
Cambridgeshire County Council,10/04/2023,-153.99,AMZ AMAZON.CO.UK,MISCELLANEOUS AND SPECIALTY RETAIL STORES,Children's Disability Service,Head of RSS,"FIXTURES, FITTINGS AND FURNISHINGS"
Cambridgeshire County Council,10/04/2023,-14.99,AMZ ZIME,MISCELLANEOUS AND SPECIALTY RETAIL STORES,Children's Disability Service,Head of RSS,"FIXTURES, FITTINGS AND FURNISHINGS"
Cambridgeshire County Council,10/04/2023,4.50,TESCO STORES 5657,"GROCERY STORES, SUPERMARKETS",LD - In House Provider Services,No. 20 Alder Close Respite,CATERING PROVISIONS
Cambridgeshire County Council,10/04/2023,5.99,AMZNMKTPLACE AMAZON.CO,MISCELLANEOUS AND SPECIALTY RETAIL STORES,Children's Disability Service,RSS - London Road,BUILDING CLEANING
Cambridgeshire County Council,10/04/2023,6.94,FASTHOSTS,COMPUTER NETWORK/INFORMATION SERVICES,ICT Service (Education),ICT Service Systems Development,
Cambridgeshire County Council,10/04/2023,6.99,NETFLIX.COM,"CABLE, SATELLITE, OTHER PAY TELEVISION, RADIO SVCS",Children's Disability Service,RSS - Haviland Way,SUBSCRIPTIONS
Cambridgeshire County Council,10/04/2023,8.99,AMAZON MUSIC CM7QY2135,RECORD SHOPS,Children's Disability Service,RSS - London Road,SUBSCRIPTIONS
Cambridgeshire County Council,10/04/2023,11.59,AMZNMKTPLACE AMAZON.CO,MISCELLANEOUS AND SPECIALTY RETAIL STORES,Children's Disability Service,RSS - London Road,CLEANING AND DOMESTIC SUPPLIES
Cambridgeshire County Council,10/04/2023,20.00,BRITISH GAS OTP,"UTLTS-ELCTRC, GAS, HEATING OIL, SANITARY, WATER",Changing Futures & Projects,Housing First,OTHER SERVICE USER SUPPORT
Cambridgeshire County Council,10/04/2023,22.02,AMAZON.CO.UK R00F19145,DIRECT MARKETING-OTHER DIRECT MARKETERS/NOT ELSEW.,Children's Disability Service,RSS - London Road,CLEANING AND DOMESTIC SUPPLIES
Cambridgeshire County Council,10/04/2023,24.30,AMAZON.CO.UK ZW4NN50Q5,DIRECT MARKETING-OTHER DIRECT MARKETERS/NOT ELSEW.,Children's Disability Service,RSS - London Road,BUILDING CLEANING
Cambridgeshire County Council,10/04/2023,41.16,TESCO STORES,"GROCERY STORES, SUPERMARKETS",LD - In House Provider Services,6 St Lukes Close (Respite),CATERING PROVISIONS
Cambridgeshire County Council,10/04/2023,74.23,TESCO STORES,"GROCERY STORES, SUPERMARKETS",Children's Disability Service,RSS - Haviland Way,CATERING PROVISIONS
Cambridgeshire County Council,10/04/2023,83.53,TESCO STORES 5657,"GROCERY STORES, SUPERMARKETS",LD - In House Provider Services,No. 20 Alder Close Respite,CATERING PROVISIONS
Cambridgeshire County Council,10/04/2023,108.90,DEVERE COTSWOLD WATER,"LODGING-HOTELS,MOTELS,RESORTS-NOT CLASSIFIED","Adults, Health and Commissioning Directorate","Adults, Health and Commissioning Directorate",
Cambridgeshire County Council,10/04/2023,111.74,OAKINGTON GARDEN CENT,LAWN AND GARDEN SUPPLY STORES,Outdoor Education (includes Grafham Water),Grafham Water Centre,GROUNDS MAINTENANCE
Cambridgeshire County Council,10/04/2023,159.00,TVLICENSING.CO.UK,"CONSULTING, MANAGEMENT, AND PUBLIC RELATIONS SVCS",Corporate Parenting,South Child Looked After Team 2,LEAVING CARE GRANTS
Cambridgeshire County Council,10/04/2023,180.98,PREMIER INN,PREMIER INN,"Children, Education and Families Directorate","Children, Education and Families Directorate",GRANTS&SUPPORT FOR OTHER SERVICE USERS
Cambridgeshire County Council,10/04/2023,559.00,HOLIDAY PAYMENT AVR,TRAVEL AGENCIES AND TOUR OPERATORS,Corporate Parenting,South Child Looked After Team 2,
Cambridgeshire County Council,11/04/2023,-30.00,WWW.ARGOS.CO.UK,DEPARTMENT STORES,Targeted Support Service - North,"EH St Neots, RS&Y District Team � Youth Offer",SPECIALIST EQUIPMENT FOR SERVICE DELIV
Cambridgeshire County Council,11/04/2023,3.05,SAINSBURYS S/MKTS,"GROCERY STORES, SUPERMARKETS",LD - In House Provider Services,6 St Lukes Close (Respite),CATERING PROVISIONS
Cambridgeshire County Council,11/04/2023,6.64,AMZNMKTPLACE,MISCELLANEOUS AND SPECIALTY RETAIL STORES,Outdoor Education (includes Grafham Water),Grafham Water Centre,EDUCATIONAL MATERIALS
Cambridgeshire County Council,11/04/2023,6.99,AMZNMKTPLACE,MISCELLANEOUS AND SPECIALTY RETAIL STORES,Outdoor Education (includes Grafham Water),Grafham Water Centre,EDUCATIONAL MATERIALS
Cambridgeshire County Council,11/04/2023,13.15,AMZNMKTPLACE,MISCELLANEOUS AND SPECIALTY RETAIL STORES,Outdoor Education (includes Grafham Water),Grafham Water Centre,EDUCATIONAL MATERIALS
Cambridgeshire County Council,11/04/2023,15.99,AMAZON.CO.UK 370359JQ5,DIRECT MARKETING-OTHER DIRECT MARKETERS/NOT ELSEW.,LD - In House Provider Services,6 St Lukes Close (Respite),
Cambridgeshire County Council,11/04/2023,28.50,WWW.SACREWELL.ORG.,CAMPGROUNDS AND TRAILER PARKS,Children's Disability Service,RSS - Woodland Lodge,
Cambridgeshire County Council,11/04/2023,31.82,CINEWORLD,MOTION PICTURE THEATERS,Children's Disability Service,RSS - Woodland Lodge,
Cambridgeshire County Council,11/04/2023,59.00,HOGWARTS BED AND CONTI,"LODGING-HOTELS,MOTELS,RESORTS-NOT CLASSIFIED","Children, Education and Families Directorate","Children, Education and Families Directorate",CAR MILEAGE AND ALLOWANCES - STAFF
Cambridgeshire County Council,11/04/2023,64.00,AMZNMKTPLACE AMAZON.CO,MISCELLANEOUS AND SPECIALTY RETAIL STORES,Outdoor Education (includes Grafham Water),Grafham Water Centre,FURNITURE
Cambridgeshire County Council,11/04/2023,67.83,AMZNMKTPLACE,MISCELLANEOUS AND SPECIALTY RETAIL STORES,Targeted Support Service - North,EH Wisbech District,
Cambridgeshire County Council,11/04/2023,71.92,TESCO STORES 2694,"GROCERY STORES, SUPERMARKETS",Children's Disability Service,RSS - Woodland Lodge,CATERING PROVISIONS
Cambridgeshire County Council,11/04/2023,107.16,TESCO STORES,"GROCERY STORES, SUPERMARKETS",Children's Disability Service,RSS - Haviland Way,CATERING PROVISIONS
Cambridgeshire County Council,11/04/2023,145.78,WILTSHIRE FARM FOODS,COMPUTER SOFTWARE STORES,LD - In House Provider Services,Victoria  Lodge,CATERING PROVISIONS
Cambridgeshire County Council,11/04/2023,290.42,AMZNMKTPLACE,MISCELLANEOUS AND SPECIALTY RETAIL STORES,Family Safeguarding East,Adolescent Team South,SPECIALIST SUPPLIES AND MATERIALS
Cambridgeshire County Council,12/04/2023,-629.04,HOTEL AT BOOKING.COM,"LODGING-HOTELS,MOTELS,RESORTS-NOT CLASSIFIED","Children, Education and Families Directorate","Children, Education and Families Directorate",GRANTS&SUPPORT FOR OTHER SERVICE USERS
Cambridgeshire County Council,12/04/2023,-75.45,HOLIDAY PAYMENT AVR,TRAVEL AGENCIES AND TOUR OPERATORS,Corporate Parenting,South Child Looked After Team 2,GRANTS&SUPPORT FOR OTHER SERVICE USERS
Cambridgeshire County Council,12/04/2023,-31.16,EBAY O 19-09896-60604,DEPARTMENT STORES,Cambridgeshire Music,Cambs Music Business Development,
Cambridgeshire County Council,12/04/2023,-8.99,AMAZON MUSIC,RECORD SHOPS,Children's Disability Service,RSS - London Road,SUBSCRIPTIONS
Cambridgeshire County Council,12/04/2023,-0.25,ASDA GROCERIES ONLINE,"GROCERY STORES, SUPERMARKETS",LD - In House Provider Services,Horizon,CATERING PROVISIONS
Cambridgeshire County Council,12/04/2023,2.30,ASDA SUPERSTORE  4981,"GROCERY STORES, SUPERMARKETS",Changing Futures & Projects,Counting Every Adult,OTHER SERVICE USER SUPPORT
Cambridgeshire County Council,12/04/2023,2.43,JUSTPARK,AUTOMOBILE PARKING LOTS AND GARAGES,Changing Futures & Projects,Housing First,OTHER SERVICE USER SUPPORT
Cambridgeshire County Council,12/04/2023,5.25,ASDA SUPERSTORE  4981,"GROCERY STORES, SUPERMARKETS",Changing Futures & Projects,Counting Every Adult,OTHER SERVICE USER SUPPORT
Cambridgeshire County Council,12/04/2023,6.98,WH SMITH PETERBOROUGH,NEWS DEALERS AND NEWSSTANDS,Changing Futures & Projects,Counting Every Adult,
Cambridgeshire County Council,12/04/2023,6.99,TESCO SUBSCRIPTION,DIRECT MARKETING-CONTINUITY/SUBSCRIPTION MERCHANTS,Children's Disability Service,RSS - London Road,SUBSCRIPTIONS
Cambridgeshire County Council,12/04/2023,7.19,SUBWAY 42958 COWGATE,FAST FOOD RESTAURANTS,Changing Futures & Projects,Housing First,OTHER SERVICE USER SUPPORT
Cambridgeshire County Council,12/04/2023,8.04,TRAINLINE,PASSENGER RAILWAYS,Customer Services,Contact Centre - Operations,PUBLIC TRANSPORT FARES
Cambridgeshire County Council,12/04/2023,9.95,POST OFFICE COUNTER,POSTAL SERVICES-GOVERNMENT ONLY,Outdoor Education (includes Grafham Water),Grafham Water Centre,POSTAGE & CARRIAGE
Cambridgeshire County Council,12/04/2023,9.98,AMZNMKTPLACE,MISCELLANEOUS AND SPECIALTY RETAIL STORES,LD - In House Provider Services,Victoria  Lodge,SPECIALIST EQUIPMENT FOR SERVICE DELIV
Cambridgeshire County Council,12/04/2023,10.98,SUPERDRUG STORES PLC,"DRUG STORES, PHARMACIES",Changing Futures & Projects,Housing First,OTHER SERVICE USER SUPPORT
Cambridgeshire County Council,12/04/2023,11.00,GEN REGISTER OFFICE,GOVERNMENT SERVICES-NOT ELSEWHERE CLASSIFIED,Corporate Parenting,South Child Looked After Team 2,BOOKS AND MULTIMEDIA SUPPLIES
Cambridgeshire County Council,12/04/2023,11.00,GEN REGISTER OFFICE,GOVERNMENT SERVICES-NOT ELSEWHERE CLASSIFIED,Corporate Parenting,South Child Looked After Team 2,BOOKS AND MULTIMEDIA SUPPLIES
Cambridgeshire County Council,12/04/2023,12.03,AMAZON.CO.UK BK5539NW5,DIRECT MARKETING-OTHER DIRECT MARKETERS/NOT ELSEW.,Children's Disability Service,RSS - Woodland Lodge,CLEANING AND DOMESTIC SUPPLIES
Cambridgeshire County Council,12/04/2023,13.85,BAKER ROSS,"ARTIST SUPPLY STORES, CRAFT SHOPS",Targeted Support Service - South,EH Child and Family Centre - South Cambs,EDUCATIONAL MATERIALS
Cambridgeshire County Council,12/04/2023,14.99,AMZNMKTPLACE,MISCELLANEOUS AND SPECIALTY RETAIL STORES,Outdoor Education (includes Grafham Water),Grafham Water Centre,EDUCATIONAL MATERIALS
Cambridgeshire County Council,12/04/2023,15.00,B&M 757 RAMSEY,MISCELLANEOUS GENERAL MERCHANDISE,LD - In House Provider Services,6 St Lukes Close (Respite),
Cambridgeshire County Council,12/04/2023,16.33,TESCO STORES 5657,"GROCERY STORES, SUPERMARKETS",LD - In House Provider Services,No. 20 Alder Close Respite,CATERING PROVISIONS
Cambridgeshire County Council,12/04/2023,19.05,AMAZON.CO.UK JW7IG3PN5,DIRECT MARKETING-OTHER DIRECT MARKETERS/NOT ELSEW.,LD - In House Provider Services,Hunts Community Centre,
Cambridgeshire County Council,12/04/2023,20.44,ALDI,"GROCERY STORES, SUPERMARKETS",School Improvement Service,Adventure Playground,CATERING PROVISIONS
Cambridgeshire County Council,12/04/2023,22.20,GREATER ANGLIA,PASSENGER RAILWAYS,Changing Futures & Projects,Counting Every Adult,
Cambridgeshire County Council,12/04/2023,23.40,AMAZON.CO.UK 727EX7405,DIRECT MARKETING-OTHER DIRECT MARKETERS/NOT ELSEW.,Children's Disability Service,RSS - Woodland Lodge,BUILDING CLEANING
Cambridgeshire County Council,12/04/2023,24.69,AMZNMKTPLACE,MISCELLANEOUS AND SPECIALTY RETAIL STORES,Outdoor Education (includes Grafham Water),Grafham Water Centre,EDUCATIONAL MATERIALS
Cambridgeshire County Council,12/04/2023,27.96,DOMINOS PIZZA-PETERBOR,FAST FOOD RESTAURANTS,Changing Futures & Projects,Counting Every Adult,OTHER SERVICE USER SUPPORT
Cambridgeshire County Council,12/04/2023,29.24,TRAINLINE,PASSENGER RAILWAYS,Professional Finance,Cipfa Trainees,PUBLIC TRANSPORT FARES
Cambridgeshire County Council,12/04/2023,30.00,EIF/PURPLEGUIDE,"ORGANIZATIONS, MEMBERSHIP-NOT ELSEWHERE CLASSIFIED",Public Health - Admin & Salaries,Public Health Strategic Management,SUBSCRIPTIONS
Cambridgeshire County Council,12/04/2023,40.00,SEA LIFE HUNSTANTON,"THEATRICAL PRODUCERS(EXCL MOTION PIX),TICKET AGNCY",Children's Disability Service,RSS - London Road,OTHER SERVICE USER SUPPORT
Cambridgeshire County Council,12/04/2023,40.72,CRAZY EGG.COM,BUSINESS SERVICES-NOT ELSEWHERE CLASSIFIED,IT & Digital Service,Hardware & Infrastructure,COMP SOFTWARE-ANNUAL LICENCE AGREEMENT
Cambridgeshire County Council,12/04/2023,45.98,AMZNMKTPLACE AMAZON.CO,MISCELLANEOUS AND SPECIALTY RETAIL STORES,ICT Service (Education),ICT Service Systems Development,
Cambridgeshire County Council,12/04/2023,46.25,TRAINLINE,PASSENGER RAILWAYS,Professional Finance,Cipfa Trainees,PUBLIC TRANSPORT FARES
Cambridgeshire County Council,12/04/2023,46.25,TRAINLINE.COM,PASSENGER RAILWAYS,Professional Finance,Cipfa Trainees,PUBLIC TRANSPORT FARES
Cambridgeshire County Council,12/04/2023,51.45,AMZNMKTPLACE,MISCELLANEOUS AND SPECIALTY RETAIL STORES,Outdoor Education (includes Grafham Water),Grafham Water Centre,CATERING EQUIPMENT-PURCHASES
Cambridgeshire County Council,12/04/2023,60.00,VOUCHER EXPRESS,BUSINESS SERVICES-NOT ELSEWHERE CLASSIFIED,Corporate Parenting,South Child Looked After Team 2,GRANTS&SUPPORT FOR OTHER SERVICE USERS
Cambridgeshire County Council,12/04/2023,77.99,NAMESCO,COMPUTER NETWORK/INFORMATION SERVICES,IT & Digital Service,IT External Recharges,
Cambridgeshire County Council,12/04/2023,78.95,WWW.ARGOS.CO.UK,DEPARTMENT STORES,Corporate Parenting,South Child Looked After Team 2,LEAVING CARE GRANTS
Cambridgeshire County Council,12/04/2023,83.49,WWW.TTS-GROUPS.CO.UK,"OFFICE, SCHOOL SUPPLY, AND STATIONERY STORES",Targeted Support Service - South,EH Child and Family Centre - South Cambs,EDUCATIONAL MATERIALS
Cambridgeshire County Council,12/04/2023,88.24,ASDA GROCERIES ONLINE,"GROCERY STORES, SUPERMARKETS",LD - In House Provider Services,Horizon,CATERING PROVISIONS
Cambridgeshire County Council,12/04/2023,89.00,AMAZON MUSIC N705T5NF5,RECORD SHOPS,Children's Disability Service,RSS - London Road,SUBSCRIPTIONS
Cambridgeshire County Council,12/04/2023,95.66,AMZNMKTPLACE AMAZON.CO,MISCELLANEOUS AND SPECIALTY RETAIL STORES,LD - In House Provider Services,40 & 44 Russell Street,SPECIALIST EQUIPMENT FOR SERVICE DELIV
Cambridgeshire County Council,12/04/2023,116.77,TRAINLINE.COM,PASSENGER RAILWAYS,Coroners,Coroners General,COURT COSTS
Cambridgeshire County Council,12/04/2023,120.05,AMZNMKTPLACE,MISCELLANEOUS AND SPECIALTY RETAIL STORES,Outdoor Education (includes Grafham Water),Grafham Water Centre,CATERING EQUIPMENT-PURCHASES
Cambridgeshire County Council,12/04/2023,142.54,AMZNMKTPLACE,MISCELLANEOUS AND SPECIALTY RETAIL STORES,SEND Specialist Services,Sensory Support Team (0-25),SPECIALIST EQUIPMENT FOR SERVICE DELIV
Cambridgeshire County Council,12/04/2023,170.00,BKG HOTEL AT BOOKING.C,TRAVEL AGENCIES AND TOUR OPERATORS,Safeguarding and Quality Assurance,Safeguarding and Quality Assurance,STAFF SUBSISTENCE
Cambridgeshire County Council,12/04/2023,200.00,VOUCHER EXPRESS,BUSINESS SERVICES-NOT ELSEWHERE CLASSIFIED,Performance & Strategic Development,Adults Central Business Support,
Cambridgeshire County Council,12/04/2023,247.83,AMZNMKTPLACE AMAZON.CO,MISCELLANEOUS AND SPECIALTY RETAIL STORES,LD - In House Provider Services,40 & 44 Russell Street,SPECIALIST EQUIPMENT FOR SERVICE DELIV
Cambridgeshire County Council,12/04/2023,350.81,TRAVELODGE,TRAVELODGE,"Children, Education and Families Directorate","Children, Education and Families Directorate",OTHER SERVICE USER SUPPORT
Cambridgeshire County Council,12/04/2023,457.00,HOTEL AT BOOKING.COM,"LODGING-HOTELS,MOTELS,RESORTS-NOT CLASSIFIED","Children, Education and Families Directorate","Children, Education and Families Directorate",GRANTS&SUPPORT FOR OTHER SERVICE USERS
Cambridgeshire County Council,12/04/2023,458.34,NAMESCO,COMPUTER NETWORK/INFORMATION SERVICES,IT & Digital Service,IT External Recharges,
Cambridgeshire County Council,13/04/2023,2.09,WWW.SCREWFIX.COM,"BUILDING MATERIALS, LUMBER STORES","Property, Facilities Management and Building Compliance",Shire Hall Area,BUILDING REPAIR AND MAINTENANCE
Cambridgeshire County Council,13/04/2023,2.25,ROYAL MAIL GROUP LTD,POSTAL SERVICES-GOVERNMENT ONLY,Corporate Parenting,South Child Looked After Team 2,POSTAGE & CARRIAGE
Cambridgeshire County Council,13/04/2023,2.80,TFL TRAVEL CH,"TRANSPRTN-SUBRBN & LOCAL COMTR PSNGR, INCL FERRIES",Internal Audit,Audit Division,PUBLIC TRANSPORT FARES
Cambridgeshire County Council,13/04/2023,3.80,GTR PARKING CONNECT EC,AUTOMOBILE PARKING LOTS AND GARAGES,Professional Finance,Cipfa Trainees,PUBLIC TRANSPORT FARES
Cambridgeshire County Council,13/04/2023,4.00,WHIPPET COACHES,"TRANSPRTN-SUBRBN & LOCAL COMTR PSNGR, INCL FERRIES",Changing Futures & Projects,Housing First,PUBLIC TRANSPORT FARES
Cambridgeshire County Council,13/04/2023,4.08,TOOLSTATION UK,HARDWARE STORES,"Property, Facilities Management and Building Compliance",Shire Hall Area,BUILDING REPAIR AND MAINTENANCE
Cambridgeshire County Council,13/04/2023,4.40,WWW.SCREWFIX.COM,"BUILDING MATERIALS, LUMBER STORES","Property, Facilities Management and Building Compliance",Shire Hall Area,BUILDING REPAIR AND MAINTENANCE
Cambridgeshire County Council,13/04/2023,4.40,TESCO STORES 3108,"GROCERY STORES, SUPERMARKETS",Children's Disability Service,RSS - London Road,CLEANING AND DOMESTIC SUPPLIES
Cambridgeshire County Council,13/04/2023,5.60,TFL TRAVEL CH,"TRANSPRTN-SUBRBN & LOCAL COMTR PSNGR, INCL FERRIES",Internal Audit,Audit Division,PUBLIC TRANSPORT FARES
Cambridgeshire County Council,13/04/2023,6.31,TRAINLINE,PASSENGER RAILWAYS,Changing Futures & Projects,Housing First,PUBLIC TRANSPORT FARES
Cambridgeshire County Council,13/04/2023,7.98,AMAZON.CO.UK T270A3YS5,DIRECT MARKETING-OTHER DIRECT MARKETERS/NOT ELSEW.,Outdoor Education (includes Grafham Water),Grafham Water Centre,FURNITURE
Cambridgeshire County Council,13/04/2023,7.98,AMAZON.CO.UK 9P5ZM1CK5,DIRECT MARKETING-OTHER DIRECT MARKETERS/NOT ELSEW.,Outdoor Education (includes Grafham Water),Grafham Water Centre,FURNITURE
Cambridgeshire County Council,13/04/2023,7.98,AMAZON.CO.UK 0B1MF3UI5,DIRECT MARKETING-OTHER DIRECT MARKETERS/NOT ELSEW.,Outdoor Education (includes Grafham Water),Grafham Water Centre,FURNITURE
Cambridgeshire County Council,13/04/2023,7.98,AMAZON.CO.UK 524847V35,DIRECT MARKETING-OTHER DIRECT MARKETERS/NOT ELSEW.,Outdoor Education (includes Grafham Water),Grafham Water Centre,FURNITURE
Cambridgeshire County Council,13/04/2023,7.98,AMAZON.CO.UK 9U9YG0G45,DIRECT MARKETING-OTHER DIRECT MARKETERS/NOT ELSEW.,Outdoor Education (includes Grafham Water),Grafham Water Centre,FURNITURE
Cambridgeshire County Council,13/04/2023,7.98,AMAZON.CO.UK PE6TM46J5,DIRECT MARKETING-OTHER DIRECT MARKETERS/NOT ELSEW.,Outdoor Education (includes Grafham Water),Grafham Water Centre,FURNITURE
Cambridgeshire County Council,13/04/2023,7.98,AMAZON.CO.UK GM1XO0FI5,DIRECT MARKETING-OTHER DIRECT MARKETERS/NOT ELSEW.,Outdoor Education (includes Grafham Water),Grafham Water Centre,FURNITURE
Cambridgeshire County Council,13/04/2023,7.98,AMAZON.CO.UK K21L10G15,DIRECT MARKETING-OTHER DIRECT MARKETERS/NOT ELSEW.,Outdoor Education (includes Grafham Water),Grafham Water Centre,FURNITURE
Cambridgeshire County Council,13/04/2023,7.98,AMAZON.CO.UK Q67Y42615,DIRECT MARKETING-OTHER DIRECT MARKETERS/NOT ELSEW.,Outdoor Education (includes Grafham Water),Grafham Water Centre,FURNITURE
Cambridgeshire County Council,13/04/2023,7.98,AMAZON.CO.UK 9W06F1WJ5,DIRECT MARKETING-OTHER DIRECT MARKETERS/NOT ELSEW.,Outdoor Education (includes Grafham Water),Grafham Water Centre,FURNITURE
Cambridgeshire County Council,13/04/2023,7.99,MICROSOFT CONSOLE 1 MO,DIGITAL GOODS GAMES,Children's Disability Service,RSS - Woodland Lodge,SUBSCRIPTIONS
Cambridgeshire County Council,13/04/2023,9.00,TESCO STORES 5657,"GROCERY STORES, SUPERMARKETS",LD - In House Provider Services,No. 20 Alder Close Respite,CATERING PROVISIONS
Cambridgeshire County Council,13/04/2023,9.95,AMZNMKTPLACE,MISCELLANEOUS AND SPECIALTY RETAIL STORES,Children's Disability Service,RSS - Woodland Lodge,FURNITURE
Cambridgeshire County Council,13/04/2023,10.00,1PMOBILE,TELECOMMUNICATION EQUIPMENT INCL TELEPHONE SALES,Family Safeguarding East,Family Safeguarding East & South Cambs and Cambridge,GRANTS&SUPPORT FOR OTHER SERVICE USERS
Cambridgeshire County Council,13/04/2023,11.20,POST OFFICE COUNTER,POSTAL SERVICES-GOVERNMENT ONLY,Coroners,Coroners General,POSTAGE & CARRIAGE
Cambridgeshire County Council,13/04/2023,14.99,AMZNMKTPLACE,MISCELLANEOUS AND SPECIALTY RETAIL STORES,"Property, Facilities Management and Building Compliance",Shire Hall Area,BUILDING REPAIR AND MAINTENANCE
Cambridgeshire County Council,13/04/2023,15.00,WEST NORTHAMPTONSHIRE,GOVERNMENT SERVICES-NOT ELSEWHERE CLASSIFIED,0-19 Organisation & Planning,Attendance and Behaviour,PROFESSIONAL FEES AND HIRED SERVICES
Cambridgeshire County Council,13/04/2023,15.00,WEST NORTHAMPTONSHIRE,GOVERNMENT SERVICES-NOT ELSEWHERE CLASSIFIED,0-19 Organisation & Planning,Attendance and Behaviour,PROFESSIONAL FEES AND HIRED SERVICES
Cambridgeshire County Council,13/04/2023,17.50,DUNELM SOFTFURNISHINGS,"EQUIP, FURNITURE, HOME FURNSHNGS STRS (EXCPT APPL)",Learning & Development,L&D Team,GENERAL OFFICE EXPENSES & STATIONERY
Cambridgeshire County Council,13/04/2023,20.65,INFLATABOUNCE,"AMUSEMENT PARKS,CARNIVALS,CIRCUS,FORTUNE TELLERS",Children's Disability Service,RSS - Woodland Lodge,OTHER SERVICE USER SUPPORT
Cambridgeshire County Council,13/04/2023,25.68,TRAINLINE,PASSENGER RAILWAYS,Professional Finance,Cipfa Trainees,PUBLIC TRANSPORT FARES
Cambridgeshire County Council,13/04/2023,29.24,TRAINLINE,PASSENGER RAILWAYS,Professional Finance,Cipfa Trainees,PUBLIC TRANSPORT FARES
Cambridgeshire County Council,13/04/2023,34.14,TRAINLINE,PASSENGER RAILWAYS,Internal Audit,Audit Division,PUBLIC TRANSPORT FARES
Cambridgeshire County Council,13/04/2023,39.60,AMZNMKTPLACE,MISCELLANEOUS AND SPECIALTY RETAIL STORES,Outdoor Education (includes Grafham Water),Grafham Water Centre,EDUCATIONAL MATERIALS
Cambridgeshire County Council,13/04/2023,40.00,TESCO STORES  5489,"GROCERY STORES, SUPERMARKETS",Changing Futures & Projects,Counting Every Adult,
Cambridgeshire County Council,13/04/2023,40.50,TSGN,PASSENGER RAILWAYS,Internal Audit,Audit Division,PUBLIC TRANSPORT FARES
Cambridgeshire County Council,13/04/2023,43.80,LNER WEB SALES,PASSENGER RAILWAYS,Chief Executive,Chief Executive's Office,OTHER TRAVEL EXPENSES
Cambridgeshire County Council,13/04/2023,44.70,LNER WEB SALES,PASSENGER RAILWAYS,Chief Executive,Chief Executive's Office,OTHER TRAVEL EXPENSES
Cambridgeshire County Council,13/04/2023,46.50,PANTHER TAXIS LTD,LIMOUSINES AND TAXICABS,Children's Disability Service,RSS - Woodland Lodge,PUBLIC TRANSPORT FARES
Cambridgeshire County Council,13/04/2023,46.60,PANTHER TAXIS LTD,LIMOUSINES AND TAXICABS,Children's Disability Service,RSS - Woodland Lodge,PUBLIC TRANSPORT FARES
Cambridgeshire County Council,13/04/2023,46.70,PANTHER TAXIS LTD,LIMOUSINES AND TAXICABS,Children's Disability Service,RSS - Woodland Lodge,PUBLIC TRANSPORT FARES
Cambridgeshire County Council,13/04/2023,49.22,TRAINLINE,PASSENGER RAILWAYS,Internal Audit,Audit Division,PUBLIC TRANSPORT FARES
Cambridgeshire County Council,13/04/2023,50.50,EASTMIDLANDSCOM,PASSENGER RAILWAYS,Corporate Parenting,South Child Looked After Team 2,CAR MILEAGE AND ALLOWANCES - OTHER
Cambridgeshire County Council,13/04/2023,53.50,HM PASSPORT OFFICE,GOVERNMENT SERVICES-NOT ELSEWHERE CLASSIFIED,Corporate Parenting,South Child Looked After Team 2,
Cambridgeshire County Council,13/04/2023,55.80,EAST MIDLANDS RAIL,PASSENGER RAILWAYS,Corporate Parenting,North Care Leaving Team 2,CAR MILEAGE AND ALLOWANCES - OTHER
Cambridgeshire County Council,13/04/2023,58.94,AMZNMKTPLACE,MISCELLANEOUS AND SPECIALTY RETAIL STORES,Targeted Support Service - North,EH Child and Family Centre - Wisbech,EDUCATIONAL MATERIALS
Cambridgeshire County Council,13/04/2023,79.53,TESCO STORES 2694,"GROCERY STORES, SUPERMARKETS",LD - In House Provider Services,6 St Lukes Close (Respite),
Cambridgeshire County Council,13/04/2023,82.50,HM PASSPORT OFFICE,GOVERNMENT SERVICES-NOT ELSEWHERE CLASSIFIED,Corporate Parenting,South Child Looked After Team 2,BOOKS AND MULTIMEDIA SUPPLIES
Cambridgeshire County Council,13/04/2023,94.56,TESCO STORES 3108,"GROCERY STORES, SUPERMARKETS",Children's Disability Service,RSS - London Road,CATERING PROVISIONS
Cambridgeshire County Council,13/04/2023,138.27,AMZNMKTPLACE,MISCELLANEOUS AND SPECIALTY RETAIL STORES,Outdoor Education (includes Grafham Water),Grafham Water Centre,CATERING EQUIPMENT-PURCHASES
Cambridgeshire County Council,13/04/2023,154.80,HOO HOOTSUITE INC,BUSINESS SERVICES-NOT ELSEWHERE CLASSIFIED,Cambridgeshire Skills,Cambridgeshire Skills Direct Delivery,
Cambridgeshire County Council,13/04/2023,170.39,NATIONAL PEN PROMOTION,BUSINESS SERVICES-NOT ELSEWHERE CLASSIFIED,LD - In House Provider Services,Hunts Community Centre,
Cambridgeshire County Council,13/04/2023,208.80,EAST MIDLANDS RAIL,PASSENGER RAILWAYS,Corporate Parenting,North Care Leaving Team 2,CAR MILEAGE AND ALLOWANCES - OTHER
Cambridgeshire County Council,13/04/2023,267.00,CVAA UK LTD,"ORGANIZATIONS, CHARITABLE AND SOCIAL SERVICES",Adoption,Regional Adoption Agency,STAFF TRAINING & DEVELOPMENT
Cambridgeshire County Council,13/04/2023,304.00,AO RETAIL LIMITED,HOUSEHOLD APPLIANCE STORES,Learning & Development,L&D Team,GENERAL OFFICE EXPENSES & STATIONERY
Cambridgeshire County Council,13/04/2023,375.00,NCL UNI WEBSTORE,"COLLEGES, UNIV, PRO SCHOOLS, JUNIOR COLLEGES",SEND Specialist Services,Head of SEND Services (0-25),STAFF TRAINING & DEVELOPMENT
Cambridgeshire County Council,14/04/2023,-116.97,AMZNMKTPLACE AMAZON.CO,MISCELLANEOUS AND SPECIALTY RETAIL STORES,Children's Disability Service,Head of RSS,"FIXTURES, FITTINGS AND FURNISHINGS"
Cambridgeshire County Council,14/04/2023,2.49,EURO SHOP,"MISC FOOD STORE-CONVENIENCE,MRKT,SPLTY,VENDNG MACS",Changing Futures & Projects,Housing First,OTHER SERVICE USER SUPPORT
Cambridgeshire County Council,14/04/2023,2.80,TFL TRAVEL CH,"TRANSPRTN-SUBRBN & LOCAL COMTR PSNGR, INCL FERRIES",Internal Audit,Audit Division,PUBLIC TRANSPORT FARES
Cambridgeshire County Council,14/04/2023,3.00,LAND REGISTRY ECOM CCC,GOVERNMENT SERVICES-NOT ELSEWHERE CLASSIFIED,Shared Services,Debt Team,DEBT RECOVERY COSTS
Cambridgeshire County Council,14/04/2023,3.18,MARTA SUPERMARKET,"GROCERY STORES, SUPERMARKETS",Changing Futures & Projects,Counting Every Adult,OTHER SERVICE USER SUPPORT
Cambridgeshire County Council,14/04/2023,3.80,GTR PARKING CONNECT EC,AUTOMOBILE PARKING LOTS AND GARAGES,Professional Finance,Cipfa Trainees,PUBLIC TRANSPORT FARES
Cambridgeshire County Council,14/04/2023,4.35,SAINSBURYS S MKTS,"GROCERY STORES, SUPERMARKETS",Children's Disability Service,RSS - London Road,CATERING PROVISIONS
Cambridgeshire County Council,14/04/2023,4.80,QUEEN ANNE TERRACE CAR,GOVERNMENT SERVICES-NOT ELSEWHERE CLASSIFIED,Changing Futures & Projects,Housing First,OTHER SERVICE USER SUPPORT
Cambridgeshire County Council,14/04/2023,5.60,TFL TRAVEL CH,"TRANSPRTN-SUBRBN & LOCAL COMTR PSNGR, INCL FERRIES",Internal Audit,Audit Division,PUBLIC TRANSPORT FARES
Cambridgeshire County Council,14/04/2023,5.89,B & Q 1140,HOME SUPPLY WAREHOUSE STORES,Cambridgeshire Skills,Cambridgeshire Skills Management Team,
Cambridgeshire County Council,14/04/2023,5.99,MCDONALDS,FAST FOOD RESTAURANTS,Changing Futures & Projects,Housing First,OTHER SERVICE USER SUPPORT
Cambridgeshire County Council,14/04/2023,6.60,WM MORRISONS STORE,"GROCERY STORES, SUPERMARKETS",Cambridgeshire Skills,Cambridgeshire Skills Management Team,
Cambridgeshire County Council,14/04/2023,6.76,B&M 280 - WISBECH,MISCELLANEOUS GENERAL MERCHANDISE,Cambridgeshire Skills,Cambridgeshire Skills Management Team,
Cambridgeshire County Council,14/04/2023,7.10,GTR PARKING CONNECT EC,AUTOMOBILE PARKING LOTS AND GARAGES,Professional Finance,Cipfa Trainees,PUBLIC TRANSPORT FARES
Cambridgeshire County Council,14/04/2023,7.50,PBP GREATER ANGLIA,AUTOMOBILE PARKING LOTS AND GARAGES,Changing Futures & Projects,Housing First,OTHER SERVICE USER SUPPORT
Cambridgeshire County Council,14/04/2023,7.99,AMZNMKTPLACE,MISCELLANEOUS AND SPECIALTY RETAIL STORES,Children's Disability Service,RSS - London Road,OTHER SERVICE USER SUPPORT
Cambridgeshire County Council,14/04/2023,8.99,AMAZON MUSIC NC7VQ3O95,RECORD SHOPS,Children's Disability Service,RSS - Woodland Lodge,SUBSCRIPTIONS
Cambridgeshire County Council,14/04/2023,9.35,COSTA COFFEE 43011811,FAST FOOD RESTAURANTS,Changing Futures & Projects,Housing First,OTHER SERVICE USER SUPPORT
Cambridgeshire County Council,14/04/2023,9.90,PERRY STORES,"CANDY, NUT, CONFECTIONERY STORES",Outdoor Education (includes Grafham Water),Grafham Water Centre,CATERING PROVISIONS
Cambridgeshire County Council,14/04/2023,10.00,SAINSBURYS S/MKTS,"GROCERY STORES, SUPERMARKETS",Changing Futures & Projects,Counting Every Adult,OTHER SERVICE USER SUPPORT
Cambridgeshire County Council,14/04/2023,10.99,AMZNMKTPLACE,MISCELLANEOUS AND SPECIALTY RETAIL STORES,Children's Disability Service,RSS - London Road,GRANTS&SUPPORT FOR OTHER SERVICE USERS
Cambridgeshire County Council,14/04/2023,10.99,AMZNMKTPLACE,MISCELLANEOUS AND SPECIALTY RETAIL STORES,Children's Disability Service,RSS - London Road,GRANTS&SUPPORT FOR OTHER SERVICE USERS
Cambridgeshire County Council,14/04/2023,11.95,CENTRAL ENGLAND CO OPE,"GROCERY STORES, SUPERMARKETS",Outdoor Education (includes Grafham Water),Grafham Water Centre,CATERING PROVISIONS
Cambridgeshire County Council,14/04/2023,12.70,PANTHER TAXIS LTD,LIMOUSINES AND TAXICABS,Children's Disability Service,RSS - London Road,PUBLIC TRANSPORT FARES
Cambridgeshire County Council,14/04/2023,13.00,POUNDLAND LTD,DISCOUNT STORES,Cambridgeshire Skills,Cambridgeshire Skills Management Team,
Cambridgeshire County Council,14/04/2023,13.90,POST OFFICE COUNTER,POSTAL SERVICES-GOVERNMENT ONLY,Coroners,Coroners General,POSTAGE & CARRIAGE
Cambridgeshire County Council,14/04/2023,14.39,DNH GO DADDY EUROPE GB,COMPUTER NETWORK/INFORMATION SERVICES,ICT Service (Education),ICT Service Systems Development,
Cambridgeshire County Council,14/04/2023,14.99,WWW.ARGOS.CO.UK,DEPARTMENT STORES,Targeted Support Service - North,EH Wisbech District,
Cambridgeshire County Council,14/04/2023,15.00,WEST NORTHAMPTONSHIRE,GOVERNMENT SERVICES-NOT ELSEWHERE CLASSIFIED,0-19 Organisation & Planning,Attendance and Behaviour,PROFESSIONAL FEES AND HIRED SERVICES
Cambridgeshire County Council,14/04/2023,15.40,COSTA COFFEE 43011811,FAST FOOD RESTAURANTS,Changing Futures & Projects,Housing First,OTHER SERVICE USER SUPPORT
Cambridgeshire County Council,14/04/2023,16.75,SAINSBURY'S S/MKT,"GROCERY STORES, SUPERMARKETS",Changing Futures & Projects,Housing First,OTHER SERVICE USER SUPPORT
Cambridgeshire County Council,14/04/2023,18.00,THEWORKS.CO.UK,DISCOUNT STORES,Cambridgeshire Skills,Cambridgeshire Skills Management Team,
Cambridgeshire County Council,14/04/2023,18.97,AMZNMKTPLACE AMAZON.CO,MISCELLANEOUS AND SPECIALTY RETAIL STORES,LD - In House Provider Services,6 St Lukes Close (Respite),
Cambridgeshire County Council,14/04/2023,19.85,CENTRAL ENGLAND CO OPE,"GROCERY STORES, SUPERMARKETS",Outdoor Education (includes Grafham Water),Grafham Water Centre,CATERING PROVISIONS
Cambridgeshire County Council,14/04/2023,21.20,PANTHER TAXIS LTD,LIMOUSINES AND TAXICABS,Children's Disability Service,RSS - London Road,PUBLIC TRANSPORT FARES
Cambridgeshire County Council,14/04/2023,22.24,CANVA  I03755-0749838,PHOTOGRAPHIC STUDIOS,Communication and Information,Communication and Information,
Cambridgeshire County Council,14/04/2023,22.53,CANVA  I03754-18535005,PHOTOGRAPHIC STUDIOS,Outdoor Education (includes Grafham Water),Grafham Water Centre,PROFESSIONAL FEES AND HIRED SERVICES
Cambridgeshire County Council,14/04/2023,25.68,TRAINLINE,PASSENGER RAILWAYS,Professional Finance,Cipfa Trainees,PUBLIC TRANSPORT FARES
Cambridgeshire County Council,14/04/2023,25.99,ARGOS ELY,DISCOUNT STORES,Changing Futures & Projects,Counting Every Adult,OTHER SERVICE USER SUPPORT
Cambridgeshire County Council,14/04/2023,26.00,CCORRN RESOURCE CENTRE,"EATING PLACES, RESTAURANTS",Cambridgeshire Skills,Cambridgeshire Skills Management Team,
Cambridgeshire County Council,14/04/2023,26.40,EE LIMITED,TELECOM INCL PREPAID/RECURRING PHONE SVCS,Outdoor Education (includes Grafham Water),Grafham Water Centre,MOBILE PHONES
Cambridgeshire County Council,14/04/2023,30.00,CITIZENCARD,"ORGANIZATIONS, MEMBERSHIP-NOT ELSEWHERE CLASSIFIED",Children's Disability Service,Disability Referral & Access Team,
Cambridgeshire County Council,14/04/2023,31.99,PHOENIX VAPERS,CIGAR STORES AND STANDS,Changing Futures & Projects,Housing First,OTHER SERVICE USER SUPPORT
Cambridgeshire County Council,14/04/2023,33.20,AMZNMKTPLACE,MISCELLANEOUS AND SPECIALTY RETAIL STORES,Outdoor Education (includes Grafham Water),Burwell House Residential Centre,EDUCATIONAL MATERIALS
Cambridgeshire County Council,14/04/2023,35.11,TESCO STORES 2694,"GROCERY STORES, SUPERMARKETS",LD - In House Provider Services,6 St Lukes Close (Respite),SPECIALIST SUPPLIES AND MATERIALS
Cambridgeshire County Council,14/04/2023,39.95,TSGN,PASSENGER RAILWAYS,Internal Audit,Audit Division,PUBLIC TRANSPORT FARES
Cambridgeshire County Council,14/04/2023,40.50,TSGN,PASSENGER RAILWAYS,Professional Finance,Cipfa Trainees,PUBLIC TRANSPORT FARES
Cambridgeshire County Council,14/04/2023,45.49,LIDL GB WISBECH,"GROCERY STORES, SUPERMARKETS",Changing Futures & Projects,Housing First,OTHER SERVICE USER SUPPORT
Cambridgeshire County Council,14/04/2023,46.50,PANTHER TAXIS LTD,LIMOUSINES AND TAXICABS,Children's Disability Service,RSS - Woodland Lodge,PUBLIC TRANSPORT FARES
Cambridgeshire County Council,14/04/2023,46.50,PANTHER TAXIS LTD,LIMOUSINES AND TAXICABS,Children's Disability Service,RSS - Woodland Lodge,PUBLIC TRANSPORT FARES
Cambridgeshire County Council,14/04/2023,47.10,PANTHER TAXIS LTD,LIMOUSINES AND TAXICABS,Children's Disability Service,RSS - Woodland Lodge,PUBLIC TRANSPORT FARES
Cambridgeshire County Council,14/04/2023,47.10,PANTHER TAXIS LTD,LIMOUSINES AND TAXICABS,Children's Disability Service,RSS - Woodland Lodge,PUBLIC TRANSPORT FARES
Cambridgeshire County Council,14/04/2023,47.30,GSUITE_CAMBSALS.CO.UK,COMPUTER NETWORK/INFORMATION SERVICES,Cambridgeshire Skills,Cambridgeshire Skills Direct Delivery,
Cambridgeshire County Council,14/04/2023,55.00,WWW.ARGOS.CO.UK,DEPARTMENT STORES,Family Safeguarding East,Cambs City Children's Team 1,GRANTS&SUPPORT FOR OTHER SERVICE USERS
Cambridgeshire County Council,14/04/2023,63.12,TESCO STORES 2470,"GROCERY STORES, SUPERMARKETS",Family Safeguarding East,Adolescent Team South,LEAVING CARE GRANTS
Cambridgeshire County Council,14/04/2023,74.00,AMZNMKTPLACE,MISCELLANEOUS AND SPECIALTY RETAIL STORES,Targeted Support Service - North,EH Child and Family Centre - Wisbech,EDUCATIONAL MATERIALS
Cambridgeshire County Council,14/04/2023,79.40,LNER WEB SALES,PASSENGER RAILWAYS,Corporate Parenting,South Child Looked After Team 2,CAR MILEAGE AND ALLOWANCES - OTHER
Cambridgeshire County Council,14/04/2023,80.00,AMAZON.CO.UK 5V1PN60E5,DIRECT MARKETING-OTHER DIRECT MARKETERS/NOT ELSEW.,Family Safeguarding East,Adolescent Team South,OTHER DISCRETIONARY AWARDS
Cambridgeshire County Council,14/04/2023,95.68,TESCO STORES 5657,"GROCERY STORES, SUPERMARKETS",LD - In House Provider Services,No. 20 Alder Close Respite,CATERING PROVISIONS
Cambridgeshire County Council,14/04/2023,100.73,SCOTTISH POWER,"FUEL DEALERS-COAL, FUEL OIL, LIQ PETROLEUM, WOOD",Changing Futures & Projects,Housing First,OTHER SERVICE USER SUPPORT
Cambridgeshire County Council,14/04/2023,115.34,AMZNMKTPLACE,MISCELLANEOUS AND SPECIALTY RETAIL STORES,LD - In House Provider Services,40 & 44 Russell Street,SPECIALIST EQUIPMENT FOR SERVICE DELIV
Cambridgeshire County Council,14/04/2023,144.00,IOSH SERVICES LTD,SCHOOLS & EDUCATIONAL SVC-NOT ELSEWHERE CLASSIFIED,"Health, Safety & Wellbeing",HR HSW,
Cambridgeshire County Council,14/04/2023,144.00,WWW.TRAINERCOURSES.COM,SCHOOLS & EDUCATIONAL SVC-NOT ELSEWHERE CLASSIFIED,Children's Disability Service,Community Support Service ECF,
Cambridgeshire County Council,14/04/2023,295.00,LAKESIDE LODGE GOLF AN,"LODGING-HOTELS,MOTELS,RESORTS-NOT CLASSIFIED","Adults, Health and Commissioning Directorate","Adults, Health and Commissioning Directorate",
Cambridgeshire County Council,17/04/2023,-105.00,GO OUTDOORS RETAIL LIM,"SPORTS APPAREL, RIDING APPAREL STORES",Outdoor Education (includes Grafham Water),Grafham Water Centre,CLOTHING / UNIFORM
Cambridgeshire County Council,17/04/2023,-75.95,WWW.ARGOS.CO.UK,DEPARTMENT STORES,Corporate Parenting,South Child Looked After Team 2,LEAVING CARE GRANTS
Cambridgeshire County Council,17/04/2023,-18.19,AMZNMKTPLACE AMAZON.CO,MISCELLANEOUS AND SPECIALTY RETAIL STORES,Outdoor Education (includes Grafham Water),CEES Stibbington Centre,EDUCATIONAL EQUIPMENT
Cambridgeshire County Council,17/04/2023,-14.99,AMZ SANJIAEU,MISCELLANEOUS AND SPECIALTY RETAIL STORES,Outdoor Education (includes Grafham Water),Grafham Water Centre,
Cambridgeshire County Council,17/04/2023,1.10,RINGGO,AUTOMOBILE PARKING LOTS AND GARAGES,Traffic Management,Signals and Systems,
Cambridgeshire County Council,17/04/2023,4.19,POST OFFICE COUNTER,POSTAL SERVICES-GOVERNMENT ONLY,Outdoor Education (includes Grafham Water),Grafham Water Centre,POSTAGE & CARRIAGE
Cambridgeshire County Council,17/04/2023,5.00,ASDA  STORES 4811,"GROCERY STORES, SUPERMARKETS",LD - In House Provider Services,IHPS - Tennyson Lodge,CATERING EQUIPMENT-PURCHASES
Cambridgeshire County Council,17/04/2023,5.95,WM MORRISONS STORE,"GROCERY STORES, SUPERMARKETS",Targeted Support Service - North,EH Child and Family Centre - Wisbech,CATERING PROVISIONS
Cambridgeshire County Council,17/04/2023,6.99,AMZNMKTPLACE,MISCELLANEOUS AND SPECIALTY RETAIL STORES,Outdoor Education (includes Grafham Water),Grafham Water Centre,EDUCATIONAL MATERIALS
Cambridgeshire County Council,17/04/2023,7.49,AMZNMKTPLACE,MISCELLANEOUS AND SPECIALTY RETAIL STORES,Outdoor Education (includes Grafham Water),Grafham Water Centre,EDUCATIONAL MATERIALS
Cambridgeshire County Council,17/04/2023,8.39,TESCO STORES 3108,"GROCERY STORES, SUPERMARKETS",Children's Disability Service,RSS - London Road,CLEANING AND DOMESTIC SUPPLIES
Cambridgeshire County Council,17/04/2023,8.99,AMAZON PRIME 5N6QM0OC5,DIRECT MARKETING-CONTINUITY/SUBSCRIPTION MERCHANTS,LD - In House Provider Services,6 St Lukes Close (Respite),
Cambridgeshire County Council,17/04/2023,8.99,AMAZON PRIME OE4SN91V5,DIRECT MARKETING-CONTINUITY/SUBSCRIPTION MERCHANTS,0-19 Organisation & Planning,Education Safeguarding,GENERAL OFFICE EXPENSES & STATIONERY
Cambridgeshire County Council,17/04/2023,9.00,TESCO STORES 3108,"GROCERY STORES, SUPERMARKETS",Children's Disability Service,RSS - London Road,BUILDING CLEANING
Cambridgeshire County Council,17/04/2023,9.88,AMZNMKTPLACE AMAZON.CO,MISCELLANEOUS AND SPECIALTY RETAIL STORES,Targeted Support Service - North,EH March Chatteris & Whittlesey District,SPECIALIST SUPPLIES AND MATERIALS
Cambridgeshire County Council,17/04/2023,11.00,NORFOLK COUNTY COUNCIL,GOVERNMENT SERVICES-NOT ELSEWHERE CLASSIFIED,Corporate Parenting,South Child Looked After Team 2,BOOKS AND MULTIMEDIA SUPPLIES
Cambridgeshire County Council,17/04/2023,11.17,SAINSBURY'S S/MKT,"GROCERY STORES, SUPERMARKETS",Cambridgeshire Skills,Cambridgeshire Skills Management Team,
Cambridgeshire County Council,17/04/2023,12.00,AMZNMKTPLACE AMAZON.CO,MISCELLANEOUS AND SPECIALTY RETAIL STORES,Children's Disability Service,RSS - London Road,FURNITURE
Cambridgeshire County Council,17/04/2023,14.40,ALDI STORES LTD,"GROCERY STORES, SUPERMARKETS",Schools,Pilgrim Pathways School,HOSPITALITY AND REFRESHMENTS
Cambridgeshire County Council,17/04/2023,14.90,M6 TOLL,"BRIDGE AND ROAD FEES, TOLLS",Outdoor Education (includes Grafham Water),Grafham Water Centre,EDUCATIONAL MATERIALS
Cambridgeshire County Council,17/04/2023,15.00,WEST NORTHAMPTONSHIRE,GOVERNMENT SERVICES-NOT ELSEWHERE CLASSIFIED,0-19 Organisation & Planning,Attendance and Behaviour,PROFESSIONAL FEES AND HIRED SERVICES
Cambridgeshire County Council,17/04/2023,15.00,WEST NORTHAMPTONSHIRE,GOVERNMENT SERVICES-NOT ELSEWHERE CLASSIFIED,0-19 Organisation & Planning,Attendance and Behaviour,PROFESSIONAL FEES AND HIRED SERVICES
Cambridgeshire County Council,17/04/2023,15.50,WWW.BETTER.ORG.UK,"ATHLTIC FIELDS,COMMRCL SPRT,SPRT CLBS,SPRT PROMOTR",Children's Disability Service,RSS - London Road,OTHER SERVICE USER SUPPORT
Cambridgeshire County Council,17/04/2023,17.24,WM MORRISONS STORE,"GROCERY STORES, SUPERMARKETS",Targeted Support Service - North,EH Wisbech District,
Cambridgeshire County Council,17/04/2023,21.98,AMZNMKTPLACE AMAZON.CO,MISCELLANEOUS AND SPECIALTY RETAIL STORES,Children's Disability Service,RSS - London Road,GRANTS&SUPPORT FOR OTHER SERVICE USERS
Cambridgeshire County Council,17/04/2023,23.96,AMZNMKTPLACE,MISCELLANEOUS AND SPECIALTY RETAIL STORES,Outdoor Education (includes Grafham Water),Grafham Water Centre,EDUCATIONAL MATERIALS
Cambridgeshire County Council,17/04/2023,24.99,BT PLC CONSUMER MOTO B,TELECOM INCL PREPAID/RECURRING PHONE SVCS,Changing Futures & Projects,Housing First,OTHER SERVICE USER SUPPORT
Cambridgeshire County Council,17/04/2023,29.99,AMZNMKTPLACE AMAZON.CO,MISCELLANEOUS AND SPECIALTY RETAIL STORES,Children's Disability Service,RSS - London Road,BUILDING CLEANING
Cambridgeshire County Council,17/04/2023,30.00,EARLY EDUCATION,SCHOOLS & EDUCATIONAL SVC-NOT ELSEWHERE CLASSIFIED,Early Years Service,Early Years Workforce Development,STAFF TRAINING & DEVELOPMENT
Cambridgeshire County Council,17/04/2023,37.54,TRAINLINE.COM,PASSENGER RAILWAYS,Safeguarding and Quality Assurance,Safeguarding and Quality Assurance,CAR MILEAGE AND ALLOWANCES - STAFF
Cambridgeshire County Council,17/04/2023,47.10,PANTHER TAXIS LTD,LIMOUSINES AND TAXICABS,Children's Disability Service,RSS - Woodland Lodge,PUBLIC TRANSPORT FARES
Cambridgeshire County Council,17/04/2023,50.00,MARKS&SPENCER PLC,"GROCERY STORES, SUPERMARKETS",Connecting Cambridgeshire,Connecting Cambridgeshire,HOSPITALITY AND REFRESHMENTS
Cambridgeshire County Council,17/04/2023,51.98,TRAVELODGE,TRAVELODGE,"Children, Education and Families Directorate","Children, Education and Families Directorate",
Cambridgeshire County Council,17/04/2023,60.00,VOUCHER EXPRESS,BUSINESS SERVICES-NOT ELSEWHERE CLASSIFIED,Corporate Parenting,South Child Looked After Team 2,ASYLUM SEEKERS
Cambridgeshire County Council,17/04/2023,67.94,TESCO STORES,"GROCERY STORES, SUPERMARKETS",Children's Disability Service,RSS - Haviland Way,CATERING PROVISIONS
Cambridgeshire County Council,17/04/2023,91.50,TESCO STORES 2694,"GROCERY STORES, SUPERMARKETS",Children's Disability Service,RSS - Woodland Lodge,CATERING PROVISIONS
Cambridgeshire County Council,17/04/2023,96.00,AMAZON PRIME WB7N80C35,DIRECT MARKETING-CONTINUITY/SUBSCRIPTION MERCHANTS,Outdoor Education (includes Grafham Water),Grafham Water Centre,TV LICENCES
Cambridgeshire County Council,17/04/2023,103.49,TESCO STORES 3108,"GROCERY STORES, SUPERMARKETS",Children's Disability Service,RSS - London Road,CATERING PROVISIONS
Cambridgeshire County Council,17/04/2023,113.00,BOOKER LTD -38585754,"GROCERY STORES, SUPERMARKETS",Outdoor Education (includes Grafham Water),Burwell House Residential Centre,CATERING PROVISIONS
Cambridgeshire County Council,17/04/2023,120.00,WWW.CIPFA.ORG.UK,"ORGANIZATIONS, MEMBERSHIP-NOT ELSEWHERE CLASSIFIED",Professional Finance,Cipfa Trainees,EXAM FEES
Cambridgeshire County Council,17/04/2023,133.79,AMZNMKTPLACE,MISCELLANEOUS AND SPECIALTY RETAIL STORES,Integrated Front Door,Cambs City Assessment Team,
Cambridgeshire County Council,17/04/2023,136.95,ALDI 776 94,"GROCERY STORES, SUPERMARKETS",Outdoor Education (includes Grafham Water),Grafham Water Centre,CATERING PROVISIONS
Cambridgeshire County Council,17/04/2023,144.90,AMZNMKTPLACE,MISCELLANEOUS AND SPECIALTY RETAIL STORES,Cambridgeshire Skills,Cambridgeshire Skills Direct Delivery,
Cambridgeshire County Council,17/04/2023,188.00,PANTHER TAXIS_CAMBRIDG,LIMOUSINES AND TAXICABS,Children's Disability Service,RSS - Woodland Lodge,PUBLIC TRANSPORT FARES
Cambridgeshire County Council,17/04/2023,240.00,WWW.CIPFA.ORG.UK,"ORGANIZATIONS, MEMBERSHIP-NOT ELSEWHERE CLASSIFIED",Internal Audit,Audit Division,EXAM FEES
Cambridgeshire County Council,17/04/2023,240.00,WWW.CIPFA.ORG.UK,"ORGANIZATIONS, MEMBERSHIP-NOT ELSEWHERE CLASSIFIED",Internal Audit,Audit Division,EXAM FEES
Cambridgeshire County Council,17/04/2023,288.63,TESCO STORES 2555,"GROCERY STORES, SUPERMARKETS",LD - In House Provider Services,40 & 44 Russell Street,CATERING PROVISIONS
Cambridgeshire County Council,17/04/2023,341.00,GO OUTDOORS RETAIL LIM,"SPORTS APPAREL, RIDING APPAREL STORES",Outdoor Education (includes Grafham Water),Grafham Water Centre,CLOTHING / UNIFORM
Cambridgeshire County Council,17/04/2023,406.80,ROYAL MAIL,POSTAL SERVICES-GOVERNMENT ONLY,Coroners,Coroners General,POSTAGE & CARRIAGE
Cambridgeshire County Council,17/04/2023,500.00,THELIFESTYLEVOUCHER,DIRECT MARKETING-OTHER DIRECT MARKETERS/NOT ELSEW.,Executive Director AHC,"Executive Director - Adults, Health & Comissioning",
Cambridgeshire County Council,18/04/2023,-4.67,ASDA GROCERIES ONLINE,"GROCERY STORES, SUPERMARKETS",LD - In House Provider Services,Horizon,CATERING PROVISIONS
Cambridgeshire County Council,18/04/2023,-1.32,ASDA GROCERIES ONLINE,"GROCERY STORES, SUPERMARKETS",Outdoor Education (includes Grafham Water),Burwell House Residential Centre,CATERING PROVISIONS
Cambridgeshire County Council,18/04/2023,2.14,TRAINLINE,PASSENGER RAILWAYS,Strategic Assets,Estates,PUBLIC TRANSPORT FARES
Cambridgeshire County Council,18/04/2023,3.15,AMZNMKTPLACE,MISCELLANEOUS AND SPECIALTY RETAIL STORES,Children's Disability Service,RSS - London Road,FURNITURE
Cambridgeshire County Council,18/04/2023,3.15,AMZNMKTPLACE,MISCELLANEOUS AND SPECIALTY RETAIL STORES,Children's Disability Service,RSS - London Road,FURNITURE
Cambridgeshire County Council,18/04/2023,3.15,AMZNMKTPLACE,MISCELLANEOUS AND SPECIALTY RETAIL STORES,Children's Disability Service,RSS - London Road,FURNITURE
Cambridgeshire County Council,18/04/2023,5.07,WANSFORD POST OFFICE,"MISC FOOD STORE-CONVENIENCE,MRKT,SPLTY,VENDNG MACS",Outdoor Education (includes Grafham Water),CEES Stibbington Centre,CATERING PROVISIONS
Cambridgeshire County Council,18/04/2023,5.58,TESCO STORES 2228,"GROCERY STORES, SUPERMARKETS",Changing Futures & Projects,Housing First,OTHER SERVICE USER SUPPORT
Cambridgeshire County Council,18/04/2023,7.65,ASDA GROCERIES ONLINE,"GROCERY STORES, SUPERMARKETS",Outdoor Education (includes Grafham Water),Burwell House Residential Centre,CATERING PROVISIONS
Cambridgeshire County Council,18/04/2023,7.99,MICROSOFT CONSOLE 1 MO,DIGITAL GOODS GAMES,Children's Disability Service,RSS - Woodland Lodge,SUBSCRIPTIONS
Cambridgeshire County Council,18/04/2023,9.99,AMZNMKTPLACE,MISCELLANEOUS AND SPECIALTY RETAIL STORES,Children's Disability Service,RSS - London Road,GRANTS&SUPPORT FOR OTHER SERVICE USERS
Cambridgeshire County Council,18/04/2023,10.00,POST OFFICE COUNTER,POSTAL SERVICES-GOVERNMENT ONLY,Changing Futures & Projects,Housing First,OTHER SERVICE USER SUPPORT
Cambridgeshire County Council,18/04/2023,10.78,AMZNMKTPLACE,MISCELLANEOUS AND SPECIALTY RETAIL STORES,Children's Disability Service,RSS - London Road,FURNITURE
Cambridgeshire County Council,18/04/2023,13.99,AMZNMKTPLACE,MISCELLANEOUS AND SPECIALTY RETAIL STORES,Children's Disability Service,RSS - London Road,GRANTS&SUPPORT FOR OTHER SERVICE USERS
Cambridgeshire County Council,18/04/2023,14.90,TFL TRAVEL CH,"TRANSPRTN-SUBRBN & LOCAL COMTR PSNGR, INCL FERRIES",Professional Finance,Cipfa Trainees,PUBLIC TRANSPORT FARES
Cambridgeshire County Council,18/04/2023,15.00,WEST NORTHAMPTONSHIRE,GOVERNMENT SERVICES-NOT ELSEWHERE CLASSIFIED,0-19 Organisation & Planning,Attendance and Behaviour,PROFESSIONAL FEES AND HIRED SERVICES
Cambridgeshire County Council,18/04/2023,15.00,WEST NORTHAMPTONSHIRE,GOVERNMENT SERVICES-NOT ELSEWHERE CLASSIFIED,0-19 Organisation & Planning,Attendance and Behaviour,PROFESSIONAL FEES AND HIRED SERVICES
Cambridgeshire County Council,18/04/2023,15.00,WEST NORTHAMPTONSHIRE,GOVERNMENT SERVICES-NOT ELSEWHERE CLASSIFIED,0-19 Organisation & Planning,Attendance and Behaviour,PROFESSIONAL FEES AND HIRED SERVICES
Cambridgeshire County Council,18/04/2023,15.75,ETSY.COM - PLAYPEBBLES,ACCESSORY AND APPAREL STORES-MISCELLANEOUS,Early Years Service,EY Central Costs,
Cambridgeshire County Council,18/04/2023,19.85,BAKER ROSS,"ARTIST SUPPLY STORES, CRAFT SHOPS",Targeted Support Service - South,EH Child and Family Centre - South Cambs,EDUCATIONAL MATERIALS
Cambridgeshire County Council,18/04/2023,25.00,WWW.OVOENERGY.COM,"UTLTS-ELCTRC, GAS, HEATING OIL, SANITARY, WATER",Targeted Support Service - South,EH East Cambridgeshire District,SPECIALIST SUPPLIES AND MATERIALS
Cambridgeshire County Council,18/04/2023,25.00,WWW.OVOENERGY.COM,"UTLTS-ELCTRC, GAS, HEATING OIL, SANITARY, WATER",Targeted Support Service - South,EH East Cambridgeshire District,SPECIALIST SUPPLIES AND MATERIALS
Cambridgeshire County Council,18/04/2023,28.29,ALDI,"GROCERY STORES, SUPERMARKETS",Early Years Service,Oasis Nursery,CATERING PROVISIONS
Cambridgeshire County Council,18/04/2023,29.24,TRAINLINE,PASSENGER RAILWAYS,Professional Finance,Cipfa Trainees,PUBLIC TRANSPORT FARES
Cambridgeshire County Council,18/04/2023,30.35,TESCO STORES 5657,"GROCERY STORES, SUPERMARKETS",LD - In House Provider Services,No. 20 Alder Close Respite,CATERING PROVISIONS
Cambridgeshire County Council,18/04/2023,34.50,WWW.ARGOS.CO.UK,DEPARTMENT STORES,Corporate Parenting,South Child Looked After Team 2,LEAVING CARE GRANTS
Cambridgeshire County Council,18/04/2023,43.25,POST OFFICE COUNTER,POSTAL SERVICES-GOVERNMENT ONLY,Coroners,Coroners General,POSTAGE & CARRIAGE
Cambridgeshire County Council,18/04/2023,52.05,TESCO STORES 2555,"GROCERY STORES, SUPERMARKETS",Early Years Service,Trumpington Park Early Years,CATERING PROVISIONS
Cambridgeshire County Council,18/04/2023,58.89,AMZNMKTPLACE,MISCELLANEOUS AND SPECIALTY RETAIL STORES,Early Years Service,EY Central Costs,
Cambridgeshire County Council,18/04/2023,62.00,SAINSBURYS SMKTS,"GROCERY STORES, SUPERMARKETS",Youth Offending Service,YOT Project,HOSPITALITY AND REFRESHMENTS
Cambridgeshire County Council,18/04/2023,63.70,AMAZON.CO.UK MY20X6HY5,DIRECT MARKETING-OTHER DIRECT MARKETERS/NOT ELSEW.,Targeted Support Service - South,EH Child and Family Centre - South Cambs,GRANTS&SUPPORT FOR OTHER SERVICE USERS
Cambridgeshire County Council,18/04/2023,68.31,TESCO STORES 2694,"GROCERY STORES, SUPERMARKETS",Children's Disability Service,RSS - Woodland Lodge,CATERING PROVISIONS
Cambridgeshire County Council,18/04/2023,77.42,ASDA GROCERIES ONLINE,"GROCERY STORES, SUPERMARKETS",Outdoor Education (includes Grafham Water),Burwell House Residential Centre,CATERING PROVISIONS
Cambridgeshire County Council,18/04/2023,86.22,ASDA GROCERIES ONLINE,"GROCERY STORES, SUPERMARKETS",LD - In House Provider Services,Horizon,CATERING PROVISIONS
Cambridgeshire County Council,18/04/2023,100.00,VOUCHER EXPRESS,BUSINESS SERVICES-NOT ELSEWHERE CLASSIFIED,Family Safeguarding East,Family Safeguarding East & South Cambs and Cambridge,LIVING SUPPORT GRANTS
Cambridgeshire County Council,18/04/2023,103.52,TESCO STORES,"GROCERY STORES, SUPERMARKETS",Children's Disability Service,RSS - Haviland Way,CATERING PROVISIONS
Cambridgeshire County Council,18/04/2023,125.00,PRINTING.COM CAMBRIDGE,MISCELLANEOUS PUBLISHING AND PRINTING,ICT Service (Education),ICT Service Systems Development,
Cambridgeshire County Council,18/04/2023,127.32,TESCO STORES 2694,"GROCERY STORES, SUPERMARKETS",LD - In House Provider Services,6 St Lukes Close (Respite),
Cambridgeshire County Council,18/04/2023,175.00,WWW.OVOENERGY.COM,"UTLTS-ELCTRC, GAS, HEATING OIL, SANITARY, WATER",Targeted Support Service - South,EH East Cambridgeshire District,SPECIALIST SUPPLIES AND MATERIALS
Cambridgeshire County Council,18/04/2023,175.00,WWW.OVOENERGY.COM,"UTLTS-ELCTRC, GAS, HEATING OIL, SANITARY, WATER",Targeted Support Service - South,EH East Cambridgeshire District,SPECIALIST SUPPLIES AND MATERIALS
Cambridgeshire County Council,18/04/2023,252.00,WIX.COM 1050539075,DIGITAL GOODS SOFTWARE APPLICATIONS,ICT Service (Education),ICT Service Systems Development,
Cambridgeshire County Council,18/04/2023,263.12,TRAVELODGE,TRAVELODGE,"Children, Education and Families Directorate","Children, Education and Families Directorate",OTHER SERVICE USER SUPPORT
Cambridgeshire County Council,18/04/2023,400.00,ZOOM.US 888-799-9666,TELECOM INCL PREPAID/RECURRING PHONE SVCS,Cambridgeshire Music,Cambs Music Business Development,COMPUTER SOFTWARE - PURCHASE
Cambridgeshire County Council,18/04/2023,681.28,AMZNMKTPLACE,MISCELLANEOUS AND SPECIALTY RETAIL STORES,Corporate Parenting,South Child Looked After Team 2,LEAVING CARE GRANTS
Cambridgeshire County Council,19/04/2023,1.98,W BOYES & CO LTD MARCH,DISCOUNT STORES,Cambridgeshire Skills,Cambridgeshire Skills Direct Delivery,
Cambridgeshire County Council,19/04/2023,2.00,STGCOACH/CTYLINK,BUS LINES,Changing Futures & Projects,Housing First,OTHER SERVICE USER SUPPORT
Cambridgeshire County Council,19/04/2023,3.95,AMAZON.CO.UK 7S1H81Z65,DIRECT MARKETING-OTHER DIRECT MARKETERS/NOT ELSEW.,ICT Service (Education),ICT Service Systems Development,
Cambridgeshire County Council,19/04/2023,4.10,JD WETHERSPOON,"EATING PLACES, RESTAURANTS",Changing Futures & Projects,Housing First,OTHER SERVICE USER SUPPORT
Cambridgeshire County Council,19/04/2023,4.90,NCP LTD,AUTOMOBILE PARKING LOTS AND GARAGES,Changing Futures & Projects,Counting Every Adult,
Cambridgeshire County Council,19/04/2023,5.60,AMZNMKTPLACE AMAZON.CO,MISCELLANEOUS AND SPECIALTY RETAIL STORES,LD - In House Provider Services,Horizon,
Cambridgeshire County Council,19/04/2023,5.69,ADDENBROOKES HOSPITAL,"MISC FOOD STORE-CONVENIENCE,MRKT,SPLTY,VENDNG MACS",Changing Futures & Projects,Counting Every Adult,
Cambridgeshire County Council,19/04/2023,5.71,TRAINLINE,PASSENGER RAILWAYS,Strategic Assets,Estates,PUBLIC TRANSPORT FARES
Cambridgeshire County Council,19/04/2023,5.99,AMZNMKTPLACE,MISCELLANEOUS AND SPECIALTY RETAIL STORES,Outdoor Education (includes Grafham Water),Grafham Water Centre,EDUCATIONAL MATERIALS
Cambridgeshire County Council,19/04/2023,6.00,CO-OP GROUP 171471,"GROCERY STORES, SUPERMARKETS",Outdoor Education (includes Grafham Water),Burwell House Residential Centre,CATERING PROVISIONS
Cambridgeshire County Council,19/04/2023,6.89,SUBWAY 42958 COWGATE,FAST FOOD RESTAURANTS,Changing Futures & Projects,Housing First,OTHER SERVICE USER SUPPORT
Cambridgeshire County Council,19/04/2023,7.40,TFL TRAVEL CH,"TRANSPRTN-SUBRBN & LOCAL COMTR PSNGR, INCL FERRIES",Professional Finance,Cipfa Trainees,PUBLIC TRANSPORT FARES
Cambridgeshire County Council,19/04/2023,7.88,AMZNMKTPLACE AMAZON.CO,MISCELLANEOUS AND SPECIALTY RETAIL STORES,Children's Disability Service,RSS - Haviland Way,GENERAL OFFICE EXPENSES & STATIONERY
Cambridgeshire County Council,19/04/2023,7.90,CO-OP GROUP 171541,"GROCERY STORES, SUPERMARKETS",Cambridgeshire Music,Cambs Music Business Development,HOSPITALITY AND REFRESHMENTS
Cambridgeshire County Council,19/04/2023,8.20,POST OFFICE COUNTER,POSTAL SERVICES-GOVERNMENT ONLY,Cambridgeshire Skills,Cambridgeshire Skills Direct Delivery,
Cambridgeshire County Council,19/04/2023,8.50,WM MORRISONS STORE,"GROCERY STORES, SUPERMARKETS",Children's Disability Service,RSS - London Road,FURNITURE
Cambridgeshire County Council,19/04/2023,8.99,WH SMITH HUNTINGDON,NEWS DEALERS AND NEWSSTANDS,Changing Futures & Projects,Housing First,OTHER SERVICE USER SUPPORT
Cambridgeshire County Council,19/04/2023,9.00,HIGH LODGE CP,GOVERNMENT SERVICES-NOT ELSEWHERE CLASSIFIED,Changing Futures & Projects,Housing First,OTHER SERVICE USER SUPPORT
Cambridgeshire County Council,19/04/2023,9.00,HIGH LODGE CP,GOVERNMENT SERVICES-NOT ELSEWHERE CLASSIFIED,Changing Futures & Projects,Housing First,OTHER SERVICE USER SUPPORT
Cambridgeshire County Council,19/04/2023,9.00,HIGH LODGE CP,GOVERNMENT SERVICES-NOT ELSEWHERE CLASSIFIED,Changing Futures & Projects,Housing First,CAR MILEAGE AND ALLOWANCES - STAFF
Cambridgeshire County Council,19/04/2023,9.00,STGCOACH/CTYLINK,BUS LINES,Changing Futures & Projects,Housing First,OTHER SERVICE USER SUPPORT
Cambridgeshire County Council,19/04/2023,9.19,JD WETHERSPOON,"EATING PLACES, RESTAURANTS",Changing Futures & Projects,Housing First,OTHER SERVICE USER SUPPORT
Cambridgeshire County Council,19/04/2023,9.50,LNER WEB SALES,PASSENGER RAILWAYS,Corporate Parenting,South Child Looked After Team 2,CAR MILEAGE AND ALLOWANCES - OTHER
Cambridgeshire County Council,19/04/2023,10.00,DUNELM SOFTFURNISHINGS,"EQUIP, FURNITURE, HOME FURNSHNGS STRS (EXCPT APPL)",Learning & Development,L&D Team,GENERAL OFFICE EXPENSES & STATIONERY
Cambridgeshire County Council,19/04/2023,11.98,AMZNMKTPLACE AMAZON.CO,MISCELLANEOUS AND SPECIALTY RETAIL STORES,LD - In House Provider Services,Horizon,
Cambridgeshire County Council,19/04/2023,13.70,TESCO STORES 2889,"GROCERY STORES, SUPERMARKETS",Cambridgeshire Music,Cambs Music Business Development,HOSPITALITY AND REFRESHMENTS
Cambridgeshire County Council,19/04/2023,14.90,TFL TRAVEL CH,"TRANSPRTN-SUBRBN & LOCAL COMTR PSNGR, INCL FERRIES",Professional Finance,Cipfa Trainees,PUBLIC TRANSPORT FARES
Cambridgeshire County Council,19/04/2023,15.00,WEST NORTHAMPTONSHIRE,GOVERNMENT SERVICES-NOT ELSEWHERE CLASSIFIED,0-19 Organisation & Planning,Attendance and Behaviour,PROFESSIONAL FEES AND HIRED SERVICES
Cambridgeshire County Council,19/04/2023,15.00,WEST NORTHAMPTONSHIRE,GOVERNMENT SERVICES-NOT ELSEWHERE CLASSIFIED,0-19 Organisation & Planning,Attendance and Behaviour,PROFESSIONAL FEES AND HIRED SERVICES
Cambridgeshire County Council,19/04/2023,15.00,KAM RETAIL LTD SPAR,"MISC FOOD STORE-CONVENIENCE,MRKT,SPLTY,VENDNG MACS",Changing Futures & Projects,Counting Every Adult,
Cambridgeshire County Council,19/04/2023,15.20,LUL TICKET MACHINE,PASSENGER RAILWAYS,Chief Executive,Chief Executive's Office,
Cambridgeshire County Council,19/04/2023,15.59,ZOOM.US 888-799-9666,TELECOM INCL PREPAID/RECURRING PHONE SVCS,School Improvement Service,Education Health Safety and Wellbeing: PE & Sport Advisor,SUBSCRIPTIONS
Cambridgeshire County Council,19/04/2023,17.88,AMZNMKTPLACE AMAZON.CO,MISCELLANEOUS AND SPECIALTY RETAIL STORES,Coroners,Coroners General,GENERAL OFFICE EXPENSES & STATIONERY
Cambridgeshire County Council,19/04/2023,18.67,AMAZON.CO.UK V95GY5YB5,DIRECT MARKETING-OTHER DIRECT MARKETERS/NOT ELSEW.,LD - In House Provider Services,Hunts Community Centre,
Cambridgeshire County Council,19/04/2023,20.00,MY.MORRISONS.COM,"GROCERY STORES, SUPERMARKETS",ICT Service (Education),ICT Service Systems Development,
Cambridgeshire County Council,19/04/2023,21.69,TRAINLINE.COM,PASSENGER RAILWAYS,Performance & Strategic Development,Adults Central Business Support,
Cambridgeshire County Council,19/04/2023,22.98,EUROFLORIST UK LTD,FLORISTS,Fostering & Supervised Contact Services,Fostering Support and Supervision,SUPPORT AND GRANTS TO FOSTER CARERS
Cambridgeshire County Council,19/04/2023,23.99,TRAVIS PERKINS,"BUILDING MATERIALS, LUMBER STORES",Natural and Historic Environment,Greenspaces,
Cambridgeshire County Council,19/04/2023,25.00,FACEBK  RVDTFMPJ92,ADVERTISING SERVICES,Cambridgeshire Skills,Cambridgeshire Skills Management Team,
Cambridgeshire County Council,19/04/2023,25.05,TMB-MARCH,MISCELLANEOUS AND SPECIALTY RETAIL STORES,LD - In House Provider Services,No. 20 Alder Close Respite,CATERING PROVISIONS
Cambridgeshire County Council,19/04/2023,25.68,TRAINLINE,PASSENGER RAILWAYS,Professional Finance,Cipfa Trainees,PUBLIC TRANSPORT FARES
Cambridgeshire County Council,19/04/2023,26.10,HIGH LODGE CAFE,"EATING PLACES, RESTAURANTS",Changing Futures & Projects,Housing First,OTHER SERVICE USER SUPPORT
Cambridgeshire County Council,19/04/2023,29.99,AMZNMKTPLACE,MISCELLANEOUS AND SPECIALTY RETAIL STORES,Outdoor Education (includes Grafham Water),Grafham Water Centre,EDUCATIONAL MATERIALS
Cambridgeshire County Council,19/04/2023,30.00,TESCO GIFT CARD,"GROCERY STORES, SUPERMARKETS",Corporate Parenting,South Child Looked After Team 2,GRANTS&SUPPORT FOR OTHER SERVICE USERS
Cambridgeshire County Council,19/04/2023,30.00,VODAFONE LIMITED,TELECOM INCL PREPAID/RECURRING PHONE SVCS,Changing Futures & Projects,Housing First,OTHER SERVICE USER SUPPORT
Cambridgeshire County Council,19/04/2023,30.99,AMZNMKTPLACE,MISCELLANEOUS AND SPECIALTY RETAIL STORES,Outdoor Education (includes Grafham Water),Grafham Water Centre,EDUCATIONAL MATERIALS
Cambridgeshire County Council,19/04/2023,35.98,AMZNMKTPLACE,MISCELLANEOUS AND SPECIALTY RETAIL STORES,Children's Disability Service,RSS - Woodland Lodge,FURNITURE
Cambridgeshire County Council,19/04/2023,36.45,CROSS COUNTRY TRAINS,PASSENGER RAILWAYS,Professional Finance,Cipfa Trainees,PUBLIC TRANSPORT FARES
Cambridgeshire County Council,19/04/2023,37.98,AMZNMKTPLACE,MISCELLANEOUS AND SPECIALTY RETAIL STORES,Targeted Support Service - South,EH Child and Family Centre - Cambridge City,EDUCATIONAL MATERIALS
Cambridgeshire County Council,19/04/2023,39.95,TSGN,PASSENGER RAILWAYS,Internal Audit,Audit Division,PUBLIC TRANSPORT FARES
Cambridgeshire County Council,19/04/2023,42.86,WILTSHIRE FARM FOODS,COMPUTER SOFTWARE STORES,LD - In House Provider Services,Victoria  Lodge,CATERING PROVISIONS
Cambridgeshire County Council,19/04/2023,43.75,BARKERS BAKERY-HISTON,BAKERIES,Cambridgeshire Music,Cambs Music Business Development,HOSPITALITY AND REFRESHMENTS
Cambridgeshire County Council,19/04/2023,45.95,TRAINLINE,PASSENGER RAILWAYS,Professional Finance,Cipfa Trainees,PUBLIC TRANSPORT FARES
Cambridgeshire County Council,19/04/2023,46.70,PANTHER TAXIS LTD,LIMOUSINES AND TAXICABS,Children's Disability Service,RSS - Woodland Lodge,PUBLIC TRANSPORT FARES
Cambridgeshire County Council,19/04/2023,49.60,PANTHER TAXIS LTD,LIMOUSINES AND TAXICABS,Children's Disability Service,RSS - Woodland Lodge,PUBLIC TRANSPORT FARES
Cambridgeshire County Council,19/04/2023,49.97,AMZNMKTPLACE,MISCELLANEOUS AND SPECIALTY RETAIL STORES,Outdoor Education (includes Grafham Water),Burwell House Residential Centre,EDUCATIONAL EQUIPMENT
Cambridgeshire County Council,19/04/2023,53.00,WEST NORTHAMPTONSHIRE,GOVERNMENT SERVICES-NOT ELSEWHERE CLASSIFIED,0-19 Organisation & Planning,Attendance and Behaviour,PROFESSIONAL FEES AND HIRED SERVICES
Cambridgeshire County Council,19/04/2023,55.91,ALDI 8 776,"GROCERY STORES, SUPERMARKETS",Changing Futures & Projects,Counting Every Adult,
Cambridgeshire County Council,19/04/2023,68.66,TESCO STORES 2470,"GROCERY STORES, SUPERMARKETS",Family Safeguarding East,Adolescent Team South,LEAVING CARE GRANTS
Cambridgeshire County Council,19/04/2023,71.97,AMZNMKTPLACE,MISCELLANEOUS AND SPECIALTY RETAIL STORES,Cambridgeshire Skills,Cambridgeshire Skills Direct Delivery,
Cambridgeshire County Council,19/04/2023,79.98,AMZNMKTPLACE AMAZON.CO,MISCELLANEOUS AND SPECIALTY RETAIL STORES,LD - In House Provider Services,6 St Lukes Close (Respite),
Cambridgeshire County Council,19/04/2023,92.15,TESCO STORES,"GROCERY STORES, SUPERMARKETS",Children's Disability Service,RSS - Haviland Way,BUILDING CLEANING
Cambridgeshire County Council,19/04/2023,99.00,EB  MEAM ANNUAL CONFER,BUSINESS SERVICES-NOT ELSEWHERE CLASSIFIED,Changing Futures & Projects,Counting Every Adult,
Cambridgeshire County Council,19/04/2023,128.28,TRAINLINE.COM,PASSENGER RAILWAYS,Connecting Cambridgeshire,Connecting Cambridgeshire,
Cambridgeshire County Council,19/04/2023,142.80,PROCONFERENCES.COM,"COLLEGES, UNIV, PRO SCHOOLS, JUNIOR COLLEGES",Strategic Assets,Estates,STAFF TRAINING & DEVELOPMENT
Cambridgeshire County Council,19/04/2023,145.00,DUNELM SOFTFURNISHINGS,"EQUIP, FURNITURE, HOME FURNSHNGS STRS (EXCPT APPL)",Corporate Parenting,South Child Looked After Team 2,LIVING SPPORT GRANTS-FIN ASSIS 18+
Cambridgeshire County Council,19/04/2023,159.00,TVLICENSING.CO.UK,"CONSULTING, MANAGEMENT, AND PUBLIC RELATIONS SVCS",Outdoor Education (includes Grafham Water),Burwell House Residential Centre,GENERAL OFFICE EXPENSES & STATIONERY
Cambridgeshire County Council,19/04/2023,173.70,AMZNMKTPLACE,MISCELLANEOUS AND SPECIALTY RETAIL STORES,Outdoor Education (includes Grafham Water),Grafham Water Centre,EDUCATIONAL MATERIALS
Cambridgeshire County Council,19/04/2023,176.40,PROCONFERENCES.COM,"COLLEGES, UNIV, PRO SCHOOLS, JUNIOR COLLEGES",Strategic Assets,Estates,STAFF TRAINING & DEVELOPMENT
Cambridgeshire County Council,19/04/2023,182.95,WWW.ARGOS.CO.UK,DEPARTMENT STORES,Corporate Parenting,South Child Looked After Team 2,CHILDCARE COSTS
Cambridgeshire County Council,19/04/2023,252.00,WWW.CIWEM.  FLOOD & CO,"ORGANIZATIONS, CHARITABLE AND SOCIAL SERVICES",Natural and Historic Environment,Flood Team,STAFF SUBSISTENCE
Cambridgeshire County Council,19/04/2023,374.40,WWW.ANATOMYSTUFF.CO.UK,MISCELLANEOUS AND SPECIALTY RETAIL STORES,"Assistant Director - LDP, P&EI, Transfer of Care, 0-25 Service",Service Director - Adults and Safeguarding,
Cambridgeshire County Council,20/04/2023,2.00,STGCOACH/CTYLINK,BUS LINES,Changing Futures & Projects,Housing First,PUBLIC TRANSPORT FARES
Cambridgeshire County Council,20/04/2023,2.25,ROYAL MAIL GROUP LTD,POSTAL SERVICES-GOVERNMENT ONLY,Corporate Parenting,South Child Looked After Team 2,POSTAGE & CARRIAGE
Cambridgeshire County Council,20/04/2023,2.49,AMAZON.CO.UK JP3250TY5,DIRECT MARKETING-OTHER DIRECT MARKETERS/NOT ELSEW.,Children's Disability Service,RSS - Haviland Way,GENERAL OFFICE EXPENSES & STATIONERY
Cambridgeshire County Council,20/04/2023,2.80,AMZNMKTPLACE AMAZON.CO,MISCELLANEOUS AND SPECIALTY RETAIL STORES,LD - In House Provider Services,Horizon,
Cambridgeshire County Council,20/04/2023,3.99,AMZNMKTPLACE,MISCELLANEOUS AND SPECIALTY RETAIL STORES,Children's Disability Service,RSS - London Road,FURNITURE
Cambridgeshire County Council,20/04/2023,4.00,GRAFHAM WATER PARK,AUTOMOBILE PARKING LOTS AND GARAGES,Youth Offending Service,YOT - High Risk and Deter,OFFENDERS SUPPORT
Cambridgeshire County Council,20/04/2023,4.32,AMAZON.CO.UK BL9006R45,DIRECT MARKETING-OTHER DIRECT MARKETERS/NOT ELSEW.,LD - In House Provider Services,No. 20 Alder Close Respite,SPECIALIST EQUIPMENT FOR SERVICE DELIV
Cambridgeshire County Council,20/04/2023,6.00,SQ  KIOSK ON THE GREEN,FAST FOOD RESTAURANTS,Changing Futures & Projects,Housing First,OTHER SERVICE USER SUPPORT
Cambridgeshire County Council,20/04/2023,6.50,CO-OP GROUP 171471,"GROCERY STORES, SUPERMARKETS",Outdoor Education (includes Grafham Water),Burwell House Residential Centre,CATERING PROVISIONS
Cambridgeshire County Council,20/04/2023,7.10,GTR PARKING CONNECT EC,AUTOMOBILE PARKING LOTS AND GARAGES,Professional Finance,Cipfa Trainees,PUBLIC TRANSPORT FARES
Cambridgeshire County Council,20/04/2023,7.45,SUMUP   CAB  375,LIMOUSINES AND TAXICABS,Changing Futures & Projects,Housing First,OTHER SERVICE USER SUPPORT
Cambridgeshire County Council,20/04/2023,8.00,GRAND ARCADE CAR PARK,GOVERNMENT SERVICES-NOT ELSEWHERE CLASSIFIED,Cambridgeshire Skills,Cambridgeshire Skills Direct Delivery,
Cambridgeshire County Council,20/04/2023,8.49,AMZNMKTPLACE,MISCELLANEOUS AND SPECIALTY RETAIL STORES,Outdoor Education (includes Grafham Water),Grafham Water Centre,
Cambridgeshire County Council,20/04/2023,8.95,AMZNMKTPLACE,MISCELLANEOUS AND SPECIALTY RETAIL STORES,Children's Disability Service,RSS - Woodland Lodge,CLEANING AND DOMESTIC SUPPLIES
Cambridgeshire County Council,20/04/2023,8.99,WWW.ARGOS.CO.UK,DEPARTMENT STORES,LD - In House Provider Services,"Larkfield, Ely",EQUIPMENT AND TOOLS
Cambridgeshire County Council,20/04/2023,10.00,VESTA   VODAFONE TOPUP,TELECOM INCL PREPAID/RECURRING PHONE SVCS,Changing Futures & Projects,Housing First,OTHER SERVICE USER SUPPORT
Cambridgeshire County Council,20/04/2023,10.60,POST OFFICE COUNTER,POSTAL SERVICES-GOVERNMENT ONLY,Cambridgeshire Skills,Cambridgeshire Skills Direct Delivery,
Cambridgeshire County Council,20/04/2023,12.45,SUMUP   CAMBRIDGE TAXI,LIMOUSINES AND TAXICABS,Changing Futures & Projects,Housing First,
Cambridgeshire County Council,20/04/2023,14.00,ICELAND,"GROCERY STORES, SUPERMARKETS",Outdoor Education (includes Grafham Water),CEES Stibbington Centre,CATERING PROVISIONS
Cambridgeshire County Council,20/04/2023,14.39,DNH GODADDY.COM EUROPE,COMPUTER NETWORK/INFORMATION SERVICES,ICT Service (Education),ICT Service Systems Development,
Cambridgeshire County Council,20/04/2023,14.50,GO OUTDOORS,SPORTING GOODS STORES,Changing Futures & Projects,Housing First,OTHER SERVICE USER SUPPORT
Cambridgeshire County Council,20/04/2023,14.55,MCDONALDS,FAST FOOD RESTAURANTS,Youth Offending Service,YOT - High Risk and Deter,OFFENDERS SUPPORT
Cambridgeshire County Council,20/04/2023,15.00,WEST NORTHAMPTONSHIRE,GOVERNMENT SERVICES-NOT ELSEWHERE CLASSIFIED,0-19 Organisation & Planning,Attendance and Behaviour,PROFESSIONAL FEES AND HIRED SERVICES
Cambridgeshire County Council,20/04/2023,15.00,WEST NORTHAMPTONSHIRE,GOVERNMENT SERVICES-NOT ELSEWHERE CLASSIFIED,0-19 Organisation & Planning,Attendance and Behaviour,PROFESSIONAL FEES AND HIRED SERVICES
Cambridgeshire County Council,20/04/2023,15.00,WEST NORTHAMPTONSHIRE,GOVERNMENT SERVICES-NOT ELSEWHERE CLASSIFIED,0-19 Organisation & Planning,Attendance and Behaviour,PROFESSIONAL FEES AND HIRED SERVICES
Cambridgeshire County Council,20/04/2023,15.00,WEST NORTHAMPTONSHIRE,GOVERNMENT SERVICES-NOT ELSEWHERE CLASSIFIED,0-19 Organisation & Planning,Attendance and Behaviour,PROFESSIONAL FEES AND HIRED SERVICES
Cambridgeshire County Council,20/04/2023,15.00,WEST NORTHAMPTONSHIRE,GOVERNMENT SERVICES-NOT ELSEWHERE CLASSIFIED,0-19 Organisation & Planning,Attendance and Behaviour,PROFESSIONAL FEES AND HIRED SERVICES
Cambridgeshire County Council,20/04/2023,15.00,TESCO GIFT CARD,"GROCERY STORES, SUPERMARKETS",Corporate Parenting,North Care Leaving Team 2,SPECIALIST EQUIPMENT FOR SERVICE DELIV
Cambridgeshire County Council,20/04/2023,15.06,TESCO STORES 2694,"GROCERY STORES, SUPERMARKETS",Targeted Support Service - North,"EH St Neots, RS&Y District Team � Youth Offer",SPECIALIST EQUIPMENT FOR SERVICE DELIV
Cambridgeshire County Council,20/04/2023,17.06,AMZNMKTPLACE,MISCELLANEOUS AND SPECIALTY RETAIL STORES,Targeted Support Service - North,EH Child and Family Centre - Wisbech,EDUCATIONAL MATERIALS
Cambridgeshire County Council,20/04/2023,19.99,AMAZON.CO.UK YQ82O8325,DIRECT MARKETING-OTHER DIRECT MARKETERS/NOT ELSEW.,Children's Disability Service,RSS - Woodland Lodge,OTHER SERVICE USER SUPPORT
Cambridgeshire County Council,20/04/2023,21.00,BAYTREE OWL AND,"AQUARIUMS, DOLPHINARIUMS, AND SEAQUARIUMS",Changing Futures & Projects,Housing First,OTHER SERVICE USER SUPPORT
Cambridgeshire County Council,20/04/2023,23.53,TRAINLINE.COM,PASSENGER RAILWAYS,Performance & Strategic Development,Adults Central Business Support,
Cambridgeshire County Council,20/04/2023,23.58,AMZNMKTPLACE,MISCELLANEOUS AND SPECIALTY RETAIL STORES,Outdoor Education (includes Grafham Water),Grafham Water Centre,EDUCATIONAL MATERIALS
Cambridgeshire County Council,20/04/2023,23.82,AMZNMKTPLACE,MISCELLANEOUS AND SPECIALTY RETAIL STORES,Outdoor Education (includes Grafham Water),Grafham Water Centre,EDUCATIONAL MATERIALS
Cambridgeshire County Council,20/04/2023,29.69,ASDA STORES 4857,"GROCERY STORES, SUPERMARKETS",Outdoor Education (includes Grafham Water),Burwell House Residential Centre,CATERING PROVISIONS
Cambridgeshire County Council,20/04/2023,31.04,SAINSBURY'S SMKT,"GROCERY STORES, SUPERMARKETS",Family Safeguarding East,Cambs City Children's Team 1,BOOKS AND MULTIMEDIA SUPPLIES
Cambridgeshire County Council,20/04/2023,33.78,TESCO STORES 5657,"GROCERY STORES, SUPERMARKETS",LD - In House Provider Services,No. 20 Alder Close Respite,CATERING PROVISIONS
Cambridgeshire County Council,20/04/2023,37.43,AMAZON.CO.UK YP2GR8RG5,DIRECT MARKETING-OTHER DIRECT MARKETERS/NOT ELSEW.,Children's Disability Service,RSS - Woodland Lodge,BUILDING CLEANING
Cambridgeshire County Council,20/04/2023,38.93,AMZNMKTPLACE AMAZON.CO,MISCELLANEOUS AND SPECIALTY RETAIL STORES,Targeted Support Service - South,EH Child and Family Centre - South Cambs,EDUCATIONAL MATERIALS
Cambridgeshire County Council,20/04/2023,40.50,TSGN,PASSENGER RAILWAYS,Professional Finance,Cipfa Trainees,PUBLIC TRANSPORT FARES
Cambridgeshire County Council,20/04/2023,42.20,TL&GN RAILWAY WEB,PASSENGER RAILWAYS,Chief Executive,Chief Executive's Office,OTHER TRAVEL EXPENSES
Cambridgeshire County Council,20/04/2023,46.50,PANTHER TAXIS LTD,LIMOUSINES AND TAXICABS,Children's Disability Service,RSS - Woodland Lodge,PUBLIC TRANSPORT FARES
Cambridgeshire County Council,20/04/2023,47.10,PANTHER TAXIS LTD,LIMOUSINES AND TAXICABS,Children's Disability Service,RSS - Woodland Lodge,PUBLIC TRANSPORT FARES
Cambridgeshire County Council,20/04/2023,49.50,VIRGINMEDIA.COM,TELECOM INCL PREPAID/RECURRING PHONE SVCS,Registration & Citizenship Services,Registrars General,TELEPHONE COSTS
Cambridgeshire County Council,20/04/2023,53.00,WEST NORTHAMPTONSHIRE,GOVERNMENT SERVICES-NOT ELSEWHERE CLASSIFIED,0-19 Organisation & Planning,Attendance and Behaviour,PROFESSIONAL FEES AND HIRED SERVICES
Cambridgeshire County Council,20/04/2023,53.50,HM PASSPORT OFFICE,GOVERNMENT SERVICES-NOT ELSEWHERE CLASSIFIED,Corporate Parenting,South Child Looked After Team 2,BOOKS AND MULTIMEDIA SUPPLIES
Cambridgeshire County Council,20/04/2023,53.50,HM PASSPORT OFFICE,GOVERNMENT SERVICES-NOT ELSEWHERE CLASSIFIED,Corporate Parenting,South Child Looked After Team 2,BOOKS AND MULTIMEDIA SUPPLIES
Cambridgeshire County Council,20/04/2023,53.50,HM PASSPORT OFFICE,GOVERNMENT SERVICES-NOT ELSEWHERE CLASSIFIED,Corporate Parenting,South Child Looked After Team 2,BOOKS AND MULTIMEDIA SUPPLIES
Cambridgeshire County Council,20/04/2023,53.50,HM PASSPORT OFFICE,GOVERNMENT SERVICES-NOT ELSEWHERE CLASSIFIED,Corporate Parenting,South Child Looked After Team 2,BOOKS AND MULTIMEDIA SUPPLIES
Cambridgeshire County Council,20/04/2023,53.50,HM PASSPORT OFFICE,GOVERNMENT SERVICES-NOT ELSEWHERE CLASSIFIED,Corporate Parenting,South Child Looked After Team 2,BOOKS AND MULTIMEDIA SUPPLIES
Cambridgeshire County Council,20/04/2023,54.36,RUTLAND CYCLING GRAFHA,BICYCLE SHOPS-SALES AND SERVICE,Youth Offending Service,YOT - High Risk and Deter,OFFENDERS SUPPORT
Cambridgeshire County Council,20/04/2023,70.81,TESCO STORES 3108,"GROCERY STORES, SUPERMARKETS",Children's Disability Service,RSS - London Road,CATERING PROVISIONS
Cambridgeshire County Council,20/04/2023,71.88,AMZNMKTPLACE,MISCELLANEOUS AND SPECIALTY RETAIL STORES,Outdoor Education (includes Grafham Water),Grafham Water Centre,EDUCATIONAL MATERIALS
Cambridgeshire County Council,20/04/2023,72.84,AMZNMKTPLACE,MISCELLANEOUS AND SPECIALTY RETAIL STORES,Changing Futures & Projects,Housing First,OTHER SERVICE USER SUPPORT
Cambridgeshire County Council,20/04/2023,75.03,TESCO STORES 2694,"GROCERY STORES, SUPERMARKETS",Children's Disability Service,RSS - Woodland Lodge,BUILDING CLEANING
Cambridgeshire County Council,20/04/2023,82.50,HM PASSPORT OFFICE,GOVERNMENT SERVICES-NOT ELSEWHERE CLASSIFIED,Corporate Parenting,South Child Looked After Team 2,BOOKS AND MULTIMEDIA SUPPLIES
Cambridgeshire County Council,20/04/2023,87.00,SP MY CLOTHING,CHILDREN'S AND INFANT'S WEAR STORES,Children's Disability Service,RSS - London Road,GRANTS&SUPPORT FOR OTHER SERVICE USERS
Cambridgeshire County Council,20/04/2023,99.00,EB  MEAM ANNUAL CONFER,BUSINESS SERVICES-NOT ELSEWHERE CLASSIFIED,Changing Futures & Projects,Housing First,OTHER SERVICE USER SUPPORT
Cambridgeshire County Council,20/04/2023,110.00,IOSH SERVICES LTD,SCHOOLS & EDUCATIONAL SVC-NOT ELSEWHERE CLASSIFIED,"Health, Safety & Wellbeing",HR HSW,
Cambridgeshire County Council,20/04/2023,117.00,SKILLS FOR CARE,"ORGANIZATIONS, CHARITABLE AND SOCIAL SERVICES",Learning & Development,L&D Team,STAFF TRAINING & DEVELOPMENT
Cambridgeshire County Council,20/04/2023,120.00,PROTRAININGS,SCHOOLS & EDUCATIONAL SVC-NOT ELSEWHERE CLASSIFIED,Children's Disability Service,CamPlay Holiday Clubs,
Cambridgeshire County Council,20/04/2023,159.00,TVLICENSING.CO.UK,"CONSULTING, MANAGEMENT, AND PUBLIC RELATIONS SVCS",LD - In House Provider Services,Hunts Community Centre,
Cambridgeshire County Council,20/04/2023,189.99,AMAZON.CO.UK 6237S7U05,DIRECT MARKETING-OTHER DIRECT MARKETERS/NOT ELSEW.,Outdoor Education (includes Grafham Water),Grafham Water Centre,EQUIPMENT AND TOOLS
Cambridgeshire County Council,20/04/2023,200.00,EE LIMITED,TELECOM INCL PREPAID/RECURRING PHONE SVCS,Outdoor Education (includes Grafham Water),Grafham Water Centre,MOBILE PHONES
Cambridgeshire County Council,20/04/2023,226.27,OCADO,"GROCERY STORES, SUPERMARKETS",Outdoor Education (includes Grafham Water),Grafham Water Centre,CATERING PROVISIONS
Cambridgeshire County Council,20/04/2023,240.00,WWW.CIPFA.ORG.UK,"ORGANIZATIONS, MEMBERSHIP-NOT ELSEWHERE CLASSIFIED",Professional Finance,Cipfa Trainees,EXAM FEES
Cambridgeshire County Council,20/04/2023,406.80,ROYAL MAIL,POSTAL SERVICES-GOVERNMENT ONLY,Coroners,Coroners General,POSTAGE & CARRIAGE
Cambridgeshire County Council,20/04/2023,"2,301.00",THE TRAVEL CHAPTER LTD,CAMPGROUNDS AND TRAILER PARKS,Corporate Parenting,South Child Looked After Team 2,GRANTS&SUPPORT FOR OTHER SERVICE USERS
Cambridgeshire County Council,21/04/2023,0.79,APPLE.COM/BILL,DIGITAL GOODS MULTI CATEGORY,Cambridgeshire Music,Cambs Music Business Development,SPECIALIST EQUIPMENT FOR SERVICE DELIV
Cambridgeshire County Council,21/04/2023,0.99,AMAZON PRIME VE5VE0LP5,DIRECT MARKETING-CONTINUITY/SUBSCRIPTION MERCHANTS,Targeted Support Service - North,YS - GPC recode,BOOKS AND MULTIMEDIA SUPPLIES
Cambridgeshire County Council,21/04/2023,1.50,RINGGO,AUTOMOBILE PARKING LOTS AND GARAGES,Changing Futures & Projects,Housing First,OTHER SERVICE USER SUPPORT
Cambridgeshire County Council,21/04/2023,1.50,RINGGO,AUTOMOBILE PARKING LOTS AND GARAGES,Changing Futures & Projects,Housing First,OTHER SERVICE USER SUPPORT
Cambridgeshire County Council,21/04/2023,2.49,APPLE.COM/BILL,DIGITAL GOODS MULTI CATEGORY,ICT Service (Education),ICT Service Systems Development,
Cambridgeshire County Council,21/04/2023,2.50,RINGGO,AUTOMOBILE PARKING LOTS AND GARAGES,Changing Futures & Projects,Housing First,OTHER SERVICE USER SUPPORT
Cambridgeshire County Council,21/04/2023,2.50,RINGGO,AUTOMOBILE PARKING LOTS AND GARAGES,Changing Futures & Projects,Housing First,OTHER SERVICE USER SUPPORT
Cambridgeshire County Council,21/04/2023,2.94,CO-OP GROUP 171471,"GROCERY STORES, SUPERMARKETS",Outdoor Education (includes Grafham Water),Burwell House Residential Centre,CATERING PROVISIONS
Cambridgeshire County Council,21/04/2023,5.39,POST OFFICE COUNTER,POSTAL SERVICES-GOVERNMENT ONLY,ICT Service (Education),ICT Service Systems Development,
Cambridgeshire County Council,21/04/2023,5.70,QUEEN ANNE TERRACE CAR,GOVERNMENT SERVICES-NOT ELSEWHERE CLASSIFIED,Changing Futures & Projects,Counting Every Adult,OTHER SERVICE USER SUPPORT
Cambridgeshire County Council,21/04/2023,5.70,QUEEN ANNE TERRACE CAR,GOVERNMENT SERVICES-NOT ELSEWHERE CLASSIFIED,Changing Futures & Projects,Counting Every Adult,PUBLIC TRANSPORT FARES
Cambridgeshire County Council,21/04/2023,6.70,LUL TICKET MACHINE,PASSENGER RAILWAYS,Chief Executive,Chief Executive's Office,
Cambridgeshire County Council,21/04/2023,6.99,TESCO SUBSCRIPTION,DIRECT MARKETING-CONTINUITY/SUBSCRIPTION MERCHANTS,Children's Disability Service,RSS - Haviland Way,SUBSCRIPTIONS
Cambridgeshire County Council,21/04/2023,6.99,AMAZON.CO.UK,DIGITAL GOODS AUDIOVISUAL MEDIA,Family Safeguarding East,Family Safeguarding East & South Cambs and Cambridge,
Cambridgeshire County Council,21/04/2023,7.10,GTR PARKING CONNECT EC,AUTOMOBILE PARKING LOTS AND GARAGES,Professional Finance,Cipfa Trainees,PUBLIC TRANSPORT FARES
Cambridgeshire County Council,21/04/2023,7.10,GTR PARKING CONNECT EC,AUTOMOBILE PARKING LOTS AND GARAGES,Professional Finance,Cipfa Trainees,PUBLIC TRANSPORT FARES
Cambridgeshire County Council,21/04/2023,8.32,APPLE.COM/BILL,DIGITAL GOODS MULTI CATEGORY,ICT Service (Education),ICT Service Systems Development,
Cambridgeshire County Council,21/04/2023,10.00,MY.MORRISONS.COM,"GROCERY STORES, SUPERMARKETS",ICT Service (Education),ICT Service Systems Development,
Cambridgeshire County Council,21/04/2023,10.90,BAKER ROSS,"ARTIST SUPPLY STORES, CRAFT SHOPS",Targeted Support Service - South,EH Child and Family Centre - South Cambs,EDUCATIONAL MATERIALS
Cambridgeshire County Council,21/04/2023,10.99,AMZNMKTPLACE AMAZON.CO,MISCELLANEOUS AND SPECIALTY RETAIL STORES,Outdoor Education (includes Grafham Water),Grafham Water Centre,GROUNDS MAINTENANCE
Cambridgeshire County Council,21/04/2023,12.99,AMZNMKTPLACE,MISCELLANEOUS AND SPECIALTY RETAIL STORES,Public Health - Admin & Salaries,Public Health Strategic Management,COMPUTER HARDWARE - PURCHASE
Cambridgeshire County Council,21/04/2023,12.99,SNAPPY SNAPS,"PHOTO DEVELOPING, PHOTOFINISHING LABORATORIES",Changing Futures & Projects,Housing First,OTHER SERVICE USER SUPPORT
Cambridgeshire County Council,21/04/2023,13.74,MARKS&SPENCER PLC SACA,"GROCERY STORES, SUPERMARKETS",Changing Futures & Projects,Counting Every Adult,OTHER SERVICE USER SUPPORT
Cambridgeshire County Council,21/04/2023,15.00,WEST NORTHAMPTONSHIRE,GOVERNMENT SERVICES-NOT ELSEWHERE CLASSIFIED,0-19 Organisation & Planning,Attendance and Behaviour,PROFESSIONAL FEES AND HIRED SERVICES
Cambridgeshire County Council,21/04/2023,16.98,TESCO STORES 2694,"GROCERY STORES, SUPERMARKETS",Targeted Support Service - North,"EH St Neots, RS&Y District Team � Youth Offer",SPECIALIST EQUIPMENT FOR SERVICE DELIV
Cambridgeshire County Council,21/04/2023,17.95,AMZNMKTPLACE AMAZON.CO,MISCELLANEOUS AND SPECIALTY RETAIL STORES,ICT Service (Education),ICT Service Systems Development,
Cambridgeshire County Council,21/04/2023,21.69,TRAINLINE.COM,PASSENGER RAILWAYS,Performance & Strategic Development,Adults Central Business Support,
Cambridgeshire County Council,21/04/2023,28.45,TESCO STORES 2694,"GROCERY STORES, SUPERMARKETS",Safeguarding and Quality Assurance,Childrens Participation,CATERING PROVISIONS
Cambridgeshire County Council,21/04/2023,29.99,AMZNMKTPLACE,MISCELLANEOUS AND SPECIALTY RETAIL STORES,Outdoor Education (includes Grafham Water),Grafham Water Centre,GROUNDS MAINTENANCE
Cambridgeshire County Council,21/04/2023,31.07,TRAINLINE.COM,PASSENGER RAILWAYS,Performance & Strategic Development,Adults Central Business Support,
Cambridgeshire County Council,21/04/2023,33.99,AMZNMKTPLACE AMAZON.CO,MISCELLANEOUS AND SPECIALTY RETAIL STORES,Corporate Parenting,South Child Looked After Team 2,GRANTS&SUPPORT FOR OTHER SERVICE USERS
Cambridgeshire County Council,21/04/2023,37.70,WM MORRISONS STORE,"GROCERY STORES, SUPERMARKETS",ICT Service (Education),ICT Service Systems Development,
Cambridgeshire County Council,21/04/2023,38.12,MAILCHIMP,DIGITAL GOODS MULTI CATEGORY,ICT Service (Education),ICT Service Systems Development,
Cambridgeshire County Council,21/04/2023,40.50,TSGN,PASSENGER RAILWAYS,Professional Finance,Cipfa Trainees,PUBLIC TRANSPORT FARES
Cambridgeshire County Council,21/04/2023,46.50,PANTHER TAXIS LTD,LIMOUSINES AND TAXICABS,Children's Disability Service,RSS - Woodland Lodge,PUBLIC TRANSPORT FARES
Cambridgeshire County Council,21/04/2023,46.50,PANTHER TAXIS LTD,LIMOUSINES AND TAXICABS,Children's Disability Service,RSS - Woodland Lodge,PUBLIC TRANSPORT FARES
Cambridgeshire County Council,21/04/2023,47.10,PANTHER TAXIS LTD,LIMOUSINES AND TAXICABS,Children's Disability Service,RSS - Woodland Lodge,PUBLIC TRANSPORT FARES
Cambridgeshire County Council,21/04/2023,50.00,APPLE.COM/UK,ELECTRONIC SALES,ICT Service (Education),ICT Service Systems Development,
Cambridgeshire County Council,21/04/2023,55.68,AMAZON.CO.UK 280U13PC5,DIRECT MARKETING-OTHER DIRECT MARKETERS/NOT ELSEW.,Outdoor Education (includes Grafham Water),Grafham Water Centre,FURNITURE
Cambridgeshire County Council,21/04/2023,56.32,ASDA STORES,"GROCERY STORES, SUPERMARKETS",Targeted Support Service - North,EH Child and Family Centre - Wisbech,CATERING PROVISIONS
Cambridgeshire County Council,21/04/2023,75.02,TESCO STORES,"GROCERY STORES, SUPERMARKETS",Children's Disability Service,RSS - Haviland Way,CATERING PROVISIONS
Cambridgeshire County Council,21/04/2023,82.50,HM PASSPORT OFFICE,GOVERNMENT SERVICES-NOT ELSEWHERE CLASSIFIED,Changing Futures & Projects,Housing First,OTHER SERVICE USER SUPPORT
Cambridgeshire County Council,21/04/2023,96.00,SP PERCUSSIONPLUS,COMPUTER SOFTWARE STORES,Cambridgeshire Music,Cambs Music Business Development,SPECIALIST EQUIPMENT FOR SERVICE DELIV
Cambridgeshire County Council,21/04/2023,98.98,GEAR4MUSIC,"MUSIC STORES-INSTRUMENTS, PIANOS, SHEET MUSIC",Cambridgeshire Music,Cambs Music Business Development,SPECIALIST EQUIPMENT FOR SERVICE DELIV
Cambridgeshire County Council,21/04/2023,120.77,TESCO STORES 3108,"GROCERY STORES, SUPERMARKETS",Children's Disability Service,RSS - London Road,CATERING PROVISIONS
Cambridgeshire County Council,21/04/2023,132.36,TRAINLINE,PASSENGER RAILWAYS,Safeguarding and Quality Assurance,Safeguarding and Quality Assurance,
Cambridgeshire County Council,21/04/2023,154.98,GEAR4MUSIC,"MUSIC STORES-INSTRUMENTS, PIANOS, SHEET MUSIC",Cambridgeshire Music,Cambs Music Business Development,SPECIALIST EQUIPMENT FOR SERVICE DELIV
Cambridgeshire County Council,21/04/2023,156.27,OCADO,"GROCERY STORES, SUPERMARKETS",Outdoor Education (includes Grafham Water),Grafham Water Centre,CATERING PROVISIONS
Cambridgeshire County Council,21/04/2023,178.00,HOLIDAY INNS,HOLIDAY INNS,Coroners,Coroners General,COURT COSTS
Cambridgeshire County Council,21/04/2023,193.55,TRAINLINE,PASSENGER RAILWAYS,Safeguarding and Quality Assurance,Safeguarding and Quality Assurance,
Cambridgeshire County Council,21/04/2023,227.60,CROSSCOUNTRYCOM,PASSENGER RAILWAYS,Shared Services,Insurance Section,OTHER TRAVEL EXPENSES
Cambridgeshire County Council,21/04/2023,319.20,TRAVELODGE,TRAVELODGE,"Children, Education and Families Directorate","Children, Education and Families Directorate",
Cambridgeshire County Council,21/04/2023,405.00,POST OFFICE COUNTER,POSTAL SERVICES-GOVERNMENT ONLY,0-19 Organisation & Planning,Attendance and Behaviour,POSTAGE & CARRIAGE
Cambridgeshire County Council,21/04/2023,645.00,THE CITY AND GUILDS OF,"ORGANIZATIONS, CHARITABLE AND SOCIAL SERVICES",Cambridgeshire Skills,Cambridgeshire Skills Direct Delivery,
Cambridgeshire County Council,21/04/2023,945.00,WWW.BAX-SHOP.CO.UK,ELECTRONIC SALES,Cambridgeshire Music,Cambs Music Business Development,SPECIALIST EQUIPMENT FOR SERVICE DELIV
Cambridgeshire County Council,21/04/2023,989.04,MEETINGDECISIONS.COM,"CONSULTING, MANAGEMENT, AND PUBLIC RELATIONS SVCS",ICT Service (Education),ICT Service Systems Development,
Cambridgeshire County Council,21/04/2023,"1,054.99",PMT ONLINE,"MUSIC STORES-INSTRUMENTS, PIANOS, SHEET MUSIC",Cambridgeshire Music,Cambs Music Business Development,SPECIALIST EQUIPMENT FOR SERVICE DELIV
Cambridgeshire County Council,24/04/2023,0.04,ASDA GROCERIES ONLINE,"GROCERY STORES, SUPERMARKETS",Outdoor Education (includes Grafham Water),Burwell House Residential Centre,CATERING PROVISIONS
Cambridgeshire County Council,24/04/2023,1.50,FIND A WILL,PROFESSIONAL SERVICES-NOT ELSEWHERE CLASSIFIED,Shared Services,Debt Team,DEBT RECOVERY COSTS
Cambridgeshire County Council,24/04/2023,1.50,RINGGO,AUTOMOBILE PARKING LOTS AND GARAGES,Changing Futures & Projects,Housing First,OTHER SERVICE USER SUPPORT
Cambridgeshire County Council,24/04/2023,2.60,ROYAL MAIL GROUP LTD,POSTAL SERVICES-GOVERNMENT ONLY,Corporate Parenting,South Child Looked After Team 2,POSTAGE & CARRIAGE
Cambridgeshire County Council,24/04/2023,4.00,WM MORRISONS STORE,"GROCERY STORES, SUPERMARKETS",Executive Director,CCC Finance Office,HOSPITALITY AND REFRESHMENTS
Cambridgeshire County Council,24/04/2023,4.29,AMZNMKTPLACE,MISCELLANEOUS AND SPECIALTY RETAIL STORES,Outdoor Education (includes Grafham Water),Burwell House Residential Centre,BUILDING REPAIR AND MAINTENANCE
Cambridgeshire County Council,24/04/2023,5.00,PETERBOROUGHCITYCOUNCI,AUTOMOBILE PARKING LOTS AND GARAGES,Changing Futures & Projects,Counting Every Adult,
Cambridgeshire County Council,24/04/2023,6.00,GIFFGAFF,TELECOM INCL PREPAID/RECURRING PHONE SVCS,Domestic Abuse and Sexual Violence Service,DLUHC Grant,
Cambridgeshire County Council,24/04/2023,6.60,AMZNMKTPLACE AMAZON.CO,MISCELLANEOUS AND SPECIALTY RETAIL STORES,Outdoor Education (includes Grafham Water),Grafham Water Centre,EDUCATIONAL MATERIALS
Cambridgeshire County Council,24/04/2023,7.57,SPAR ST NEOTS,"GROCERY STORES, SUPERMARKETS",Changing Futures & Projects,Counting Every Adult,OTHER SERVICE USER SUPPORT
Cambridgeshire County Council,24/04/2023,9.09,WM MORRISONS STORE,"GROCERY STORES, SUPERMARKETS",Cambridgeshire Music,Cambs Music Business Development,GENERAL OFFICE EXPENSES & STATIONERY
Cambridgeshire County Council,24/04/2023,13.90,SAINSBURYS,"GROCERY STORES, SUPERMARKETS",LD - In House Provider Services,6 St Lukes Close (Respite),
Cambridgeshire County Council,24/04/2023,14.00,GEN REGISTER OFFICE,GOVERNMENT SERVICES-NOT ELSEWHERE CLASSIFIED,Corporate Parenting,South Child Looked After Team 2,BOOKS AND MULTIMEDIA SUPPLIES
Cambridgeshire County Council,24/04/2023,14.99,AMAZON.CO.UK GK7MF1C55,DIRECT MARKETING-OTHER DIRECT MARKETERS/NOT ELSEW.,Strategic Assets,Estates,GENERAL OFFICE EXPENSES & STATIONERY
Cambridgeshire County Council,24/04/2023,15.00,WEST NORTHAMPTONSHIRE,GOVERNMENT SERVICES-NOT ELSEWHERE CLASSIFIED,0-19 Organisation & Planning,Attendance and Behaviour,PROFESSIONAL FEES AND HIRED SERVICES
Cambridgeshire County Council,24/04/2023,15.10,WM MORRISONS STORE,"GROCERY STORES, SUPERMARKETS",Executive Director,CCC Finance Office,HOSPITALITY AND REFRESHMENTS
Cambridgeshire County Council,24/04/2023,15.50,WWW.BETTER.ORG.UK,"ATHLTIC FIELDS,COMMRCL SPRT,SPRT CLBS,SPRT PROMOTR",Children's Disability Service,RSS - London Road,OTHER SERVICE USER SUPPORT
Cambridgeshire County Council,24/04/2023,19.99,AMZNMKTPLACE,MISCELLANEOUS AND SPECIALTY RETAIL STORES,Outdoor Education (includes Grafham Water),Burwell House Residential Centre,BUILDING REPAIR AND MAINTENANCE
Cambridgeshire County Council,24/04/2023,21.12,BUCKDEN SUPERMARKET,"CANDY, NUT, CONFECTIONERY STORES",Outdoor Education (includes Grafham Water),Grafham Water Centre,CATERING PROVISIONS
Cambridgeshire County Council,24/04/2023,22.50,POST OFFICE COUNTER,POSTAL SERVICES-GOVERNMENT ONLY,Coroners,Coroners General,POSTAGE & CARRIAGE
Cambridgeshire County Council,24/04/2023,23.16,AMZNMKTPLACE AMAZON.CO,MISCELLANEOUS AND SPECIALTY RETAIL STORES,Outdoor Education (includes Grafham Water),Grafham Water Centre,EDUCATIONAL MATERIALS
Cambridgeshire County Council,24/04/2023,25.00,PAYPAL  ARGOSDIRECT,VARIETY STORES,Targeted Support Service - South,EH Child and Family Centre - Cambridge City,"FIXTURES, FITTINGS AND FURNISHINGS"
Cambridgeshire County Council,24/04/2023,25.00,FACEBK  K7ARTLXJ92,ADVERTISING SERVICES,Cambridgeshire Skills,Cambridgeshire Skills Management Team,
Cambridgeshire County Council,24/04/2023,29.22,AMZNMKTPLACE AMAZON.CO,MISCELLANEOUS AND SPECIALTY RETAIL STORES,LD - In House Provider Services,No. 20 Alder Close Respite,CATERING PROVISIONS
Cambridgeshire County Council,24/04/2023,30.00,BUYATAB - ALDI,"GIFT, CARD, NOVELTY AND SOUVENIR SHOPS",Corporate Parenting,South Child Looked After Team 2,SPECIALIST EQUIPMENT FOR SERVICE DELIV
Cambridgeshire County Council,24/04/2023,30.00,EAT N BOWL ENTERPRISES,BOWLING ALLEYS,Children's Disability Service,RSS - Woodland Lodge,OTHER SERVICE USER SUPPORT
Cambridgeshire County Council,24/04/2023,31.07,TRAINLINE,PASSENGER RAILWAYS,Performance & Strategic Development,Adults Central Business Support,
Cambridgeshire County Council,24/04/2023,31.07,TRAINLINE.COM,PASSENGER RAILWAYS,Performance & Strategic Development,Adults Central Business Support,
Cambridgeshire County Council,24/04/2023,31.07,TRAINLINE.COM,PASSENGER RAILWAYS,Performance & Strategic Development,Adults Central Business Support,
Cambridgeshire County Council,24/04/2023,31.07,TRAINLINE.COM,PASSENGER RAILWAYS,Performance & Strategic Development,Adults Central Business Support,
Cambridgeshire County Council,24/04/2023,31.07,TRAINLINE,PASSENGER RAILWAYS,Performance & Strategic Development,Adults Central Business Support,
Cambridgeshire County Council,24/04/2023,31.90,BUCKDEN SUPERMARKET,"CANDY, NUT, CONFECTIONERY STORES",Outdoor Education (includes Grafham Water),Grafham Water Centre,CATERING PROVISIONS
Cambridgeshire County Council,24/04/2023,33.47,TESCO STORES 2694,"GROCERY STORES, SUPERMARKETS",LD - In House Provider Services,6 St Lukes Close (Respite),
Cambridgeshire County Council,24/04/2023,35.00,GEN REGISTER OFFICE,GOVERNMENT SERVICES-NOT ELSEWHERE CLASSIFIED,Corporate Parenting,South Child Looked After Team 2,BOOKS AND MULTIMEDIA SUPPLIES
Cambridgeshire County Council,24/04/2023,35.98,AMZNMKTPLACE AMAZON.CO,MISCELLANEOUS AND SPECIALTY RETAIL STORES,Outdoor Education (includes Grafham Water),Grafham Water Centre,EDUCATIONAL MATERIALS
Cambridgeshire County Council,24/04/2023,44.60,PANTHER TAXIS LTD,LIMOUSINES AND TAXICABS,Children's Disability Service,RSS - Woodland Lodge,PUBLIC TRANSPORT FARES
Cambridgeshire County Council,24/04/2023,45.08,AMZNMKTPLACE,MISCELLANEOUS AND SPECIALTY RETAIL STORES,Targeted Support Service - North,YS - GPC recode,
Cambridgeshire County Council,24/04/2023,45.48,TESCO STORES,"GROCERY STORES, SUPERMARKETS",Children's Disability Service,RSS - Haviland Way,CLEANING AND DOMESTIC SUPPLIES
Cambridgeshire County Council,24/04/2023,46.10,PANTHER TAXIS LTD,LIMOUSINES AND TAXICABS,Children's Disability Service,RSS - Woodland Lodge,PUBLIC TRANSPORT FARES
Cambridgeshire County Council,24/04/2023,47.10,PANTHER TAXIS LTD,LIMOUSINES AND TAXICABS,Children's Disability Service,RSS - Woodland Lodge,PUBLIC TRANSPORT FARES
Cambridgeshire County Council,24/04/2023,47.10,PANTHER TAXIS LTD,LIMOUSINES AND TAXICABS,Children's Disability Service,RSS - Woodland Lodge,PUBLIC TRANSPORT FARES
Cambridgeshire County Council,24/04/2023,48.80,PANTHER TAXIS LTD,LIMOUSINES AND TAXICABS,Children's Disability Service,RSS - Woodland Lodge,PUBLIC TRANSPORT FARES
Cambridgeshire County Council,24/04/2023,48.95,ALDI STORES LTD,"GROCERY STORES, SUPERMARKETS",Targeted Support Service - North,EH Child and Family Centre - Hunts,EDUCATIONAL MATERIALS
Cambridgeshire County Council,24/04/2023,49.81,FACEBK  Q9GLWN7VK2,ADVERTISING SERVICES,Human Resources,Social Work Recruit & Retain,RECRUITMENT ADVERTISING
Cambridgeshire County Council,24/04/2023,49.99,AMZNMKTPLACE,MISCELLANEOUS AND SPECIALTY RETAIL STORES,Targeted Support Service - South,EH Child and Family Centre - South Cambs,EDUCATIONAL MATERIALS
Cambridgeshire County Council,24/04/2023,53.50,HM PASSPORT OFFICE,GOVERNMENT SERVICES-NOT ELSEWHERE CLASSIFIED,Corporate Parenting,South Child Looked After Team 2,BOOKS AND MULTIMEDIA SUPPLIES
Cambridgeshire County Council,24/04/2023,54.88,AMZNMKTPLACE,MISCELLANEOUS AND SPECIALTY RETAIL STORES,Targeted Support Service - South,EH Child and Family Centre - Cambridge City,EDUCATIONAL MATERIALS
Cambridgeshire County Council,24/04/2023,55.98,AMZNMKTPLACE,MISCELLANEOUS AND SPECIALTY RETAIL STORES,Adult Mental Health,Cambridge North Adult Mental Health Team,
Cambridgeshire County Council,24/04/2023,58.32,TESCO STORES 5657,"GROCERY STORES, SUPERMARKETS",LD - In House Provider Services,No. 20 Alder Close Respite,CATERING PROVISIONS
Cambridgeshire County Council,24/04/2023,64.00,DUNELM (SOFT FURNISHIN,"DRAPERY, UPOLSTERY, AND WINDOW COVERINGS STORES",Outdoor Education (includes Grafham Water),Grafham Water Centre,CATERING EQUIPMENT-PURCHASES
Cambridgeshire County Council,24/04/2023,66.00,NORFOLK COUNTY COUNCIL,GOVERNMENT SERVICES-NOT ELSEWHERE CLASSIFIED,Targeted Support Service - North,EH Wisbech District,
Cambridgeshire County Council,24/04/2023,67.25,ASDA GROCERIES ONLINE,"GROCERY STORES, SUPERMARKETS",Outdoor Education (includes Grafham Water),Burwell House Residential Centre,CATERING PROVISIONS
Cambridgeshire County Council,24/04/2023,67.75,XTREME360,RECREATION SERVICES (NOT ELSEWHERE CLASSIFIED),Children's Disability Service,RSS - Woodland Lodge,OTHER SERVICE USER SUPPORT
Cambridgeshire County Council,24/04/2023,68.99,PREMIER INN,PREMIER INN,"Children, Education and Families Directorate","Children, Education and Families Directorate",GRANTS&SUPPORT FOR OTHER SERVICE USERS
Cambridgeshire County Council,24/04/2023,76.00,GEN REGISTER OFFICE,GOVERNMENT SERVICES-NOT ELSEWHERE CLASSIFIED,Family Safeguarding East,Fenland Children's Team 2,
Cambridgeshire County Council,24/04/2023,77.73,TESCO STORES 2694,"GROCERY STORES, SUPERMARKETS",Children's Disability Service,RSS - Woodland Lodge,CATERING PROVISIONS
Cambridgeshire County Council,24/04/2023,79.95,HOLIDAY PAYMENT AVR,TRAVEL AGENCIES AND TOUR OPERATORS,Family Safeguarding East,Adolescent Team South,PARENTS VISITING EXPENSES
Cambridgeshire County Council,24/04/2023,80.45,MCDONALDS,FAST FOOD RESTAURANTS,Targeted Support Service - North,"EH St Neots, RS&Y District Team � Youth Offer",SPECIALIST EQUIPMENT FOR SERVICE DELIV
Cambridgeshire County Council,24/04/2023,91.10,PANTHER TAXIS_CAMBRIDG,LIMOUSINES AND TAXICABS,Children's Disability Service,RSS - Woodland Lodge,PUBLIC TRANSPORT FARES
Cambridgeshire County Council,24/04/2023,93.64,OCADO,"GROCERY STORES, SUPERMARKETS",Outdoor Education (includes Grafham Water),Grafham Water Centre,CATERING PROVISIONS
Cambridgeshire County Council,24/04/2023,97.95,HIHO,"CLOCK, JEWELRY, WATCH, AND SILVERWARE STORE",Cambridgeshire Music,Cambs Music Business Development,GIFTS
Cambridgeshire County Council,24/04/2023,99.00,EB  MEAM ANNUAL CONFER,BUSINESS SERVICES-NOT ELSEWHERE CLASSIFIED,Changing Futures & Projects,Counting Every Adult,OTHER SERVICE USER SUPPORT
Cambridgeshire County Council,24/04/2023,99.00,EB  MEAM ANNUAL CONFER,BUSINESS SERVICES-NOT ELSEWHERE CLASSIFIED,Changing Futures & Projects,Counting Every Adult,STAFF TRAINING & DEVELOPMENT
Cambridgeshire County Council,24/04/2023,105.00,NORFOLK COUNTY COUNCIL,GOVERNMENT SERVICES-NOT ELSEWHERE CLASSIFIED,Targeted Support Service - North,EH Wisbech District,
Cambridgeshire County Council,24/04/2023,118.95,WWW.ARGOS.CO.UK,DEPARTMENT STORES,Corporate Parenting,South Child Looked After Team 2,LEAVING CARE GRANTS
Cambridgeshire County Council,24/04/2023,121.11,TRAVELODGE,TRAVELODGE,"Children, Education and Families Directorate","Children, Education and Families Directorate",CAR MILEAGE AND ALLOWANCES - STAFF
Cambridgeshire County Council,24/04/2023,153.46,POSTURITE LTD,MISCELLANEOUS HOUSE FURNISHING SPECIALTY SHOPS,Family Safeguarding West,Family Safeguarding Hunts and Fenland,STAFF HEALTH & WELFARE COSTS
Cambridgeshire County Council,24/04/2023,162.95,PAYPAL  ARGOSDIRECT,VARIETY STORES,Targeted Support Service - South,EH Child and Family Centre - Cambridge City,"FIXTURES, FITTINGS AND FURNISHINGS"
Cambridgeshire County Council,24/04/2023,280.00,C ADAMSON,"ORGANIZATIONS, CHARITABLE AND SOCIAL SERVICES",Youth Offending Service,YOT Project,STAFF TRAINING & DEVELOPMENT
Cambridgeshire County Council,24/04/2023,336.00,FENGATE SERVICE CENTRE,AUTOMOTIVE SERVICE SHOPS,Domestic Abuse and Sexual Violence Service,DLUHC Grant,
Cambridgeshire County Council,24/04/2023,"1,199.00",C2E851200529C UKVI,GOVERNMENT SERVICES-NOT ELSEWHERE CLASSIFIED,Adoption,Regional Adoption Agency,STAFF HEALTH & WELFARE COSTS
Cambridgeshire County Council,24/04/2023,"1,345.00",TEAMVIEWER GMBH,COMPUTER SOFTWARE STORES,Traffic Management,Signals and Systems,
Cambridgeshire County Council,25/04/2023,-3.55,ASDA GROCERIES ONLINE,"GROCERY STORES, SUPERMARKETS",LD - In House Provider Services,Horizon,CATERING PROVISIONS
Cambridgeshire County Council,25/04/2023,2.75,WM MORRISONS STORE,"GROCERY STORES, SUPERMARKETS",Cambridgeshire Music,Cambs Music Business Development,GIFTS
Cambridgeshire County Council,25/04/2023,2.94,WELLAND MINIMART LTD,"MISC FOOD STORE-CONVENIENCE,MRKT,SPLTY,VENDNG MACS",Changing Futures & Projects,Counting Every Adult,OTHER SERVICE USER SUPPORT
Cambridgeshire County Council,25/04/2023,3.00,LAND REGISTRY ECOM CCC,GOVERNMENT SERVICES-NOT ELSEWHERE CLASSIFIED,Shared Services,Debt Team,DEBT RECOVERY COSTS
Cambridgeshire County Council,25/04/2023,3.90,QEHKL,AUTOMOBILE PARKING LOTS AND GARAGES,Changing Futures & Projects,Housing First,
Cambridgeshire County Council,25/04/2023,4.79,WM MORRISONS STORE,"GROCERY STORES, SUPERMARKETS",Targeted Support Service - South,EH Child and Family Centre - South Cambs,
Cambridgeshire County Council,25/04/2023,5.00,ALWALTON STORES LTD,MISCELLANEOUS AND SPECIALTY RETAIL STORES,Outdoor Education (includes Grafham Water),CEES Stibbington Centre,CATERING PROVISIONS
Cambridgeshire County Council,25/04/2023,5.16,TMB-MARCH,MISCELLANEOUS AND SPECIALTY RETAIL STORES,LD - In House Provider Services,IHPS - Tennyson Lodge,SPECIALIST EQUIPMENT FOR SERVICE DELIV
Cambridgeshire County Council,25/04/2023,5.50,TESCO STORES 4793,"GROCERY STORES, SUPERMARKETS",Changing Futures & Projects,Housing First,
Cambridgeshire County Council,25/04/2023,6.00,ASDA STORES,"GROCERY STORES, SUPERMARKETS",Targeted Support Service - South,EH Child and Family Centre - South Cambs,NON GOVERNMENT GRANTS
Cambridgeshire County Council,25/04/2023,6.40,STIR,FAST FOOD RESTAURANTS,Changing Futures & Projects,Housing First,OTHER SERVICE USER SUPPORT
Cambridgeshire County Council,25/04/2023,6.55,MEDIREST HOSPITAL,CATERERS,Changing Futures & Projects,Housing First,
Cambridgeshire County Council,25/04/2023,8.11,AMZNMKTPLACE,MISCELLANEOUS AND SPECIALTY RETAIL STORES,Outdoor Education (includes Grafham Water),Grafham Water Centre,EDUCATIONAL MATERIALS
Cambridgeshire County Council,25/04/2023,8.49,AMZNMKTPLACE,MISCELLANEOUS AND SPECIALTY RETAIL STORES,Outdoor Education (includes Grafham Water),Grafham Water Centre,EDUCATIONAL MATERIALS
Cambridgeshire County Council,25/04/2023,9.47,TRAINLINE.COM,PASSENGER RAILWAYS,Changing Futures & Projects,Housing First,PUBLIC TRANSPORT FARES
Cambridgeshire County Council,25/04/2023,9.95,POST OFFICE COUNTER,POSTAL SERVICES-GOVERNMENT ONLY,Registration & Citizenship Services,Registrars General,POSTAGE & CARRIAGE
Cambridgeshire County Council,25/04/2023,11.00,GEN REGISTER OFFICE,GOVERNMENT SERVICES-NOT ELSEWHERE CLASSIFIED,Corporate Parenting,South Child Looked After Team 2,BOOKS AND MULTIMEDIA SUPPLIES
Cambridgeshire County Council,25/04/2023,11.04,AMZNMKTPLACE,MISCELLANEOUS AND SPECIALTY RETAIL STORES,Children's Disability Service,RSS - London Road,FURNITURE
Cambridgeshire County Council,25/04/2023,11.95,PROCOOK,MISCELLANEOUS HOUSE FURNISHING SPECIALTY SHOPS,LD - In House Provider Services,6 St Lukes Close (Respite),
Cambridgeshire County Council,25/04/2023,12.80,GREATER ANGLIA RAIL,PASSENGER RAILWAYS,Family Safeguarding East,Fenland Children's Team 2,PUBLIC TRANSPORT FARES
Cambridgeshire County Council,25/04/2023,13.77,ASDA STORES,"GROCERY STORES, SUPERMARKETS",Targeted Support Service - South,EH Child and Family Centre - South Cambs,EDUCATIONAL MATERIALS
Cambridgeshire County Council,25/04/2023,14.00,GEN REGISTER OFFICE,GOVERNMENT SERVICES-NOT ELSEWHERE CLASSIFIED,Family Safeguarding East,Family Safeguarding East & South Cambs and Cambridge,GRANTS&SUPPORT FOR OTHER SERVICE USERS
Cambridgeshire County Council,25/04/2023,14.29,W BOYES & CO LTD MARCH,DISCOUNT STORES,LD - In House Provider Services,IHPS - Tennyson Lodge,SPECIALIST EQUIPMENT FOR SERVICE DELIV
Cambridgeshire County Council,25/04/2023,14.75,POST OFFICE COUNTER,POSTAL SERVICES-GOVERNMENT ONLY,Coroners,Coroners General,POSTAGE & CARRIAGE
Cambridgeshire County Council,25/04/2023,15.00,WEST NORTHAMPTONSHIRE,GOVERNMENT SERVICES-NOT ELSEWHERE CLASSIFIED,0-19 Organisation & Planning,Attendance and Behaviour,PROFESSIONAL FEES AND HIRED SERVICES
Cambridgeshire County Council,25/04/2023,15.00,WEST NORTHAMPTONSHIRE,GOVERNMENT SERVICES-NOT ELSEWHERE CLASSIFIED,0-19 Organisation & Planning,Attendance and Behaviour,PROFESSIONAL FEES AND HIRED SERVICES
Cambridgeshire County Council,25/04/2023,15.00,WEST NORTHAMPTONSHIRE,GOVERNMENT SERVICES-NOT ELSEWHERE CLASSIFIED,0-19 Organisation & Planning,Attendance and Behaviour,PROFESSIONAL FEES AND HIRED SERVICES
Cambridgeshire County Council,25/04/2023,15.49,HALFORDS 0995,BICYCLE SHOPS-SALES AND SERVICE,Parking Enforcement,On Street Parking,SPECIALIST EQUIPMENT FOR SERVICE DELIV
Cambridgeshire County Council,25/04/2023,15.95,DUNELM SOFTFURNISHINGS,"EQUIP, FURNITURE, HOME FURNSHNGS STRS (EXCPT APPL)",LD - In House Provider Services,6 St Lukes Close (Respite),
Cambridgeshire County Council,25/04/2023,15.96,LIDL GB CAMBRIDGE,"GROCERY STORES, SUPERMARKETS",Targeted Support Service - South,EH Child and Family Centre - South Cambs,NON GOVERNMENT GRANTS
Cambridgeshire County Council,25/04/2023,17.80,AMZNMKTPLACE,MISCELLANEOUS AND SPECIALTY RETAIL STORES,Outdoor Education (includes Grafham Water),Grafham Water Centre,EDUCATIONAL MATERIALS
Cambridgeshire County Council,25/04/2023,24.00,HOBBYCRAFT,"ARTIST SUPPLY STORES, CRAFT SHOPS",Targeted Support Service - South,EH Child and Family Centre - South Cambs,EDUCATIONAL MATERIALS
Cambridgeshire County Council,25/04/2023,25.95,SAINSBURYS S/MKTS,"GROCERY STORES, SUPERMARKETS",Changing Futures & Projects,Housing First,GENERAL OFFICE EXPENSES & STATIONERY
Cambridgeshire County Council,25/04/2023,26.34,TOOLSTATION UK,HARDWARE STORES,Asset Management,Highways Records,SPECIALIST EQUIPMENT FOR SERVICE DELIV
Cambridgeshire County Council,25/04/2023,26.98,WWW.NISBETS.COM,DIRECT MARKETING-CATALOG MERCHANTS,Outdoor Education (includes Grafham Water),Burwell House Residential Centre,CLEANING AND DOMESTIC SUPPLIES
Cambridgeshire County Council,25/04/2023,29.24,TRAINLINE,PASSENGER RAILWAYS,Professional Finance,Cipfa Trainees,PUBLIC TRANSPORT FARES
Cambridgeshire County Council,25/04/2023,30.00,MARKS&SPENCER PLC,"GROCERY STORES, SUPERMARKETS",Fostering & Supervised Contact Services,Fostering Support and Supervision,SUPPORT AND GRANTS TO FOSTER CARERS
Cambridgeshire County Council,25/04/2023,30.00,WM MORRISONS STORE,"GROCERY STORES, SUPERMARKETS",Cambridgeshire Music,Cambs Music Business Development,HOSPITALITY AND REFRESHMENTS
Cambridgeshire County Council,25/04/2023,36.00,GEN REGISTER OFFICE,GOVERNMENT SERVICES-NOT ELSEWHERE CLASSIFIED,Corporate Parenting,South Child Looked After Team 2,BOOKS AND MULTIMEDIA SUPPLIES
Cambridgeshire County Council,25/04/2023,36.60,PANTHER TAXIS LTD,LIMOUSINES AND TAXICABS,Domestic Abuse and Sexual Violence Service,DLUHC Grant,
Cambridgeshire County Council,25/04/2023,36.80,PANTHER TAXIS LTD,LIMOUSINES AND TAXICABS,Domestic Abuse and Sexual Violence Service,DLUHC Grant,
Cambridgeshire County Council,25/04/2023,44.01,TRAINLINE,PASSENGER RAILWAYS,Executive Director,CCC Finance Office,PUBLIC TRANSPORT FARES
Cambridgeshire County Council,25/04/2023,45.00,TESCO GIFT CARD,"GROCERY STORES, SUPERMARKETS",Domestic Abuse and Sexual Violence Service,DLUHC Grant,
Cambridgeshire County Council,25/04/2023,46.50,PANTHER TAXIS LTD,LIMOUSINES AND TAXICABS,Children's Disability Service,RSS - Woodland Lodge,PUBLIC TRANSPORT FARES
Cambridgeshire County Council,25/04/2023,46.54,AMZNMKTPLACE,MISCELLANEOUS AND SPECIALTY RETAIL STORES,Adoption,Regional Adoption Agency,BOOKS AND MULTIMEDIA SUPPLIES
Cambridgeshire County Council,25/04/2023,47.10,PANTHER TAXIS LTD,LIMOUSINES AND TAXICABS,Children's Disability Service,RSS - Woodland Lodge,PUBLIC TRANSPORT FARES
Cambridgeshire County Council,25/04/2023,50.00,TESCO GIFT CARD,"GROCERY STORES, SUPERMARKETS",Domestic Abuse and Sexual Violence Service,DLUHC Grant,
Cambridgeshire County Council,25/04/2023,62.36,LCN COM,COMPUTER NETWORK/INFORMATION SERVICES,Connecting Cambridgeshire,Connecting Cambridgeshire,GENERAL OFFICE EXPENSES & STATIONERY
Cambridgeshire County Council,25/04/2023,67.90,TESCO STORES 2555,"GROCERY STORES, SUPERMARKETS",Early Years Service,Trumpington Park Early Years,CATERING PROVISIONS
Cambridgeshire County Council,25/04/2023,72.00,LNER WEB SALES,PASSENGER RAILWAYS,Corporate Parenting,South Child Looked After Team 2,CAR MILEAGE AND ALLOWANCES - OTHER
Cambridgeshire County Council,25/04/2023,72.12,TESCO STORES 5657,"GROCERY STORES, SUPERMARKETS",LD - In House Provider Services,No. 20 Alder Close Respite,CATERING PROVISIONS
Cambridgeshire County Council,25/04/2023,78.87,WM MORRISONS STORE,"GROCERY STORES, SUPERMARKETS",ICT Service (Education),ICT Service Systems Development,
Cambridgeshire County Council,25/04/2023,80.19,TESCO STORES 2694,"GROCERY STORES, SUPERMARKETS",Children's Disability Service,RSS - Woodland Lodge,CATERING PROVISIONS
Cambridgeshire County Council,25/04/2023,89.39,TESCO STORES 3108,"GROCERY STORES, SUPERMARKETS",Children's Disability Service,RSS - London Road,CATERING PROVISIONS
Cambridgeshire County Council,25/04/2023,99.00,EB  MEAM ANNUAL CONFER,BUSINESS SERVICES-NOT ELSEWHERE CLASSIFIED,Changing Futures & Projects,Counting Every Adult,STAFF TRAINING & DEVELOPMENT
Cambridgeshire County Council,25/04/2023,100.72,TESCO STORES,"GROCERY STORES, SUPERMARKETS",Children's Disability Service,RSS - Haviland Way,CATERING PROVISIONS
Cambridgeshire County Council,25/04/2023,101.00,GREATER ANGLIA RAIL,PASSENGER RAILWAYS,Traffic Management,Signals and Systems,
Cambridgeshire County Council,25/04/2023,107.58,VIKING OFFICE UK LIMIT,STATIONERY/OFFICE SUPPLIES/PRINTING & WRITING PAP.,Asset Management,Highways Records,SPECIALIST EQUIPMENT FOR SERVICE DELIV
Cambridgeshire County Council,25/04/2023,127.62,TALKTALK BUSINESS,COMPUTER NETWORK/INFORMATION SERVICES,Park & Ride,Park and Ride Admin,TELEPHONE COSTS
Cambridgeshire County Council,25/04/2023,145.72,ASDA GROCERIES ONLINE,"GROCERY STORES, SUPERMARKETS",LD - In House Provider Services,Horizon,CATERING PROVISIONS
Cambridgeshire County Council,25/04/2023,168.10,PANTHER TAXIS LTD,LIMOUSINES AND TAXICABS,Domestic Abuse and Sexual Violence Service,DLUHC Grant,
Cambridgeshire County Council,25/04/2023,236.79,OCADO,"GROCERY STORES, SUPERMARKETS",Outdoor Education (includes Grafham Water),Grafham Water Centre,CATERING PROVISIONS
Cambridgeshire County Council,25/04/2023,240.00,WWW.CIPFA.ORG.UK,"ORGANIZATIONS, MEMBERSHIP-NOT ELSEWHERE CLASSIFIED",Professional Finance,Cipfa Trainees,EXAM FEES
Cambridgeshire County Council,25/04/2023,240.00,WWW.CIPFA.ORG.UK,"ORGANIZATIONS, MEMBERSHIP-NOT ELSEWHERE CLASSIFIED",Professional Finance,Cipfa Trainees,EXAM FEES
Cambridgeshire County Council,25/04/2023,371.32,BRIGHTGAUGE SOFTWARE,"COMP PROGRAMING,DATA PRCSNG,INTGRTD SYS DSGN SRVS",ICT Service (Education),ICT Service Systems Development,
Cambridgeshire County Council,25/04/2023,604.69,TAPI CARPETS,FLOOR COVERING STORES,Corporate Parenting,South Child Looked After Team 2,LEAVING CARE GRANTS
Cambridgeshire County Council,25/04/2023,900.00,THELIFESTYLEVOUCHER,DIRECT MARKETING-OTHER DIRECT MARKETERS/NOT ELSEW.,Executive Director AHC,"Executive Director - Adults, Health & Comissioning",
Cambridgeshire County Council,26/04/2023,-32.10,TSGN,PASSENGER RAILWAYS,Internal Audit,Audit Division,PUBLIC TRANSPORT FARES
Cambridgeshire County Council,26/04/2023,-21.98,AMZNMKTPLACE AMAZON.CO,MISCELLANEOUS AND SPECIALTY RETAIL STORES,Children's Disability Service,RSS - London Road,GRANTS&SUPPORT FOR OTHER SERVICE USERS
Cambridgeshire County Council,26/04/2023,-13.99,AMZ LACOFIA,MISCELLANEOUS AND SPECIALTY RETAIL STORES,Children's Disability Service,RSS - London Road,GRANTS&SUPPORT FOR OTHER SERVICE USERS
Cambridgeshire County Council,26/04/2023,-10.99,AMZ LACOFIA,MISCELLANEOUS AND SPECIALTY RETAIL STORES,Children's Disability Service,RSS - London Road,GRANTS&SUPPORT FOR OTHER SERVICE USERS
Cambridgeshire County Council,26/04/2023,-9.99,AMZ NANCHANG CROSS-BOR,MISCELLANEOUS AND SPECIALTY RETAIL STORES,Children's Disability Service,RSS - London Road,GRANTS&SUPPORT FOR OTHER SERVICE USERS
Cambridgeshire County Council,26/04/2023,-8.99,AMAZON MUSIC,RECORD SHOPS,Children's Disability Service,RSS - Woodland Lodge,SUBSCRIPTIONS
Cambridgeshire County Council,26/04/2023,-0.08,ASDA GROCERIES ONLINE,"GROCERY STORES, SUPERMARKETS",Outdoor Education (includes Grafham Water),Burwell House Residential Centre,CATERING PROVISIONS
Cambridgeshire County Council,26/04/2023,0.55,ASDA GROCERIES ONLINE,"GROCERY STORES, SUPERMARKETS",Outdoor Education (includes Grafham Water),Burwell House Residential Centre,CATERING PROVISIONS
Cambridgeshire County Council,26/04/2023,3.99,AMAZON.CO.UK,DIGITAL GOODS AUDIOVISUAL MEDIA,Children's Disability Service,RSS - Haviland Way,GENERAL OFFICE EXPENSES & STATIONERY
Cambridgeshire County Council,26/04/2023,4.49,SQ  BURWELL POST OFFIC,"MISC FOOD STORE-CONVENIENCE,MRKT,SPLTY,VENDNG MACS",Outdoor Education (includes Grafham Water),Burwell House Residential Centre,GENERAL OFFICE EXPENSES & STATIONERY
Cambridgeshire County Council,26/04/2023,8.10,POST OFFICE COUNTER,POSTAL SERVICES-GOVERNMENT ONLY,Parking Enforcement,On Street Parking,SPECIALIST EQUIPMENT FOR SERVICE DELIV
Cambridgeshire County Council,26/04/2023,8.60,POST OFFICE COUNTER,POSTAL SERVICES-GOVERNMENT ONLY,Coroners,Coroners General,POSTAGE & CARRIAGE
Cambridgeshire County Council,26/04/2023,9.00,HILTON BIRMINGHAM METR,"LODGING-HOTELS,MOTELS,RESORTS-NOT CLASSIFIED",Chief Executive,Chief Executive's Office,OTHER TRAVEL EXPENSES
Cambridgeshire County Council,26/04/2023,9.99,AMZNMKTPLACE AMAZON.CO,MISCELLANEOUS AND SPECIALTY RETAIL STORES,Children's Disability Service,RSS - London Road,FURNITURE
Cambridgeshire County Council,26/04/2023,11.09,WWW.THE-BEADSHOP.UK,"CLOCK, JEWELRY, WATCH, AND SILVERWARE STORE","Communities, Employment & Skills",Communities Service - Management,
Cambridgeshire County Council,26/04/2023,11.25,TESCO STORES 3108,"GROCERY STORES, SUPERMARKETS",Children's Disability Service,RSS - London Road,CLEANING AND DOMESTIC SUPPLIES
Cambridgeshire County Council,26/04/2023,11.90,AMZNMKTPLACE,MISCELLANEOUS AND SPECIALTY RETAIL STORES,ICT Service (Education),ICT Service Systems Development,
Cambridgeshire County Council,26/04/2023,11.99,AMZNMKTPLACE AMAZON.CO,MISCELLANEOUS AND SPECIALTY RETAIL STORES,Children's Disability Service,RSS - London Road,FURNITURE
Cambridgeshire County Council,26/04/2023,14.90,TFL TRAVEL CH,"TRANSPRTN-SUBRBN & LOCAL COMTR PSNGR, INCL FERRIES",Professional Finance,Cipfa Trainees,PUBLIC TRANSPORT FARES
Cambridgeshire County Council,26/04/2023,14.99,AMZNMKTPLACE,MISCELLANEOUS AND SPECIALTY RETAIL STORES,"Property, Facilities Management and Building Compliance",Shire Hall Area,BUILDING REPAIR AND MAINTENANCE
Cambridgeshire County Council,26/04/2023,15.00,WEST NORTHAMPTONSHIRE,GOVERNMENT SERVICES-NOT ELSEWHERE CLASSIFIED,0-19 Organisation & Planning,Attendance and Behaviour,PROFESSIONAL FEES AND HIRED SERVICES
Cambridgeshire County Council,26/04/2023,15.00,WEST NORTHAMPTONSHIRE,GOVERNMENT SERVICES-NOT ELSEWHERE CLASSIFIED,0-19 Organisation & Planning,Attendance and Behaviour,PROFESSIONAL FEES AND HIRED SERVICES
Cambridgeshire County Council,26/04/2023,15.00,WEST NORTHAMPTONSHIRE,GOVERNMENT SERVICES-NOT ELSEWHERE CLASSIFIED,0-19 Organisation & Planning,Attendance and Behaviour,PROFESSIONAL FEES AND HIRED SERVICES
Cambridgeshire County Council,26/04/2023,16.55,SAINSBURYS S/MKTS,"GROCERY STORES, SUPERMARKETS",Youth Offending Service,YOT Project,HOSPITALITY AND REFRESHMENTS
Cambridgeshire County Council,26/04/2023,17.99,AMZNMKTPLACE,MISCELLANEOUS AND SPECIALTY RETAIL STORES,Adoption,Regional Adoption Agency,GENERAL OFFICE EXPENSES & STATIONERY
Cambridgeshire County Council,26/04/2023,18.19,AMZNMKTPLACE AMAZON.CO,MISCELLANEOUS AND SPECIALTY RETAIL STORES,Outdoor Education (includes Grafham Water),CEES Stibbington Centre,EDUCATIONAL EQUIPMENT
Cambridgeshire County Council,26/04/2023,19.69,AMAZON.CO.UK YW2WT8PZ5,DIRECT MARKETING-OTHER DIRECT MARKETERS/NOT ELSEW.,Adoption,Regional Adoption Agency,BOOKS AND MULTIMEDIA SUPPLIES
Cambridgeshire County Council,26/04/2023,19.98,AMAZON.CO.UK V25Y289S5,DIRECT MARKETING-OTHER DIRECT MARKETERS/NOT ELSEW.,Virtual School,Virtual School for Care Experienced Children,STAFF TRAINING & DEVELOPMENT
Cambridgeshire County Council,26/04/2023,20.00,G M GILBERT FAMILY BU,"FREEZER, LOCKER MEAT PROVISIONERS",Outdoor Education (includes Grafham Water),Grafham Water Centre,CATERING PROVISIONS
Cambridgeshire County Council,26/04/2023,20.88,B&M 042 - ST NEOTS,MISCELLANEOUS GENERAL MERCHANDISE,Targeted Support Service - North,EH Child and Family Centre - Hunts,EDUCATIONAL MATERIALS
Cambridgeshire County Council,26/04/2023,21.48,TESCO STORES 3108,"GROCERY STORES, SUPERMARKETS",Children's Disability Service,RSS - London Road,BUILDING CLEANING
Cambridgeshire County Council,26/04/2023,23.95,AMZNMKTPLACE AMAZON.CO,MISCELLANEOUS AND SPECIALTY RETAIL STORES,Changing Futures & Projects,Housing First,OTHER SERVICE USER SUPPORT
Cambridgeshire County Council,26/04/2023,23.98,AMZNMKTPLACE,MISCELLANEOUS AND SPECIALTY RETAIL STORES,Outdoor Education (includes Grafham Water),Grafham Water Centre,EDUCATIONAL MATERIALS
Cambridgeshire County Council,26/04/2023,25.00,FACEBK  92KRMMPJ92,ADVERTISING SERVICES,Cambridgeshire Skills,Cambridgeshire Skills Management Team,
Cambridgeshire County Council,26/04/2023,25.20,BOOKER LTD - 38538264,"GROCERY STORES, SUPERMARKETS",Outdoor Education (includes Grafham Water),CEES Stibbington Centre,CATERING PROVISIONS
Cambridgeshire County Council,26/04/2023,25.49,AMZNMKTPLACE AMAZON.CO,MISCELLANEOUS AND SPECIALTY RETAIL STORES,Targeted Support Service - South,EH Child and Family Centre - South Cambs,EDUCATIONAL MATERIALS
Cambridgeshire County Council,26/04/2023,25.70,BIG ROCK CLIMBING LIMI,RECREATION SERVICES (NOT ELSEWHERE CLASSIFIED),Youth Offending Service,YOT - High Risk and Deter,OFFENDERS SUPPORT
Cambridgeshire County Council,26/04/2023,26.81,ROBINSONS,"GROCERY STORES, SUPERMARKETS",Outdoor Education (includes Grafham Water),Grafham Water Centre,CATERING PROVISIONS
Cambridgeshire County Council,26/04/2023,27.00,TRAINLINE,PASSENGER RAILWAYS,Professional Finance,Cipfa Trainees,PUBLIC TRANSPORT FARES
Cambridgeshire County Council,26/04/2023,27.49,PAYPAL  GOOGLE LOOKOUT,DIGITAL GOODS AUDIOVISUAL MEDIA,Changing Futures & Projects,Housing First,OTHER SERVICE USER SUPPORT
Cambridgeshire County Council,26/04/2023,29.98,AMZNMKTPLACE,MISCELLANEOUS AND SPECIALTY RETAIL STORES,Children's Disability Service,CamPlay Holiday Clubs,
Cambridgeshire County Council,26/04/2023,30.00,MARKS&SPENCER PLC,"GROCERY STORES, SUPERMARKETS",Fostering & Supervised Contact Services,Fostering Support and Supervision,SUPPORT AND GRANTS TO FOSTER CARERS
Cambridgeshire County Council,26/04/2023,30.00,MARKS&SPENCER PLC,"GROCERY STORES, SUPERMARKETS",Fostering & Supervised Contact Services,Fostering Support and Supervision,SUPPORT AND GRANTS TO FOSTER CARERS
Cambridgeshire County Council,26/04/2023,32.10,GTR RAIL TICKET,PASSENGER RAILWAYS,Internal Audit,Audit Division,PUBLIC TRANSPORT FARES
Cambridgeshire County Council,26/04/2023,39.95,TSGN,PASSENGER RAILWAYS,Internal Audit,Audit Division,PUBLIC TRANSPORT FARES
Cambridgeshire County Council,26/04/2023,40.33,AMZNMKTPLACE,MISCELLANEOUS AND SPECIALTY RETAIL STORES,Traffic Management,Signals and Systems,
Cambridgeshire County Council,26/04/2023,43.96,AMZNMKTPLACE,MISCELLANEOUS AND SPECIALTY RETAIL STORES,Outdoor Education (includes Grafham Water),Grafham Water Centre,EDUCATIONAL MATERIALS
Cambridgeshire County Council,26/04/2023,44.30,PANTHER TAXIS LTD,LIMOUSINES AND TAXICABS,Children's Disability Service,RSS - Woodland Lodge,PUBLIC TRANSPORT FARES
Cambridgeshire County Council,26/04/2023,44.60,PANTHER TAXIS LTD,LIMOUSINES AND TAXICABS,Children's Disability Service,RSS - Woodland Lodge,
Cambridgeshire County Council,26/04/2023,44.98,AMZNMKTPLACE,MISCELLANEOUS AND SPECIALTY RETAIL STORES,Youth Offending Service,YOT Project,GENERAL OFFICE EXPENSES & STATIONERY
Cambridgeshire County Council,26/04/2023,45.90,AMZNMKTPLACE,MISCELLANEOUS AND SPECIALTY RETAIL STORES,Outdoor Education (includes Grafham Water),Burwell House Residential Centre,CLEANING AND DOMESTIC SUPPLIES
Cambridgeshire County Council,26/04/2023,46.50,PANTHER TAXIS LTD,LIMOUSINES AND TAXICABS,Children's Disability Service,RSS - Woodland Lodge,PUBLIC TRANSPORT FARES
Cambridgeshire County Council,26/04/2023,46.50,PANTHER TAXIS LTD,LIMOUSINES AND TAXICABS,Children's Disability Service,RSS - Woodland Lodge,PUBLIC TRANSPORT FARES
Cambridgeshire County Council,26/04/2023,47.10,PANTHER TAXIS LTD,LIMOUSINES AND TAXICABS,Children's Disability Service,RSS - Woodland Lodge,PUBLIC TRANSPORT FARES
Cambridgeshire County Council,26/04/2023,51.85,AMZNMKTPLACE AMAZON.CO,MISCELLANEOUS AND SPECIALTY RETAIL STORES,Targeted Support Service - North,EH Child and Family Centre - Hunts,EDUCATIONAL MATERIALS
Cambridgeshire County Council,26/04/2023,56.91,ASDA GROCERIES ONLINE,"GROCERY STORES, SUPERMARKETS",Outdoor Education (includes Grafham Water),Burwell House Residential Centre,CATERING PROVISIONS
Cambridgeshire County Council,26/04/2023,59.50,TESCO STORES 3108,"GROCERY STORES, SUPERMARKETS",Children's Disability Service,RSS - London Road,CATERING PROVISIONS
Cambridgeshire County Council,26/04/2023,75.70,WM MORRISONS STORE,"GROCERY STORES, SUPERMARKETS",Children's Disability Service,Community Support Service ECF,
Cambridgeshire County Council,26/04/2023,79.96,AMZNMKTPLACE AMAZON.CO,MISCELLANEOUS AND SPECIALTY RETAIL STORES,LD - In House Provider Services,"Larkfield, Ely",EQUIPMENT AND TOOLS
Cambridgeshire County Council,26/04/2023,83.14,TRAINLINE.COM,PASSENGER RAILWAYS,Children's Commissioning - Staffing,Commissioning Children's Social Care,PUBLIC TRANSPORT FARES
Cambridgeshire County Council,26/04/2023,92.70,TESCO STORES 6781,"GROCERY STORES, SUPERMARKETS",Targeted Support Service - North,EH March Chatteris & Whittlesey District,CATERING PROVISIONS
Cambridgeshire County Council,26/04/2023,99.00,PSHE ASSOCIATION,SCHOOLS & EDUCATIONAL SVC-NOT ELSEWHERE CLASSIFIED,School Improvement Service,"Education, Health, Safety and Wellbeing - PSHE",STAFF TRAINING & DEVELOPMENT
Cambridgeshire County Council,26/04/2023,99.00,PSHE ASSOCIATION,SCHOOLS & EDUCATIONAL SVC-NOT ELSEWHERE CLASSIFIED,School Improvement Service,"Education, Health, Safety and Wellbeing - PSHE",STAFF TRAINING & DEVELOPMENT
Cambridgeshire County Council,26/04/2023,112.01,ALLPAY  CROSS KEYS HOM,"ORGANIZATIONS, CHARITABLE AND SOCIAL SERVICES",Changing Futures & Projects,Housing First,CONTRIBS TO PREMISES RELATED PROVISIONS
Cambridgeshire County Council,26/04/2023,120.00,WWW.CIPFA.ORG.UK,"ORGANIZATIONS, MEMBERSHIP-NOT ELSEWHERE CLASSIFIED",Professional Finance,Cipfa Trainees,EXAM FEES
Cambridgeshire County Council,26/04/2023,215.00,LNER WEB SALES,PASSENGER RAILWAYS,Corporate Parenting,South Child Looked After Team 2,CAR MILEAGE AND ALLOWANCES - STAFF
Cambridgeshire County Council,26/04/2023,307.47,TESCO STORES 2555,"GROCERY STORES, SUPERMARKETS",LD - In House Provider Services,40 & 44 Russell Street,CATERING PROVISIONS
Cambridgeshire County Council,26/04/2023,477.28,TRAVELODGE,TRAVELODGE,"Children, Education and Families Directorate","Children, Education and Families Directorate",
Cambridgeshire County Council,27/04/2023,-45.00,TESCO GIFT CARD,"GROCERY STORES, SUPERMARKETS",Domestic Abuse and Sexual Violence Service,DLUHC Grant,
Cambridgeshire County Council,27/04/2023,-2.50,WWW.ARGOS.CO.UK,DEPARTMENT STORES,Corporate Parenting,South Child Looked After Team 2,LEAVING CARE GRANTS
Cambridgeshire County Council,27/04/2023,3.00,LAND REGISTRY ECOM CCC,GOVERNMENT SERVICES-NOT ELSEWHERE CLASSIFIED,Shared Services,Debt Team,DEBT RECOVERY COSTS
Cambridgeshire County Council,27/04/2023,3.00,LAND REGISTRY ECOM CCC,GOVERNMENT SERVICES-NOT ELSEWHERE CLASSIFIED,Shared Services,Debt Team,DEBT RECOVERY COSTS
Cambridgeshire County Council,27/04/2023,4.03,WILTSHIRE FARM FOODS,"MISC FOOD STORE-CONVENIENCE,MRKT,SPLTY,VENDNG MACS",LD - In House Provider Services,Victoria  Lodge,CATERING PROVISIONS
Cambridgeshire County Council,27/04/2023,4.50,ROYAL MAIL GROUP LTD,POSTAL SERVICES-GOVERNMENT ONLY,Corporate Parenting,South Child Looked After Team 2,POSTAGE & CARRIAGE
Cambridgeshire County Council,27/04/2023,4.50,ROYAL MAIL GROUP LTD,POSTAL SERVICES-GOVERNMENT ONLY,Corporate Parenting,South Child Looked After Team 2,POSTAGE & CARRIAGE
Cambridgeshire County Council,27/04/2023,4.50,ROYAL MAIL GROUP LTD,POSTAL SERVICES-GOVERNMENT ONLY,Corporate Parenting,South Child Looked After Team 2,POSTAGE & CARRIAGE
Cambridgeshire County Council,27/04/2023,5.27,AMZNMKTPLACE AMAZON.CO,MISCELLANEOUS AND SPECIALTY RETAIL STORES,Outdoor Education (includes Grafham Water),CEES Stibbington Centre,GENERAL OFFICE EXPENSES & STATIONERY
Cambridgeshire County Council,27/04/2023,6.65,ROYAL MAIL GROUP LTD,POSTAL SERVICES-GOVERNMENT ONLY,Corporate Parenting,South Child Looked After Team 2,POSTAGE & CARRIAGE
Cambridgeshire County Council,27/04/2023,7.98,AMZNMKTPLACE,MISCELLANEOUS AND SPECIALTY RETAIL STORES,LD - In House Provider Services,6 St Lukes Close (Respite),
Cambridgeshire County Council,27/04/2023,8.59,TESCO STORES 2694,"GROCERY STORES, SUPERMARKETS",Targeted Support Service - North,YS - GPC recode,
Cambridgeshire County Council,27/04/2023,8.99,AMAZON PRIME 3W1453TQ5,DIRECT MARKETING-CONTINUITY/SUBSCRIPTION MERCHANTS,Cambridgeshire Music,Cambs Music Business Development,GENERAL OFFICE EXPENSES & STATIONERY
Cambridgeshire County Council,27/04/2023,9.28,B&M 417 - HS BEEHIVE,MISCELLANEOUS GENERAL MERCHANDISE,Targeted Support Service - South,EH Child and Family Centre - South Cambs,NON GOVERNMENT GRANTS
Cambridgeshire County Council,27/04/2023,10.37,MCDONALDS,"EATING PLACES, RESTAURANTS",Youth Offending Service,YOT - High Risk and Deter,OFFENDERS SUPPORT
Cambridgeshire County Council,27/04/2023,10.78,POST OFFICE COUNTER,POSTAL SERVICES-GOVERNMENT ONLY,School Improvement Service,"Education, Health, Safety and Wellbeing - Outdoor Education",POSTAGE & CARRIAGE
Cambridgeshire County Council,27/04/2023,12.50,POST OFFICE COUNTER,POSTAL SERVICES-GOVERNMENT ONLY,Coroners,Coroners General,POSTAGE & CARRIAGE
Cambridgeshire County Council,27/04/2023,15.00,ONE LEISURE ST IVES,GOVERNMENT SERVICES-NOT ELSEWHERE CLASSIFIED,Youth Offending Service,YOT - High Risk and Deter,OFFENDERS SUPPORT
Cambridgeshire County Council,27/04/2023,16.30,GREATER ANGLIA,PASSENGER RAILWAYS,Changing Futures & Projects,Housing First,PUBLIC TRANSPORT FARES
Cambridgeshire County Council,27/04/2023,16.30,GREATER ANGLIA,PASSENGER RAILWAYS,Changing Futures & Projects,Housing First,PUBLIC TRANSPORT FARES
Cambridgeshire County Council,27/04/2023,16.30,GREATER ANGLIA,PASSENGER RAILWAYS,Changing Futures & Projects,Housing First,
Cambridgeshire County Council,27/04/2023,19.40,CAMBRIDGE NORTH SST,PASSENGER RAILWAYS,Changing Futures & Projects,Housing First,PUBLIC TRANSPORT FARES
Cambridgeshire County Council,27/04/2023,20.75,TESCO STORES 2694,"GROCERY STORES, SUPERMARKETS",Targeted Support Service - North,"EH St Neots, RS&Y District Team � Youth Offer",SPECIALIST EQUIPMENT FOR SERVICE DELIV
Cambridgeshire County Council,27/04/2023,20.90,PAYPAL  PHOENIXMUS,DIGITAL GOODS AUDIOVISUAL MEDIA,Cambridgeshire Music,Cambs Music Business Development,SPECIALIST EQUIPMENT FOR SERVICE DELIV
Cambridgeshire County Council,27/04/2023,20.99,AMZNMKTPLACE AMAZON.CO,MISCELLANEOUS AND SPECIALTY RETAIL STORES,Outdoor Education (includes Grafham Water),CEES Stibbington Centre,EDUCATIONAL EQUIPMENT
Cambridgeshire County Council,27/04/2023,23.99,AMZNMKTPLACE,MISCELLANEOUS AND SPECIALTY RETAIL STORES,Virtual School,Virtual School for Care Experienced Children,STAFF HEALTH & WELFARE COSTS
Cambridgeshire County Council,27/04/2023,32.60,GREATER ANGLIA,PASSENGER RAILWAYS,Changing Futures & Projects,Housing First,PUBLIC TRANSPORT FARES
Cambridgeshire County Council,27/04/2023,44.97,T K MAXX,VARIETY STORES,Children's Disability Service,RSS - London Road,FURNITURE
Cambridgeshire County Council,27/04/2023,46.70,PANTHER TAXIS LTD,LIMOUSINES AND TAXICABS,Children's Disability Service,RSS - Woodland Lodge,PUBLIC TRANSPORT FARES
Cambridgeshire County Council,27/04/2023,53.50,HM PASSPORT OFFICE,GOVERNMENT SERVICES-NOT ELSEWHERE CLASSIFIED,Corporate Parenting,South Child Looked After Team 2,BOOKS AND MULTIMEDIA SUPPLIES
Cambridgeshire County Council,27/04/2023,54.00,EARLY EXCELLENCE LTD,SCHOOLS & EDUCATIONAL SVC-NOT ELSEWHERE CLASSIFIED,Early Years Service,EY Central Costs,
Cambridgeshire County Council,27/04/2023,55.93,WILTSHIRE FARM FOODS,"MISC FOOD STORE-CONVENIENCE,MRKT,SPLTY,VENDNG MACS",LD - In House Provider Services,Victoria  Lodge,CATERING PROVISIONS
Cambridgeshire County Council,27/04/2023,57.00,HOMEBASE LTD,HOME SUPPLY WAREHOUSE STORES,Children's Disability Service,RSS - London Road,FURNITURE
Cambridgeshire County Council,27/04/2023,80.59,TRAINLINE.COM,PASSENGER RAILWAYS,Corporate Parenting,North Care Leaving Team 2,LIVING SPPORT GRANTS-FIN ASSIS 18+
Cambridgeshire County Council,27/04/2023,88.50,TSGN,PASSENGER RAILWAYS,Parking Enforcement,Civil Parking Enforcement,OTHER TRAVEL EXPENSES
Cambridgeshire County Council,27/04/2023,108.29,AMZNMKTPLACE AMAZON.CO,MISCELLANEOUS AND SPECIALTY RETAIL STORES,LD - In House Provider Services,40 & 44 Russell Street,SPECIALIST EQUIPMENT FOR SERVICE DELIV
Cambridgeshire County Council,27/04/2023,120.00,WWW.CIPFA.ORG.UK,"ORGANIZATIONS, MEMBERSHIP-NOT ELSEWHERE CLASSIFIED",Professional Finance,CCC Finance,EXAM FEES
Cambridgeshire County Council,27/04/2023,120.00,IOSH SERVICES LTD,SCHOOLS & EDUCATIONAL SVC-NOT ELSEWHERE CLASSIFIED,"Health, Safety & Wellbeing",HR HSW,
Cambridgeshire County Council,27/04/2023,162.60,AMZNMKTPLACE AMAZON.CO,MISCELLANEOUS AND SPECIALTY RETAIL STORES,School Improvement Service,Adventure Playground,GROUNDS MAINTENANCE
Cambridgeshire County Council,27/04/2023,178.40,OCADO,"GROCERY STORES, SUPERMARKETS",Outdoor Education (includes Grafham Water),Grafham Water Centre,CATERING PROVISIONS
Cambridgeshire County Council,27/04/2023,240.00,WWW.CIPFA.ORG.UK,"ORGANIZATIONS, MEMBERSHIP-NOT ELSEWHERE CLASSIFIED",Professional Finance,Cipfa Trainees,EXAM FEES
Cambridgeshire County Council,27/04/2023,274.40,MPLC UK,DIGITAL GOODS MULTI CATEGORY,LD - In House Provider Services,Victoria  Lodge,TV LICENCES
Cambridgeshire County Council,27/04/2023,300.00,WWW.IPSEA.ORG.UK,SCHOOLS & EDUCATIONAL SVC-NOT ELSEWHERE CLASSIFIED,Learning & Development,L&D Team,STAFF TRAINING & DEVELOPMENT
Cambridgeshire County Council,27/04/2023,545.00,HEALTH&SAFETY LAB,GOVERNMENT SERVICES-NOT ELSEWHERE CLASSIFIED,"Health, Safety & Wellbeing",HR HSW,
Cambridgeshire County Council,28/04/2023,-32.00,WWW.ARGOS.CO.UK,DEPARTMENT STORES,Corporate Parenting,South Child Looked After Team 2,LEAVING CARE GRANTS
Cambridgeshire County Council,28/04/2023,-10.34,AMZNMKTPLACE,MISCELLANEOUS AND SPECIALTY RETAIL STORES,Children's Disability Service,RSS - London Road,BUILDING CLEANING
Cambridgeshire County Council,28/04/2023,-9.99,AMZNMKTPLACE,MISCELLANEOUS AND SPECIALTY RETAIL STORES,Children's Disability Service,RSS - Haviland Way,BUILDING CLEANING
Cambridgeshire County Council,28/04/2023,2.00,STGCOACH/CTYLINK,BUS LINES,Changing Futures & Projects,Housing First,PUBLIC TRANSPORT FARES
Cambridgeshire County Council,28/04/2023,3.50,STGCOACH/CTYLINK,BUS LINES,Changing Futures & Projects,Counting Every Adult,
Cambridgeshire County Council,28/04/2023,3.99,AMZNMKTPLACE AMAZON.CO,MISCELLANEOUS AND SPECIALTY RETAIL STORES,Outdoor Education (includes Grafham Water),Grafham Water Centre,EDUCATIONAL MATERIALS
Cambridgeshire County Council,28/04/2023,5.44,TRAINLINE.COM,PASSENGER RAILWAYS,Safeguarding and Quality Assurance,Safeguarding and Quality Assurance,
Cambridgeshire County Council,28/04/2023,5.60,COSTA COFFEE 43010603,FAST FOOD RESTAURANTS,Changing Futures & Projects,Counting Every Adult,STAFF HEALTH & WELFARE COSTS
Cambridgeshire County Council,28/04/2023,6.10,GTR PARKING CONNECT EC,AUTOMOBILE PARKING LOTS AND GARAGES,Changing Futures & Projects,Housing First,
Cambridgeshire County Council,28/04/2023,6.19,AMZNMKTPLACE,MISCELLANEOUS AND SPECIALTY RETAIL STORES,Children's Disability Service,RSS - Haviland Way,BUILDING CLEANING
Cambridgeshire County Council,28/04/2023,6.49,POUNSTRETCHER,VARIETY STORES,Changing Futures & Projects,Housing First,OTHER SERVICE USER SUPPORT
Cambridgeshire County Council,28/04/2023,7.59,TESCO STORES 2470,"GROCERY STORES, SUPERMARKETS",Targeted Support Service - South,EH Child and Family Centre - East Cambs,
Cambridgeshire County Council,28/04/2023,8.40,TESCO STORES 2694,"GROCERY STORES, SUPERMARKETS",Outdoor Education (includes Grafham Water),CEES Stibbington Centre,GENERAL OFFICE EXPENSES & STATIONERY
Cambridgeshire County Council,28/04/2023,8.86,AMZNMKTPLACE AMAZON.CO,MISCELLANEOUS AND SPECIALTY RETAIL STORES,Children's Disability Service,RSS - Haviland Way,OTHER SERVICE USER SUPPORT
Cambridgeshire County Council,28/04/2023,8.99,AMAZON PRIME KO30I2325,DIRECT MARKETING-CONTINUITY/SUBSCRIPTION MERCHANTS,Targeted Support Service - North,YS - GPC recode,
Cambridgeshire County Council,28/04/2023,9.02,AMAZON.CO.UK IJ0JS9BO5,DIRECT MARKETING-OTHER DIRECT MARKETERS/NOT ELSEW.,Children's Disability Service,RSS - London Road,BUILDING CLEANING
Cambridgeshire County Council,28/04/2023,9.98,AMAZON.CO.UK MP09X3UU5,DIRECT MARKETING-OTHER DIRECT MARKETERS/NOT ELSEW.,Children's Disability Service,RSS - London Road,BUILDING CLEANING
Cambridgeshire County Council,28/04/2023,9.99,AMZNMKTPLACE,MISCELLANEOUS AND SPECIALTY RETAIL STORES,Children's Disability Service,RSS - Haviland Way,BUILDING CLEANING
Cambridgeshire County Council,28/04/2023,10.34,AMZNMKTPLACE,MISCELLANEOUS AND SPECIALTY RETAIL STORES,Children's Disability Service,RSS - London Road,BUILDING CLEANING
Cambridgeshire County Council,28/04/2023,13.99,AMZNMKTPLACE AMAZON.CO,MISCELLANEOUS AND SPECIALTY RETAIL STORES,Outdoor Education (includes Grafham Water),Burwell House Residential Centre,CATERING PROVISIONS
Cambridgeshire County Council,28/04/2023,14.00,GEN REGISTER OFFICE,GOVERNMENT SERVICES-NOT ELSEWHERE CLASSIFIED,Corporate Parenting,North Care Leaving Team 2,GRANTS&SUPPORT FOR OTHER SERVICE USERS
Cambridgeshire County Council,28/04/2023,16.00,GTR RAIL TICKET,PASSENGER RAILWAYS,Changing Futures & Projects,Housing First,
Cambridgeshire County Council,28/04/2023,18.49,AMZNMKTPLACE AMAZON.CO,MISCELLANEOUS AND SPECIALTY RETAIL STORES,Outdoor Education (includes Grafham Water),Grafham Water Centre,BUILDING REPAIR AND MAINTENANCE
Cambridgeshire County Council,28/04/2023,19.96,AMZNMKTPLACE,MISCELLANEOUS AND SPECIALTY RETAIL STORES,"Property, Facilities Management and Building Compliance",Shire Hall Area,BUILDING REPAIR AND MAINTENANCE
Cambridgeshire County Council,28/04/2023,21.58,BUZZ CATERING SUPPLIES,"EQUIP, FURNITURE, HOME FURNSHNGS STRS (EXCPT APPL)",Outdoor Education (includes Grafham Water),Burwell House Residential Centre,CATERING PROVISIONS
Cambridgeshire County Council,28/04/2023,23.48,AMZNMKTPLACE AMAZON.CO,MISCELLANEOUS AND SPECIALTY RETAIL STORES,Outdoor Education (includes Grafham Water),Burwell House Residential Centre,CATERING PROVISIONS
Cambridgeshire County Council,28/04/2023,24.56,TRAINLINE,PASSENGER RAILWAYS,Professional Finance,Cipfa Trainees,PUBLIC TRANSPORT FARES
Cambridgeshire County Council,28/04/2023,24.66,TRAINLINE,PASSENGER RAILWAYS,Professional Finance,Cipfa Trainees,PUBLIC TRANSPORT FARES
Cambridgeshire County Council,28/04/2023,27.19,AMZNMKTPLACE AMAZON.CO,MISCELLANEOUS AND SPECIALTY RETAIL STORES,Safeguarding and Quality Assurance,Local Safeguarding Board,GENERAL OFFICE EXPENSES & STATIONERY
Cambridgeshire County Council,28/04/2023,27.88,WWW.NISBETS.COM,DIRECT MARKETING-CATALOG MERCHANTS,Outdoor Education (includes Grafham Water),Burwell House Residential Centre,CATERING EQUIPMENT-REPAIRS&MAINTENANCE
Cambridgeshire County Council,28/04/2023,28.24,TESCO STORES 2694,"GROCERY STORES, SUPERMARKETS",Targeted Support Service - North,"EH St Neots, RS&Y District Team � Youth Offer",SPECIALIST EQUIPMENT FOR SERVICE DELIV
Cambridgeshire County Council,28/04/2023,29.24,TRAINLINE.COM,PASSENGER RAILWAYS,Professional Finance,Cipfa Trainees,PUBLIC TRANSPORT FARES
Cambridgeshire County Council,28/04/2023,30.40,GREATER ANGLIA RAIL,PASSENGER RAILWAYS,Family Safeguarding East,Fenland Children's Team 2,
Cambridgeshire County Council,28/04/2023,32.89,DNH GODADDY.COM EUROPE,COMPUTER NETWORK/INFORMATION SERVICES,ICT Service (Education),ICT Service Systems Development,
Cambridgeshire County Council,28/04/2023,35.00,TK  MAXX,VARIETY STORES,Changing Futures & Projects,Counting Every Adult,OTHER SERVICE USER SUPPORT
Cambridgeshire County Council,28/04/2023,35.00,OFSTED INTERNET,GOVERNMENT SERVICES-NOT ELSEWHERE CLASSIFIED,Early Years Service,Trumpington Park Early Years,OTHER ALLOWANCES
Cambridgeshire County Council,28/04/2023,35.00,FATFACE,FAMILY CLOTHING STORES,Changing Futures & Projects,Counting Every Adult,OTHER SERVICE USER SUPPORT
Cambridgeshire County Council,28/04/2023,39.47,AMZNMKTPLACE,MISCELLANEOUS AND SPECIALTY RETAIL STORES,LD - In House Provider Services,Victoria  Lodge,EQUIPMENT AND TOOLS
Cambridgeshire County Council,28/04/2023,39.95,TSGN,PASSENGER RAILWAYS,Internal Audit,Audit Division,PUBLIC TRANSPORT FARES
Cambridgeshire County Council,28/04/2023,46.70,PANTHER TAXIS LTD,LIMOUSINES AND TAXICABS,Children's Disability Service,RSS - Woodland Lodge,PUBLIC TRANSPORT FARES
Cambridgeshire County Council,28/04/2023,47.30,PANTHER TAXIS LTD,LIMOUSINES AND TAXICABS,Children's Disability Service,RSS - Woodland Lodge,PUBLIC TRANSPORT FARES
Cambridgeshire County Council,28/04/2023,51.96,AMZNMKTPLACE,MISCELLANEOUS AND SPECIALTY RETAIL STORES,Children's Disability Service,RSS - Haviland Way,OTHER SERVICE USER SUPPORT
Cambridgeshire County Council,28/04/2023,64.42,TESCO STORES 2470,"GROCERY STORES, SUPERMARKETS",Family Safeguarding East,Adolescent Team South,ASYLUM SEEKERS
Cambridgeshire County Council,28/04/2023,68.70,PANTHER TAXIS LTD,LIMOUSINES AND TAXICABS,Domestic Abuse and Sexual Violence Service,DLUHC Grant,
Cambridgeshire County Council,28/04/2023,68.80,PANTHER TAXIS LTD,LIMOUSINES AND TAXICABS,Domestic Abuse and Sexual Violence Service,DLUHC Grant,
Cambridgeshire County Council,28/04/2023,69.05,WILTSHIRE FARM FOODS,"MISC FOOD STORE-CONVENIENCE,MRKT,SPLTY,VENDNG MACS",LD - In House Provider Services,Victoria  Lodge,CATERING PROVISIONS
Cambridgeshire County Council,28/04/2023,70.00,DOUBLETREE YORK,"LODGING-HOTELS,MOTELS,RESORTS-NOT CLASSIFIED",Planning and Sustainable Growth,Smart Journeys,STAFF TRAINING & DEVELOPMENT
Cambridgeshire County Council,28/04/2023,101.42,TESCO STORES 2694,"GROCERY STORES, SUPERMARKETS",LD - In House Provider Services,6 St Lukes Close (Respite),SPECIALIST SUPPLIES AND MATERIALS
Cambridgeshire County Council,28/04/2023,110.00,NORFOLK COUNTY COUNCIL,GOVERNMENT SERVICES-NOT ELSEWHERE CLASSIFIED,Family Safeguarding East,Fenland Children's Team 2,
Cambridgeshire County Council,28/04/2023,114.00,OFSTED INTERNET,GOVERNMENT SERVICES-NOT ELSEWHERE CLASSIFIED,Outdoor Education (includes Grafham Water),Grafham Water Centre,CURRICULUM EXPENSES
Cambridgeshire County Council,28/04/2023,114.85,POST OFFICE COUNTER,POSTAL SERVICES-GOVERNMENT ONLY,Coroners,Coroners General,POSTAGE & CARRIAGE
Cambridgeshire County Council,28/04/2023,118.00,DOUBLETREE YORK,"LODGING-HOTELS,MOTELS,RESORTS-NOT CLASSIFIED",Planning and Sustainable Growth,Smart Journeys,STAFF TRAINING & DEVELOPMENT
Cambridgeshire County Council,28/04/2023,133.00,DOUBLETREE YORK,"LODGING-HOTELS,MOTELS,RESORTS-NOT CLASSIFIED",Planning and Sustainable Growth,Smart Journeys,STAFF TRAINING & DEVELOPMENT
Cambridgeshire County Council,28/04/2023,175.00,NORFOLK COUNTY COUNCIL,GOVERNMENT SERVICES-NOT ELSEWHERE CLASSIFIED,Family Safeguarding East,Fenland Children's Team 2,
Cambridgeshire County Council,28/04/2023,178.50,IKEA LTD SHOP ONLINE,"EQUIP, FURNITURE, HOME FURNSHNGS STRS (EXCPT APPL)",Children's Disability Service,RSS - London Road,FURNITURE
Cambridgeshire County Council,28/04/2023,179.99,WWW.SCREWFIX.COM,"BUILDING MATERIALS, LUMBER STORES",Domestic Abuse and Sexual Violence Service,DLUHC Grant,
Cambridgeshire County Council,28/04/2023,334.00,AO RETAIL LIMITED,HOUSEHOLD APPLIANCE STORES,Changing Futures & Projects,Housing First,"FIXTURES, FITTINGS AND FURNISHINGS"
Cambridgeshire County Council,28/04/2023,414.80,VISTAPRINT,BUSINESS SERVICES-NOT ELSEWHERE CLASSIFIED,"Assistant Director - LDP, P&EI, Transfer of Care, 0-25 Service",Service Director - Adults and Safeguarding,
Cambridgeshire County Council,28/04/2023,498.70,VISTAPRINT,BUSINESS SERVICES-NOT ELSEWHERE CLASSIFIED,"Assistant Director - LDP, P&EI, Transfer of Care, 0-25 Service",Service Director - Adults and Safeguarding,
Cambridgeshire County Council,28/04/2023,500.00,THELIFESTYLEVOUCHER,DIRECT MARKETING-OTHER DIRECT MARKETERS/NOT ELSEW.,Executive Director AHC,"Executive Director - Adults, Health & Comissioning",
Cambridgeshire County Council,28/04/2023,501.21,ONLINE JOB ADS INDEED,"EMPLOYMENT AGENCIES, TEMPORARY HELP SERVICES",Children's Disability Service,Head of RSS,RECRUITMENT ADVERTISING
Cambridgeshire County Council,01/05/2023,-10.99,AMZ LACOFIA,MISCELLANEOUS AND SPECIALTY RETAIL STORES,Children's Disability Service,RSS - London Road,GRANTS&SUPPORT FOR OTHER SERVICE USERS
Cambridgeshire County Council,01/05/2023,-10.66,AMZNMKTPLACE AMAZON.CO,MISCELLANEOUS AND SPECIALTY RETAIL STORES,Children's Disability Service,RSS - London Road,BUILDING CLEANING
Cambridgeshire County Council,01/05/2023,-8.50,TRAINLINE.COM,PASSENGER RAILWAYS,Changing Futures & Projects,Housing First,PUBLIC TRANSPORT FARES
Cambridgeshire County Council,01/05/2023,-0.95,TESCO STORES,"GROCERY STORES, SUPERMARKETS",Children's Disability Service,RSS - Haviland Way,CATERING PROVISIONS
Cambridgeshire County Council,01/05/2023,1.10,POST OFFICE COUNTER,POSTAL SERVICES-GOVERNMENT ONLY,Children's Disability Service,Disability Referral & Access Team,
Cambridgeshire County Council,01/05/2023,2.00,STGCOACH/CTYLINK,BUS LINES,Changing Futures & Projects,Housing First,PUBLIC TRANSPORT FARES
Cambridgeshire County Council,01/05/2023,2.05,AMZNMKTPLACE AMAZON.CO,MISCELLANEOUS AND SPECIALTY RETAIL STORES,Learning & Development,L&D Team,GENERAL OFFICE EXPENSES & STATIONERY
Cambridgeshire County Council,01/05/2023,2.25,ROYAL MAIL GROUP LTD,POSTAL SERVICES-GOVERNMENT ONLY,Corporate Parenting,South Child Looked After Team 2,POSTAGE & CARRIAGE
Cambridgeshire County Council,01/05/2023,2.25,ROYAL MAIL GROUP LTD,POSTAL SERVICES-GOVERNMENT ONLY,Corporate Parenting,South Child Looked After Team 2,POSTAGE & CARRIAGE
Cambridgeshire County Council,01/05/2023,2.25,ROYAL MAIL GROUP LTD,POSTAL SERVICES-GOVERNMENT ONLY,Corporate Parenting,South Child Looked After Team 2,POSTAGE & CARRIAGE
Cambridgeshire County Council,01/05/2023,2.43,JUSTPARK,AUTOMOBILE PARKING LOTS AND GARAGES,Changing Futures & Projects,Housing First,OTHER SERVICE USER SUPPORT
Cambridgeshire County Council,01/05/2023,2.55,SPAR HAMPTON,"GROCERY STORES, SUPERMARKETS",Changing Futures & Projects,Counting Every Adult,OTHER SERVICE USER SUPPORT
Cambridgeshire County Council,01/05/2023,3.50,STGCOACH/CTYLINK,BUS LINES,Changing Futures & Projects,Housing First,PUBLIC TRANSPORT FARES
Cambridgeshire County Council,01/05/2023,4.59,POST OFFICE SELF SERVE,POSTAL SERVICES-GOVERNMENT ONLY,Changing Futures & Projects,Housing First,
Cambridgeshire County Council,01/05/2023,5.99,AMZNMKTPLACE,MISCELLANEOUS AND SPECIALTY RETAIL STORES,Children's Disability Service,RSS - London Road,BUILDING CLEANING
Cambridgeshire County Council,01/05/2023,5.99,AMZNMKTPLACE,MISCELLANEOUS AND SPECIALTY RETAIL STORES,Children's Disability Service,RSS - London Road,BUILDING CLEANING
Cambridgeshire County Council,01/05/2023,5.99,AMZNMKTPLACE,MISCELLANEOUS AND SPECIALTY RETAIL STORES,Children's Disability Service,RSS - London Road,BUILDING CLEANING
Cambridgeshire County Council,01/05/2023,5.99,AMZNMKTPLACE,MISCELLANEOUS AND SPECIALTY RETAIL STORES,Children's Disability Service,RSS - London Road,BUILDING CLEANING
Cambridgeshire County Council,01/05/2023,5.99,AMZNMKTPLACE,MISCELLANEOUS AND SPECIALTY RETAIL STORES,Children's Disability Service,RSS - London Road,OTHER SERVICE USER SUPPORT
Cambridgeshire County Council,01/05/2023,6.00,GIFFGAFF,TELECOM INCL PREPAID/RECURRING PHONE SVCS,Domestic Abuse and Sexual Violence Service,DLUHC Grant,
Cambridgeshire County Council,01/05/2023,6.99,AMZNMKTPLACE AMAZON.CO,MISCELLANEOUS AND SPECIALTY RETAIL STORES,Children's Disability Service,RSS - London Road,FURNITURE
Cambridgeshire County Council,01/05/2023,6.99,AMZNMKTPLACE,MISCELLANEOUS AND SPECIALTY RETAIL STORES,Children's Disability Service,RSS - London Road,OTHER SERVICE USER SUPPORT
Cambridgeshire County Council,01/05/2023,7.94,MILTON ARMS,"BAR,LOUNGE,DISCO,NIGHTCLUB,TAVERN-ALCOHOLIC DRINKS",Changing Futures & Projects,Housing First,OTHER SERVICE USER SUPPORT
Cambridgeshire County Council,01/05/2023,7.99,AMZNMKTPLACE,MISCELLANEOUS AND SPECIALTY RETAIL STORES,Children's Disability Service,RSS - London Road,OTHER SERVICE USER SUPPORT
Cambridgeshire County Council,01/05/2023,8.99,AMZNMKTPLACE AMAZON.CO,MISCELLANEOUS AND SPECIALTY RETAIL STORES,Changing Futures & Projects,Housing First,POSTAGE & CARRIAGE
Cambridgeshire County Council,01/05/2023,9.98,AMZNMKTPLACE,MISCELLANEOUS AND SPECIALTY RETAIL STORES,Children's Disability Service,RSS - London Road,FURNITURE
Cambridgeshire County Council,01/05/2023,9.99,AMAZON.CO.UK ZV5VF6YW5,DIRECT MARKETING-OTHER DIRECT MARKETERS/NOT ELSEW.,Children's Disability Service,RSS - London Road,BUILDING CLEANING
Cambridgeshire County Council,01/05/2023,9.99,AMAZON.CO.UK ZV5VF6YW5,DIRECT MARKETING-OTHER DIRECT MARKETERS/NOT ELSEW.,Children's Disability Service,RSS - London Road,BUILDING CLEANING
Cambridgeshire County Council,01/05/2023,9.99,AMZNMKTPLACE,MISCELLANEOUS AND SPECIALTY RETAIL STORES,Children's Disability Service,RSS - London Road,OTHER SERVICE USER SUPPORT
Cambridgeshire County Council,01/05/2023,9.99,AMZNMKTPLACE AMAZON.CO,MISCELLANEOUS AND SPECIALTY RETAIL STORES,Children's Disability Service,RSS - Haviland Way,BUILDING CLEANING
Cambridgeshire County Council,01/05/2023,10.16,AMZNMKTPLACE AMAZON.CO,MISCELLANEOUS AND SPECIALTY RETAIL STORES,Children's Disability Service,RSS - London Road,BUILDING CLEANING
Cambridgeshire County Council,01/05/2023,10.19,ENGINEERNG & DES PLAST,"BUILDING MATERIALS, LUMBER STORES",Outdoor Education (includes Grafham Water),Burwell House Residential Centre,EDUCATIONAL EQUIPMENT
Cambridgeshire County Council,01/05/2023,10.66,AMZNMKTPLACE AMAZON.CO,MISCELLANEOUS AND SPECIALTY RETAIL STORES,Children's Disability Service,RSS - London Road,BUILDING CLEANING
Cambridgeshire County Council,01/05/2023,10.99,AMZNMKTPLACE,MISCELLANEOUS AND SPECIALTY RETAIL STORES,Children's Disability Service,RSS - London Road,OTHER SERVICE USER SUPPORT
Cambridgeshire County Council,01/05/2023,12.49,AMZNMKTPLACE AMAZON.CO,MISCELLANEOUS AND SPECIALTY RETAIL STORES,Children's Disability Service,RSS - Haviland Way,BUILDING CLEANING
Cambridgeshire County Council,01/05/2023,13.75,AMZNMKTPLACE,MISCELLANEOUS AND SPECIALTY RETAIL STORES,Children's Disability Service,RSS - London Road,BUILDING CLEANING
Cambridgeshire County Council,01/05/2023,14.00,GEN REGISTER OFFICE,GOVERNMENT SERVICES-NOT ELSEWHERE CLASSIFIED,Children's Disability Service,Disability Referral & Access Team,
Cambridgeshire County Council,01/05/2023,14.39,AMZNMKTPLACE,MISCELLANEOUS AND SPECIALTY RETAIL STORES,Children's Disability Service,RSS - London Road,OTHER SERVICE USER SUPPORT
Cambridgeshire County Council,01/05/2023,14.58,TESCO STORES 2694,"GROCERY STORES, SUPERMARKETS",LD - In House Provider Services,6 St Lukes Close (Respite),SPECIALIST SUPPLIES AND MATERIALS
Cambridgeshire County Council,01/05/2023,14.94,AMZNMKTPLACE,MISCELLANEOUS AND SPECIALTY RETAIL STORES,Children's Disability Service,RSS - London Road,OTHER SERVICE USER SUPPORT
Cambridgeshire County Council,01/05/2023,15.99,AMZNMKTPLACE,MISCELLANEOUS AND SPECIALTY RETAIL STORES,Children's Disability Service,RSS - London Road,OTHER SERVICE USER SUPPORT
Cambridgeshire County Council,01/05/2023,17.85,BAKER ROSS,"ARTIST SUPPLY STORES, CRAFT SHOPS",Targeted Support Service - South,EH Child and Family Centre - South Cambs,EDUCATIONAL MATERIALS
Cambridgeshire County Council,01/05/2023,18.49,AMZNMKTPLACE,MISCELLANEOUS AND SPECIALTY RETAIL STORES,Children's Disability Service,RSS - London Road,BUILDING CLEANING
Cambridgeshire County Council,01/05/2023,19.40,POST OFFICE COUNTER,POSTAL SERVICES-GOVERNMENT ONLY,Coroners,Coroners General,POSTAGE & CARRIAGE
Cambridgeshire County Council,01/05/2023,19.99,AMAZON.CO.UK JC2YI4UU5,DIRECT MARKETING-OTHER DIRECT MARKETERS/NOT ELSEW.,ICT Service (Education),ICT Service Systems Development,
Cambridgeshire County Council,01/05/2023,19.99,AMZNMKTPLACE AMAZON.CO,MISCELLANEOUS AND SPECIALTY RETAIL STORES,Children's Disability Service,RSS - London Road,FURNITURE
Cambridgeshire County Council,01/05/2023,19.99,DROPBOX,COMPUTER NETWORK/INFORMATION SERVICES,Cambridgeshire Music,Cambs Music Business Development,COMPUTER SOFTWARE - PURCHASE
Cambridgeshire County Council,01/05/2023,21.35,TESCO STORES 3145,"GROCERY STORES, SUPERMARKETS",Outdoor Education (includes Grafham Water),Grafham Water Centre,CATERING PROVISIONS
Cambridgeshire County Council,01/05/2023,21.95,AMZNMKTPLACE,MISCELLANEOUS AND SPECIALTY RETAIL STORES,Children's Disability Service,RSS - London Road,OTHER SERVICE USER SUPPORT
Cambridgeshire County Council,01/05/2023,24.29,AMZNMKTPLACE AMAZON.CO,MISCELLANEOUS AND SPECIALTY RETAIL STORES,Children's Disability Service,RSS - Haviland Way,OTHER SERVICE USER SUPPORT
Cambridgeshire County Council,01/05/2023,26.50,AMZNMKTPLACE,MISCELLANEOUS AND SPECIALTY RETAIL STORES,Children's Disability Service,RSS - London Road,BUILDING CLEANING
Cambridgeshire County Council,01/05/2023,28.19,STAMPS DIRECT LTD,STATIONERY/OFFICE SUPPLIES/PRINTING & WRITING PAP.,Outdoor Education (includes Grafham Water),Burwell House Residential Centre,EDUCATIONAL MATERIALS
Cambridgeshire County Council,01/05/2023,28.22,AMAZON.CO.UK 0D4V998X5,DIRECT MARKETING-OTHER DIRECT MARKETERS/NOT ELSEW.,Children's Disability Service,RSS - Haviland Way,OTHER SERVICE USER SUPPORT
Cambridgeshire County Council,01/05/2023,29.90,ALDI STORES LTD,"GROCERY STORES, SUPERMARKETS",ICT Service (Education),ICT Service Systems Development,
Cambridgeshire County Council,01/05/2023,30.00,TESCO GIFT CARD,"GROCERY STORES, SUPERMARKETS",Corporate Parenting,South Child Looked After Team 2,SPECIALIST EQUIPMENT FOR SERVICE DELIV
Cambridgeshire County Council,01/05/2023,32.98,B&M 292 - MARCH,MISCELLANEOUS GENERAL MERCHANDISE,LD - In House Provider Services,IHPS - Tennyson Lodge,BUILDING REPAIR AND MAINTENANCE
Cambridgeshire County Council,01/05/2023,33.29,AMZNMKTPLACE AMAZON.CO,MISCELLANEOUS AND SPECIALTY RETAIL STORES,Children's Disability Service,RSS - Haviland Way,BUILDING CLEANING
Cambridgeshire County Council,01/05/2023,35.00,GO OUTDOORS,SPORTING GOODS STORES,Changing Futures & Projects,Housing First,OTHER SERVICE USER SUPPORT
Cambridgeshire County Council,01/05/2023,39.99,WEST END DIY,HARDWARE STORES,Registration & Citizenship Services,Registrars General,GENERAL OFFICE EXPENSES & STATIONERY
Cambridgeshire County Council,01/05/2023,47.58,AMZNMKTPLACE,MISCELLANEOUS AND SPECIALTY RETAIL STORES,Children's Disability Service,RSS - London Road,GRANTS&SUPPORT FOR OTHER SERVICE USERS
Cambridgeshire County Council,01/05/2023,53.50,HM PASSPORT OFFICE,GOVERNMENT SERVICES-NOT ELSEWHERE CLASSIFIED,Corporate Parenting,South Child Looked After Team 2,BOOKS AND MULTIMEDIA SUPPLIES
Cambridgeshire County Council,01/05/2023,63.00,STAGECOACH SERVICES,BUS LINES,Domestic Abuse and Sexual Violence Service,DLUHC Grant,
Cambridgeshire County Council,01/05/2023,72.14,TESCO STORES 2694,"GROCERY STORES, SUPERMARKETS",Children's Disability Service,RSS - Woodland Lodge,CATERING PROVISIONS
Cambridgeshire County Council,01/05/2023,94.00,PANTHER TAXIS_CAMBRIDG,LIMOUSINES AND TAXICABS,Children's Disability Service,RSS - Woodland Lodge,PUBLIC TRANSPORT FARES
Cambridgeshire County Council,01/05/2023,95.20,PREMIER INN,PREMIER INN,"Children, Education and Families Directorate","Children, Education and Families Directorate",STAFF SUBSISTENCE
Cambridgeshire County Council,01/05/2023,98.32,TESCO STORES,"GROCERY STORES, SUPERMARKETS",Children's Disability Service,RSS - Haviland Way,CATERING PROVISIONS
Cambridgeshire County Council,01/05/2023,114.00,WWW.CGPBOOKS.CO.UK,MISCELLANEOUS AND SPECIALTY RETAIL STORES,Cambridgeshire Skills,Cambridgeshire Skills Management Team,
Cambridgeshire County Council,01/05/2023,120.00,WWW.CIPFA.ORG.UK,"ORGANIZATIONS, MEMBERSHIP-NOT ELSEWHERE CLASSIFIED",Professional Finance,Cipfa Trainees,EXAM FEES
Cambridgeshire County Council,01/05/2023,120.00,WWW.CIPFA.ORG.UK,"ORGANIZATIONS, MEMBERSHIP-NOT ELSEWHERE CLASSIFIED",Professional Finance,Cipfa Trainees,EXAM FEES
Cambridgeshire County Council,01/05/2023,121.00,PREMIER INN,PREMIER INN,"Children, Education and Families Directorate","Children, Education and Families Directorate",
Cambridgeshire County Council,01/05/2023,132.31,TESCO STORES 5657,"GROCERY STORES, SUPERMARKETS",LD - In House Provider Services,No. 20 Alder Close Respite,CATERING PROVISIONS
Cambridgeshire County Council,01/05/2023,210.31,TRAINLINE.COM,PASSENGER RAILWAYS,Fostering & Supervised Contact Services,Fostering Support and Supervision,OTHER TRAVEL EXPENSES
Cambridgeshire County Council,01/05/2023,227.69,OCADO,"GROCERY STORES, SUPERMARKETS",Outdoor Education (includes Grafham Water),Grafham Water Centre,CATERING PROVISIONS
Cambridgeshire County Council,01/05/2023,364.80,HEALTH EDCO,MISCELLANEOUS AND SPECIALTY RETAIL STORES,"Assistant Director - LDP, P&EI, Transfer of Care, 0-25 Service",Service Director - Adults and Safeguarding,
Cambridgeshire County Council,01/05/2023,372.60,PANTHER TAXIS_CAMBRIDG,LIMOUSINES AND TAXICABS,Children's Disability Service,RSS - Woodland Lodge,PUBLIC TRANSPORT FARES
Cambridgeshire County Council,01/05/2023,612.00,FABERMUSIC.COM,MISCELLANEOUS GENERAL MERCHANDISE,Cambridgeshire Music,Cambs Music Business Development,SPECIALIST EQUIPMENT FOR SERVICE DELIV
Cambridgeshire County Council,01/05/2023,707.00,TURINGLOCKE,"LODGING-HOTELS,MOTELS,RESORTS-NOT CLASSIFIED","Children, Education and Families Directorate","Children, Education and Families Directorate",GRANTS&SUPPORT FOR OTHER SERVICE USERS
Cambridgeshire County Council,02/05/2023,6.50,TESCO STORES 3315,"GROCERY STORES, SUPERMARKETS",LD - In House Provider Services,6 St Lukes Close (Respite),CATERING PROVISIONS
Cambridgeshire County Council,02/05/2023,8.99,AMAZON PRIME 0470Z0MT5,DIRECT MARKETING-CONTINUITY/SUBSCRIPTION MERCHANTS,Virtual School,Virtual School for Care Experienced Children,BOOKS AND MULTIMEDIA SUPPLIES
